Transaction Number,Service - Fund ,Service  - Function ,Service - Cost Centre,Expense Type ,Expense Description,Supplier Name,Supplier Post Code (first 4 digits),Payment Date,Amount �
89222233,Streetsmart,Streetsmart,Waste - Disposal,Supplies and Services,Materials,1ST IMPRESSIONS SIGNS & GRAPHICS LTD,SN1 ,02/06/2023,"1,850.00"
90784233,Physical Support,Adults,Physical Support 65 and over,3rd Party Payments,Personal Budget - Domiciliary care,247 HOME CARE LTD,SN5 ,14/06/2023,"1,500.03"
89538233,Physical Support,Adults,Physical Support 18 - 64,3rd Party Payments,Personal Budget - Domiciliary care,247 HOME CARE LTD,SN5 ,07/06/2023,"1,140.18"
89842233,Physical Support,Adults,Physical Support 18 - 64,3rd Party Payments,Personal Budget - Domiciliary care,247 HOME CARE LTD,SN5 ,09/06/2023,-3.80
90809245,Physical Support,Adults,Physical Support 65 and over,3rd Party Payments,Personal Budget - Domiciliary care,247 HOME CARE LTD,SN5 ,16/06/2023,897.87
90809244,Physical Support,Adults,Physical Support 65 and over,3rd Party Payments,Personal Budget - Domiciliary care,247 HOME CARE LTD,SN5 ,16/06/2023,"1,099.98"
91879241,Physical Support,Adults,Physical Support 18 - 64,3rd Party Payments,Personal Budget - Domiciliary care,247 HOME CARE LTD,SN5 ,23/06/2023,-3.80
92860243,Physical Support,Adults,Physical Support 65 and over,3rd Party Payments,Personal Budget - Domiciliary care,247 HOME CARE LTD,SN5 ,30/06/2023,-162.87
92860242,Physical Support,Adults,Physical Support 65 and over,3rd Party Payments,Personal Budget - Domiciliary care,247 HOME CARE LTD,SN5 ,30/06/2023,"1,099.98"
92860243,Physical Support,Adults,Physical Support 65 and over,3rd Party Payments,Personal Budget - Domiciliary care,247 HOME CARE LTD,SN5 ,30/06/2023,897.87
91879243,Physical Support,Adults,Physical Support 65 and over,3rd Party Payments,Personal Budget - Domiciliary care,247 HOME CARE LTD,SN5 ,23/06/2023,"1,099.98"
89843233,Physical Support,Adults,Physical Support 65 and over,3rd Party Payments,Personal Budget - Domiciliary care,247 HOME CARE LTD,SN5 ,09/06/2023,"1,500.03"
92860240,Physical Support,Adults,Physical Support 18 - 64,3rd Party Payments,Carers,247 HOME CARE LTD,SN5 ,30/06/2023,154.56
92860240,Physical Support,Adults,Physical Support 18 - 64,3rd Party Payments,Personal Budget - Domiciliary care,247 HOME CARE LTD,SN5 ,30/06/2023,"1,100.56"
89842233,Physical Support,Adults,Physical Support 18 - 64,3rd Party Payments,Personal Budget - Domiciliary care,247 HOME CARE LTD,SN5 ,09/06/2023,"1,184.82"
89538233,Physical Support,Adults,Physical Support 18 - 64,3rd Party Payments,Personal Budget - Domiciliary care,247 HOME CARE LTD,SN5 ,07/06/2023,-3.80
92864233,Physical Support,Adults,Physical Support 65 and over,3rd Party Payments,Personal Budget - Domiciliary care,247 HOME CARE LTD,SN5 ,28/06/2023,"1,500.03"
89845233,Physical Support,Adults,Physical Support 65 and over,3rd Party Payments,Personal Budget - Domiciliary care,247 HOME CARE LTD,SN5 ,09/06/2023,949.57
90597254,Physical Support,Adults,Physical Support 18 - 64,3rd Party Payments,Personal Budget - Domiciliary care,247 HOME CARE LTD,SN5 ,16/06/2023,"1,103.68"
91879244,Physical Support,Adults,Physical Support 65 and over,3rd Party Payments,Personal Budget - Domiciliary care,247 HOME CARE LTD,SN5 ,23/06/2023,-162.87
91879242,Physical Support,Adults,Physical Support 65 and over,3rd Party Payments,Personal Budget - Domiciliary care,247 HOME CARE LTD,SN5 ,23/06/2023,"1,500.03"
92860240,Physical Support,Adults,Physical Support 18 - 64,3rd Party Payments,Personal Budget - Domiciliary care,247 HOME CARE LTD,SN5 ,30/06/2023,-3.80
92860241,Physical Support,Adults,Physical Support 65 and over,3rd Party Payments,Personal Budget - Domiciliary care,247 HOME CARE LTD,SN5 ,30/06/2023,"1,500.03"
91879244,Physical Support,Adults,Physical Support 65 and over,3rd Party Payments,Personal Budget - Domiciliary care,247 HOME CARE LTD,SN5 ,23/06/2023,897.87
90809245,Physical Support,Adults,Physical Support 65 and over,3rd Party Payments,Personal Budget - Domiciliary care,247 HOME CARE LTD,SN5 ,16/06/2023,-162.87
89844233,Physical Support,Adults,Physical Support 65 and over,3rd Party Payments,Personal Budget - Domiciliary care,247 HOME CARE LTD,SN5 ,09/06/2023,"1,099.98"
89539233,Physical Support,Adults,Physical Support 65 and over,3rd Party Payments,Personal Budget - Domiciliary care,247 HOME CARE LTD,SN5 ,07/06/2023,"1,500.03"
89541233,Physical Support,Adults,Physical Support 65 and over,3rd Party Payments,Personal Budget - Domiciliary care,247 HOME CARE LTD,SN5 ,07/06/2023,-162.87
91879241,Physical Support,Adults,Physical Support 18 - 64,3rd Party Payments,Carers,247 HOME CARE LTD,SN5 ,23/06/2023,151.44
89538233,Physical Support,Adults,Physical Support 18 - 64,3rd Party Payments,Carers,247 HOME CARE LTD,SN5 ,07/06/2023,114.94
89540233,Physical Support,Adults,Physical Support 65 and over,3rd Party Payments,Personal Budget - Domiciliary care,247 HOME CARE LTD,SN5 ,07/06/2023,"1,099.98"
90597254,Physical Support,Adults,Physical Support 18 - 64,3rd Party Payments,Carers,247 HOME CARE LTD,SN5 ,16/06/2023,151.44
89842233,Physical Support,Adults,Physical Support 18 - 64,3rd Party Payments,Carers,247 HOME CARE LTD,SN5 ,09/06/2023,151.44
89845233,Physical Support,Adults,Physical Support 65 and over,3rd Party Payments,Personal Budget - Domiciliary care,247 HOME CARE LTD,SN5 ,09/06/2023,-162.87
89541233,Physical Support,Adults,Physical Support 65 and over,3rd Party Payments,Personal Budget - Domiciliary care,247 HOME CARE LTD,SN5 ,07/06/2023,897.87
90597254,Physical Support,Adults,Physical Support 18 - 64,3rd Party Payments,Personal Budget - Domiciliary care,247 HOME CARE LTD,SN5 ,16/06/2023,-3.80
91879241,Physical Support,Adults,Physical Support 18 - 64,3rd Party Payments,Personal Budget - Domiciliary care,247 HOME CARE LTD,SN5 ,23/06/2023,"1,103.68"
93275263,Social Care,"Children, Families and Community Health Services",Children's Resource and Home Finding Team,3rd Party Payments,Residential Care,4D CARE LTD,PE14,30/06/2023,"18,213.90"
91216233,Routes to Employment,"Education, Inclusion and Skills",Multiply,Supplies and Services,Design & Printing Costs,4IMPRINT.CO.UK,M32 ,16/06/2023,"2,337.98"
88982234,School Transport,"Education, Inclusion and Skills",Special Educational Needs Transport,Transport Costs,Home to School Transport,4K TRAVEL LTD,SN2 ,02/06/2023,"2,362.50"
88977233,School Transport,"Education, Inclusion and Skills",Mainstream School Transport,Transport Costs,Home to School Transport,4K TRAVEL LTD,SN2 ,02/06/2023,"5,108.40"
89668233,Highways Schemes,Strategic Planning and Highways,Wroughton Park and Ride,Capital,Contractor Payments,4WAY CONSULTING LTD,SK4 ,07/06/2023,"2,020.00"
89651235,Physical Support,Adults,Fessey House,Supplies and Services,Materials,A & E ELECTRICAL WHOLESALERS LTD,SN5 ,07/06/2023,623.00
92351233,Homelessness and Travellers,Housing Services,Private Sector Landlords,Transfer Payments,Payment of Costs,REDACTED PERSONAL DATA,SN3 ,23/06/2023,800.00
92821233,Responsive Repairs,Repairs,Responsive Repairs,3rd Party Payments,Contract Payments,ABBEY ELECTRICAL (SWINDON) LTD T/A ABBEY ELECTRICAL UK,SN6 ,28/06/2023,420.72
89983233,Other Repairs,Repairs,Cyclical Maintenance,Supplies and Services,Testing / Inspection,ABBEY ELECTRICAL (SWINDON) LTD T/A ABBEY ELECTRICAL UK,SN6 ,09/06/2023,27.50
92977233,Other Repairs,Repairs,Cyclical Maintenance,Supplies and Services,Testing / Inspection,ABBEY ELECTRICAL (SWINDON) LTD T/A ABBEY ELECTRICAL UK,SN6 ,30/06/2023,844.22
89983233,Other Repairs,Repairs,Cyclical Maintenance,Supplies and Services,Testing / Inspection,ABBEY ELECTRICAL (SWINDON) LTD T/A ABBEY ELECTRICAL UK,SN6 ,09/06/2023,68.75
89046233,Other Repairs,Repairs,Cyclical Maintenance,Supplies and Services,Testing / Inspection,ABBEY ELECTRICAL (SWINDON) LTD T/A ABBEY ELECTRICAL UK,SN6 ,02/06/2023,"2,112.70"
89047233,Other Repairs,Repairs,Cyclical Maintenance,Supplies and Services,Testing / Inspection,ABBEY ELECTRICAL (SWINDON) LTD T/A ABBEY ELECTRICAL UK,SN6 ,02/06/2023,"1,022.88"
89983233,Other Repairs,Repairs,Cyclical Maintenance,Supplies and Services,Testing / Inspection,ABBEY ELECTRICAL (SWINDON) LTD T/A ABBEY ELECTRICAL UK,SN6 ,09/06/2023,41.25
89578233,Other Repairs,Repairs,Cyclical Maintenance,Supplies and Services,Testing / Inspection,ABBEY ELECTRICAL (SWINDON) LTD T/A ABBEY ELECTRICAL UK,SN6 ,07/06/2023,"1,057.45"
89006233,Other Repairs,Repairs,Cyclical Maintenance,Supplies and Services,Testing / Inspection,ABBEY ELECTRICAL (SWINDON) LTD T/A ABBEY ELECTRICAL UK,SN6 ,02/06/2023,"1,235.14"
89983233,Other Repairs,Repairs,Cyclical Maintenance,Supplies and Services,Testing / Inspection,ABBEY ELECTRICAL (SWINDON) LTD T/A ABBEY ELECTRICAL UK,SN6 ,09/06/2023,45.67
88993233,Other Repairs,Repairs,Cyclical Maintenance,Supplies and Services,Testing / Inspection,ABBEY ELECTRICAL (SWINDON) LTD T/A ABBEY ELECTRICAL UK,SN6 ,02/06/2023,"1,303.39"
92980237,Other Repairs,Repairs,Cyclical Maintenance,Supplies and Services,Testing / Inspection,ABBEY ELECTRICAL (SWINDON) LTD T/A ABBEY ELECTRICAL UK,SN6 ,30/06/2023,"1,429.40"
89983233,Other Repairs,Repairs,Cyclical Maintenance,Supplies and Services,Testing / Inspection,ABBEY ELECTRICAL (SWINDON) LTD T/A ABBEY ELECTRICAL UK,SN6 ,09/06/2023,37.63
89039234,Other Repairs,Repairs,Cyclical Maintenance,Supplies and Services,Testing / Inspection,ABBEY ELECTRICAL (SWINDON) LTD T/A ABBEY ELECTRICAL UK,SN6 ,02/06/2023,"1,083.26"
92822233,Responsive Repairs,Repairs,Responsive Repairs,3rd Party Payments,Contract Payments,ABBEY ELECTRICAL (SWINDON) LTD T/A ABBEY ELECTRICAL UK,SN6 ,28/06/2023,689.56
89983233,Other Repairs,Repairs,Cyclical Maintenance,Supplies and Services,Testing / Inspection,ABBEY ELECTRICAL (SWINDON) LTD T/A ABBEY ELECTRICAL UK,SN6 ,09/06/2023,55.00
89983233,Other Repairs,Repairs,Cyclical Maintenance,Supplies and Services,Testing / Inspection,ABBEY ELECTRICAL (SWINDON) LTD T/A ABBEY ELECTRICAL UK,SN6 ,09/06/2023,41.31
89581233,Other Repairs,Repairs,Cyclical Maintenance,Supplies and Services,Testing / Inspection,ABBEY ELECTRICAL (SWINDON) LTD T/A ABBEY ELECTRICAL UK,SN6 ,07/06/2023,987.97
90296233,Early Years Block,DSG Skills and Attainment,Free Nursery Education Commissioning - three & four  year olds,3rd Party Payments,Contracts - Child Care,ABBEY FARM EDUCATE TOGETHER PRIMARY,SN25,14/06/2023,"7,013.72"
90810294,High Needs Block,DSG Skills and Attainment,SEN Resourcing Assessment Panel,3rd Party Payments,Top up funding - Academies and Free Schools Pre 16,ABBEY MEADS COMMUNITY PRIMARY SCHOOL,SN25,14/06/2023,"6,215.42"
93282233,Physical Support,Adults,Physical Support 18 - 64,3rd Party Payments,Personal Budget - Domiciliary care,ABICARE SERVICES LTD,BS32,30/06/2023,586.96
93041242,Physical Support,Adults,Physical Support 18 - 64,3rd Party Payments,Personal Budget - Domiciliary care,ABICARE SERVICES LTD,BS32,30/06/2023,576.84
90865254,Physical Support,Adults,Physical Support 18 - 64,3rd Party Payments,Personal Budget - Domiciliary care,ABICARE SERVICES LTD,BS32,16/06/2023,576.84
90809237,Physical Support,Adults,Physical Support 18 - 64,3rd Party Payments,Personal Budget - Domiciliary care,ABICARE SERVICES LTD,BS32,14/06/2023,576.84
89266233,Physical Support,Adults,Physical Support 18 - 64,3rd Party Payments,Personal Budget - Domiciliary care,ABICARE SERVICES LTD,BS32,05/06/2023,586.96
89310233,Physical Support,Adults,Physical Support 18 - 64,3rd Party Payments,Personal Budget - Domiciliary care,ABICARE SERVICES LTD,BS32,05/06/2023,576.84
90809243,Mental Health,Adults,Mental Health 65 and over,3rd Party Payments,Personal Budget - Domiciliary care,ABICARE SERVICES LTD (LIVE IN),SP2 ,14/06/2023,"1,106.00"
90865258,Mental Health,Adults,Mental Health 65 and over,3rd Party Payments,Personal Budget - Domiciliary care,ABICARE SERVICES LTD (LIVE IN),SP2 ,16/06/2023,"1,106.00"
92020262,Mental Health,Adults,Mental Health 65 and over,3rd Party Payments,Personal Budget - Domiciliary care,ABICARE SERVICES LTD (LIVE IN),SP2 ,21/06/2023,"1,106.00"
89271233,Physical Support,Adults,Physical Support 18 - 64,3rd Party Payments,Personal Budget - Domiciliary care,ABICARE SERVICES LTD (LIVE IN),SP2 ,05/06/2023,"1,106.00"
90809241,Physical Support,Adults,Physical Support 18 - 64,3rd Party Payments,Personal Budget - Domiciliary care,ABICARE SERVICES LTD (LIVE IN),SP2 ,14/06/2023,"1,200.00"
89317234,Mental Health,Adults,Mental Health 65 and over,3rd Party Payments,Personal Budget - Domiciliary care,ABICARE SERVICES LTD (LIVE IN),SP2 ,05/06/2023,"1,106.00"
90865259,Mental Health,Adults,Mental Health 65 and over,3rd Party Payments,Personal Budget - Domiciliary care,ABICARE SERVICES LTD (LIVE IN),SP2 ,16/06/2023,"1,106.00"
93041247,Mental Health,Adults,Mental Health 65 and over,3rd Party Payments,Personal Budget - Domiciliary care,ABICARE SERVICES LTD (LIVE IN),SP2 ,30/06/2023,"1,106.00"
93041246,Physical Support,Adults,Physical Support 18 - 64,3rd Party Payments,Personal Budget - Domiciliary care,ABICARE SERVICES LTD (LIVE IN),SP2 ,30/06/2023,"1,106.00"
90809242,Physical Support,Adults,Physical Support 18 - 64,3rd Party Payments,Personal Budget - Domiciliary care,ABICARE SERVICES LTD (LIVE IN),SP2 ,14/06/2023,"1,106.00"
89273233,Mental Health,Adults,Mental Health 65 and over,3rd Party Payments,Personal Budget - Domiciliary care,ABICARE SERVICES LTD (LIVE IN),SP2 ,05/06/2023,"1,106.00"
89314233,Physical Support,Adults,Physical Support 18 - 64,3rd Party Payments,Personal Budget - Domiciliary care,ABICARE SERVICES LTD (LIVE IN),SP2 ,05/06/2023,"1,200.00"
92020260,Physical Support,Adults,Physical Support 18 - 64,3rd Party Payments,Personal Budget - Domiciliary care,ABICARE SERVICES LTD (LIVE IN),SP2 ,21/06/2023,"1,106.00"
93041245,Physical Support,Adults,Physical Support 18 - 64,3rd Party Payments,Personal Budget - Domiciliary care,ABICARE SERVICES LTD (LIVE IN),SP2 ,30/06/2023,"1,200.00"
89272233,Mental Health,Adults,Mental Health 65 and over,3rd Party Payments,Personal Budget - Domiciliary care,ABICARE SERVICES LTD (LIVE IN),SP2 ,05/06/2023,"1,106.00"
93041248,Mental Health,Adults,Mental Health 65 and over,3rd Party Payments,Personal Budget - Domiciliary care,ABICARE SERVICES LTD (LIVE IN),SP2 ,30/06/2023,"1,106.00"
89317233,Mental Health,Adults,Mental Health 65 and over,3rd Party Payments,Personal Budget - Domiciliary care,ABICARE SERVICES LTD (LIVE IN),SP2 ,05/06/2023,"1,106.00"
89270233,Physical Support,Adults,Physical Support 18 - 64,3rd Party Payments,Personal Budget - Domiciliary care,ABICARE SERVICES LTD (LIVE IN),SP2 ,05/06/2023,"1,200.00"
89316233,Physical Support,Adults,Physical Support 18 - 64,3rd Party Payments,Personal Budget - Domiciliary care,ABICARE SERVICES LTD (LIVE IN),SP2 ,05/06/2023,"1,106.00"
90865256,Physical Support,Adults,Physical Support 18 - 64,3rd Party Payments,Personal Budget - Domiciliary care,ABICARE SERVICES LTD (LIVE IN),SP2 ,16/06/2023,"1,200.00"
92020259,Physical Support,Adults,Physical Support 18 - 64,3rd Party Payments,Personal Budget - Domiciliary care,ABICARE SERVICES LTD (LIVE IN),SP2 ,21/06/2023,"1,200.00"
90865257,Physical Support,Adults,Physical Support 18 - 64,3rd Party Payments,Personal Budget - Domiciliary care,ABICARE SERVICES LTD (LIVE IN),SP2 ,16/06/2023,"1,106.00"
92020261,Mental Health,Adults,Mental Health 65 and over,3rd Party Payments,Personal Budget - Domiciliary care,ABICARE SERVICES LTD (LIVE IN),SP2 ,21/06/2023,"1,106.00"
90809240,Mental Health,Adults,Mental Health 65 and over,3rd Party Payments,Personal Budget - Domiciliary care,ABICARE SERVICES LTD (LIVE IN),SP2 ,14/06/2023,"1,106.00"
90297233,Early Years Block,DSG Skills and Attainment,Free Nursery Education Commissioning - three & four  year olds,3rd Party Payments,Contracts - Child Care,REDACTED PERSONAL DATA,SN2 ,14/06/2023,"1,050.80"
90072233,Streetsmart,Streetsmart,Waterside Fleet Hires,Transport Costs,Vehicle Hire / Contract,ACCESS HIRE NATIONWIDE,WF6 ,09/06/2023,"1,671.79"
90070233,Streetsmart,Streetsmart,Waterside Fleet Hires,Transport Costs,Vehicle Hire / Contract,ACCESS HIRE NATIONWIDE,WF6 ,09/06/2023,"1,736.00"
90071233,Streetsmart,Streetsmart,Waterside Fleet Hires,Transport Costs,Vehicle Hire / Contract,ACCESS HIRE NATIONWIDE,WF6 ,09/06/2023,"1,669.57"
91921233,Schools Maintenance,Skills & Attainment,Capita One education,Capital,Contractor Payments,ACCESS UK LTD,CO7 ,21/06/2023,"5,901.36"
89232233,Disabled Children,"Children, Families and Community Health Services",ICES Paediatric,Supplies and Services,Equipment,ACCORA LIMITED,SG8 ,02/06/2023,"9,444.00"
92410233,Homelessness and Travellers,Housing Services,Private Sector Landlords,Transfer Payments,Payment of Costs,REDACTED PERSONAL DATA,SN8 ,23/06/2023,650.00
92372233,Homelessness and Travellers,Housing Services,Private Sector Landlords,Transfer Payments,Payment of Costs,REDACTED PERSONAL DATA,SN8 ,23/06/2023,700.00
91291233,Social Care,"Children, Families and Community Health Services",Children's Resource and Home Finding Team,3rd Party Payments,Independent Fostering Agency Placements,ACTION FOR CHILDREN,WD18,16/06/2023,"3,660.17"
91287233,Social Care,"Children, Families and Community Health Services",Children's Resource and Home Finding Team,3rd Party Payments,Independent Fostering Agency Placements,ACTION FOR CHILDREN,WD18,16/06/2023,"3,175.33"
91284233,Social Care,"Children, Families and Community Health Services",Children's Resource and Home Finding Team,3rd Party Payments,Independent Fostering Agency Placements,ACTION FOR CHILDREN,WD18,16/06/2023,"3,068.70"
91289233,Social Care,"Children, Families and Community Health Services",Children's Resource and Home Finding Team,3rd Party Payments,Independent Fostering Agency Placements,ACTION FOR CHILDREN,WD18,16/06/2023,"3,660.17"
91285233,Social Care,"Children, Families and Community Health Services",Children's Resource and Home Finding Team,3rd Party Payments,Independent Fostering Agency Placements,ACTION FOR CHILDREN,WD18,16/06/2023,"3,170.99"
91288233,Social Care,"Children, Families and Community Health Services",Children's Resource and Home Finding Team,3rd Party Payments,Independent Fostering Agency Placements,ACTION FOR CHILDREN,WD18,16/06/2023,"3,542.10"
91286233,Social Care,"Children, Families and Community Health Services",Children's Resource and Home Finding Team,3rd Party Payments,Independent Fostering Agency Placements,ACTION FOR CHILDREN,WD18,16/06/2023,"3,072.90"
91290233,Social Care,"Children, Families and Community Health Services",Children's Resource and Home Finding Team,3rd Party Payments,Independent Fostering Agency Placements,ACTION FOR CHILDREN,WD18,16/06/2023,"3,542.10"
90998235,Disabled Children,"Children, Families and Community Health Services",ICES Paediatric,Supplies and Services,Equipment,ACTIVATE FOR KIDS LTD,SP2 ,16/06/2023,"1,833.28"
90810351,High Needs Block,DSG Skills and Attainment,SEN Resourcing Assessment Panel,3rd Party Payments,Top up funding - Academies and Free Schools Post 16,ACTIVATE LEARNING EDUCATION TRUST,OX1 ,14/06/2023,660.83
91586237,Social Care,"Children, Families and Community Health Services",Children's Resource and Home Finding Team,3rd Party Payments,Independent Fostering Agency Placements,ACTIVE CARE SOLUTIONS LTD,B60 ,19/06/2023,"6,188.40"
91586239,Social Care,"Children, Families and Community Health Services",Children's Resource and Home Finding Team,3rd Party Payments,Independent Fostering Agency Placements,ACTIVE CARE SOLUTIONS LTD,B60 ,19/06/2023,"3,171.30"
91586238,Social Care,"Children, Families and Community Health Services",Unaccompanied Asylum Seeking Children (UASC),3rd Party Payments,Independent Fostering Agency Placements,ACTIVE CARE SOLUTIONS LTD,B60 ,19/06/2023,"4,205.40"
91586240,Social Care,"Children, Families and Community Health Services",Children's Resource and Home Finding Team,3rd Party Payments,Independent Fostering Agency Placements,ACTIVE CARE SOLUTIONS LTD,B60 ,19/06/2023,"3,256.80"
93131326,Learning Disabilities,Adults,Learning Disability 18 - 64,Transfer Payments,Personal Budget - Direct Payments - Domiciliary Care,REDACTED PERSONAL DATA,SN4 ,30/06/2023,"1,290.77"
93131597,Learning Disabilities,Adults,Learning Disability 18 - 64,Transfer Payments,Personal Budget - Direct Payments - Domiciliary Care,REDACTED PERSONAL DATA,SN3 ,30/06/2023,"2,219.29"
92371233,Homelessness and Travellers,Housing Services,Private Sector Landlords,Transfer Payments,Payment of Costs,ADVANCE HOUSING & SUPPORT LTD,OX28,23/06/2023,"1,074.00"
91930233,Social Care,"Children, Families and Community Health Services",Legal Fees,Supplies and Services,Fees,ADVANCED CHILD CARE ASSESSMENTS LTD,PR7 ,21/06/2023,"2,260.20"
91906233,Social Care,"Children, Families and Community Health Services",Legal Fees,Supplies and Services,Fees,ADVANCED CHILD CARE ASSESSMENTS LTD,PR7 ,21/06/2023,"2,858.30"
93164233,Property Management,Property,Corporate Repairs & Maintenance Programme,Premises Costs,Maintenance - Buildings,AEGIR TECHNICAL SERVICES LTD,BA14,30/06/2023,656.00
91452233,Social Care,"Children, Families and Community Health Services",Children's Resource and Home Finding Team,3rd Party Payments,Independent Fostering Agency Placements,AFFINITY FOSTERING SERVICES LTD,CM4 ,19/06/2023,"3,813.00"
91451233,Social Care,"Children, Families and Community Health Services",Children's Resource and Home Finding Team,3rd Party Payments,Independent Fostering Agency Placements,AFFINITY FOSTERING SERVICES LTD,CM4 ,19/06/2023,"5,646.34"
91453233,Social Care,"Children, Families and Community Health Services",Children's Resource and Home Finding Team,3rd Party Payments,Independent Fostering Agency Placements,AFFINITY FOSTERING SERVICES LTD,CM4 ,19/06/2023,"3,813.00"
90527234,"Volutary Sector, Equipment and Carers",Adults,Carers Short Term Breaks - Adults,3rd Party Payments,Carers,REDACTED PERSONAL DATA,SN3 ,14/06/2023,500.00
91014234,Highways & Transport,Highways & Transport,Traffic Management & Road Safety,3rd Party Payments,Contract Payments,AGILYSIS LIMITED,OX16,16/06/2023,"3,100.00"
91172326,Learning Disabilities,Adults,Learning Disability 65 and over,Income,Client Contribution - Supported Living,AGINCARE ENABLE LTD,DT5 ,16/06/2023,-476.60
91172326,Learning Disabilities,Adults,Learning Disability 65 and over,3rd Party Payments,Supported Lodgings (Childrens)/Supported Living (Adults),AGINCARE ENABLE LTD,DT5 ,16/06/2023,"2,462.60"
91172326,Learning Disabilities,Adults,Learning Disability 65 and over,3rd Party Payments,Supported Lodgings (Childrens)/Supported Living (Adults),AGINCARE ENABLE LTD,DT5 ,16/06/2023,"5,835.00"
91172256,Physical Support,Adults,Physical Support 65 and over,Income,Client Contribution - Residential,AGINCARE LTD,DT5 ,16/06/2023,"-1,231.12"
91172256,Physical Support,Adults,Physical Support 65 and over,3rd Party Payments,Residential Care,AGINCARE LTD,DT5 ,16/06/2023,"3,600.00"
91519233,Physical Support,Adults,Physical Support 65 and over,Transport Costs,Home to Centre Transport,AKCESS CIC,SN2 ,19/06/2023,"5,934.71"
91520233,School Transport,"Education, Inclusion and Skills",Special Educational Needs Transport,Transport Costs,Home to School Transport,AKCESS CIC,SN2 ,19/06/2023,"64,598.21"
89950239,School Transport,"Education, Inclusion and Skills",Mainstream School Transport,Transport Costs,Home to School Transport,AKCESS CIC,SN2 ,09/06/2023,"2,165.63"
91519233,Physical Support,Adults,Physical Support 65 and over,Transport Costs,Home to Centre Transport,AKCESS CIC,SN2 ,19/06/2023,"2,968.29"
89950235,School Transport,"Education, Inclusion and Skills",Special Educational Needs Transport,Employees,Temporary / Agency - by Accounts Payable,AKCESS CIC,SN2 ,09/06/2023,"13,566.00"
89950238,School Transport,"Education, Inclusion and Skills",Special Educational Needs Transport,Transport Costs,Home to School Transport,AKCESS CIC,SN2 ,09/06/2023,"2,565.00"
89950236,School Transport,"Education, Inclusion and Skills",Special Educational Needs Transport,Transport Costs,Home to School Transport,AKCESS CIC,SN2 ,09/06/2023,"6,323.63"
91519233,Learning Disabilities,Adults,Learning Disability 18 - 64,Transport Costs,Home to Centre Transport,AKCESS CIC,SN2 ,19/06/2023,"20,778.01"
90562234,Travel,Highways & Transport,Public Transport,3rd Party Payments,Contract Payments,AKCESS CIC,SN2 ,14/06/2023,"15,023.18"
91519233,Learning Disabilities,Adults,Learning Disability 18 - 64,Transport Costs,Home to Centre Transport,AKCESS CIC,SN2 ,19/06/2023,"5,934.71"
93260233,Senior Management Team,"Children, Families and Community Health Services",Family Safeguarding Model,Supplies and Services,Services,ALASDAIR CANT & ASSOCIATES LIMITED,CB2 ,30/06/2023,"5,450.00"
89720233,Public Health,Public Health,Supplementary SMTR Grant,3rd Party Payments,Contract Payments,ALCOHOL CHANGE UK,WC1X,07/06/2023,805.00
92193238,Physical Support,Adults,Physical Support 18 - 64,3rd Party Payments,Supported Lodgings (Childrens)/Supported Living (Adults),REDACTED PERSONAL DATA,SN2 ,23/06/2023,572.00
91319233,Learning Disabilities,Adults,Learning Disability 18 - 64,3rd Party Payments,Supported Accommodation Scheme,REDACTED PERSONAL DATA,SN2 ,21/06/2023,457.86
91319233,Learning Disabilities,Adults,Learning Disability 18 - 64,3rd Party Payments,Supported Accommodation Scheme,REDACTED PERSONAL DATA,SN2 ,21/06/2023,"2,850.00"
93131616,Learning Disabilities,Adults,Learning Disability 18 - 64,Transfer Payments,Personal Budget - Direct Payments - Domiciliary Care,REDACTED PERSONAL DATA,SN25,30/06/2023,"1,135.30"
90300233,Early Years Block,DSG Skills and Attainment,Free Nursery Education Commissioning - three & four  year olds,3rd Party Payments,Contracts - Child Care,ALFRESCO CHILDCARE,SN6 ,14/06/2023,"7,495.22"
91502233,Learning Disabilities,Adults,Learning Disability 18 - 64,3rd Party Payments,Supported Accommodation Scheme,REDACTED PERSONAL DATA,SN1 ,21/06/2023,"3,332.50"
91502233,Learning Disabilities,Adults,Learning Disability 18 - 64,3rd Party Payments,Supported Accommodation Scheme,REDACTED PERSONAL DATA,SN1 ,21/06/2023,457.86
93131713,Learning Disabilities,Adults,Learning Disability 18 - 64,Transfer Payments,Personal Budget - Direct Payments - Domiciliary Care,REDACTED PERSONAL DATA,SN4 ,30/06/2023,"7,944.44"
92106296,School Transport,"Education, Inclusion and Skills",Special Educational Needs Transport,Transport Costs,Home to School Transport,REDACTED PERSONAL DATA,SN5 ,30/06/2023,"1,036.36"
91503233,Learning Disabilities,Adults,Learning Disability 18 - 64,3rd Party Payments,Supported Accommodation Scheme,REDACTED PERSONAL DATA,SN2 ,21/06/2023,"2,300.00"
91503233,Learning Disabilities,Adults,Learning Disability 18 - 64,3rd Party Payments,Supported Accommodation Scheme,REDACTED PERSONAL DATA,SN2 ,21/06/2023,328.61
91503233,Learning Disabilities,Adults,Learning Disability 18 - 64,3rd Party Payments,Supported Accommodation Scheme,REDACTED PERSONAL DATA,SN2 ,21/06/2023,349.98
91503233,Learning Disabilities,Adults,Learning Disability 18 - 64,3rd Party Payments,Supported Accommodation Scheme,REDACTED PERSONAL DATA,SN2 ,21/06/2023,"2,782.50"
91503233,Learning Disabilities,Adults,Learning Disability 18 - 64,3rd Party Payments,Supported Accommodation Scheme,REDACTED PERSONAL DATA,SN2 ,21/06/2023,"1,850.00"
93131329,Learning Disabilities,Adults,Learning Disability 18 - 64,Transfer Payments,Personal Budget - Direct Payments - Domiciliary Care,REDACTED PERSONAL DATA,SN5 ,30/06/2023,"9,929.70"
90302233,Early Years Block,DSG Skills and Attainment,Free Nursery Education Commissioning - three & four  year olds,3rd Party Payments,Contracts - Child Care,REDACTED PERSONAL DATA,SN1 ,14/06/2023,"1,623.97"
93131504,Learning Disabilities,Adults,Learning Disability 18 - 64,Transfer Payments,Personal Budget - Direct Payments - Domiciliary Care,REDACTED PERSONAL DATA,SN5 ,30/06/2023,"3,844.76"
89958233,DSG Other Funding,DSG Skills and Attainment,LAC pupil premium,Supplies and Services,Services,ALL SAINTS ACADEMY PLYMOUTH,PL5 ,09/06/2023,600.00
92211261,Streetsmart,Streetsmart,Waterside Fleet Workshops,Supplies and Services,Equipment,ALLIANCE AUTOMOTIVE UK T/A BRAYMARC,BD4 ,23/06/2023,850.76
89788233,Treasury,Corporate Finance,Treasury,Supplies and Services,Bank Charges,ALLPAY-NET LIMITED,HR1 ,07/06/2023,"1,269.29"
90859233,Landlord Services,Supervision & Management,Estate Management Team,Supplies and Services,Contracts,ALLPAY-NET LIMITED,HR1 ,16/06/2023,"1,998.88"
89930233,Disabled Children,"Children, Families and Community Health Services",DCT Daytime Short Breaks,3rd Party Payments,Respite Care,ALPHA24 HEALTHCARE LTD,EC1M,09/06/2023,"1,800.00"
90696233,Disabled Children,"Children, Families and Community Health Services",DCT Daytime Short Breaks,3rd Party Payments,Respite Care,ALPHA24 HEALTHCARE LTD,EC1M,14/06/2023,"1,800.00"
90695259,Disabled Children,"Children, Families and Community Health Services",DCT Daytime Short Breaks,3rd Party Payments,Respite Care,ALPHA24 HEALTHCARE LTD,EC1M,14/06/2023,720.00
91718233,Disabled Children,"Children, Families and Community Health Services",DCT Daytime Short Breaks,3rd Party Payments,Respite Care,ALPHA24 HEALTHCARE LTD,EC1M,21/06/2023,720.00
90878233,Disabled Children,"Children, Families and Community Health Services",DCT Daytime Short Breaks,3rd Party Payments,Respite Care,ALPHA24 HEALTHCARE LTD,EC1M,16/06/2023,"1,800.00"
89935233,Disabled Children,"Children, Families and Community Health Services",DCT Daytime Short Breaks,3rd Party Payments,Respite Care,ALPHA24 HEALTHCARE LTD,EC1M,09/06/2023,"1,080.00"
89934233,Disabled Children,"Children, Families and Community Health Services",DCT Daytime Short Breaks,3rd Party Payments,Respite Care,ALPHA24 HEALTHCARE LTD,EC1M,09/06/2023,"1,440.00"
89932233,Disabled Children,"Children, Families and Community Health Services",DCT Daytime Short Breaks,3rd Party Payments,Respite Care,ALPHA24 HEALTHCARE LTD,EC1M,09/06/2023,"1,440.00"
91887234,Disabled Children,"Children, Families and Community Health Services",DCT Daytime Short Breaks,3rd Party Payments,Respite Care,ALPHA24 HEALTHCARE LTD,EC1M,21/06/2023,"1,080.00"
89933233,Disabled Children,"Children, Families and Community Health Services",DCT Daytime Short Breaks,3rd Party Payments,Respite Care,ALPHA24 HEALTHCARE LTD,EC1M,09/06/2023,"1,920.00"
91646233,Disabled Children,"Children, Families and Community Health Services",DCT Daytime Short Breaks,3rd Party Payments,Respite Care,ALPHA24 HEALTHCARE LTD,EC1M,21/06/2023,"1,080.00"
91886234,Disabled Children,"Children, Families and Community Health Services",DCT Daytime Short Breaks,3rd Party Payments,Respite Care,ALPHA24 HEALTHCARE LTD,EC1M,21/06/2023,"1,080.00"
90697234,Disabled Children,"Children, Families and Community Health Services",DCT Daytime Short Breaks,3rd Party Payments,Respite Care,ALPHA24 HEALTHCARE LTD,EC1M,14/06/2023,"1,080.00"
90699233,Disabled Children,"Children, Families and Community Health Services",DCT Daytime Short Breaks,3rd Party Payments,Respite Care,ALPHA24 HEALTHCARE LTD,EC1M,14/06/2023,"1,440.00"
89931233,Disabled Children,"Children, Families and Community Health Services",DCT Daytime Short Breaks,3rd Party Payments,Respite Care,ALPHA24 HEALTHCARE LTD,EC1M,09/06/2023,"1,440.00"
90697233,Disabled Children,"Children, Families and Community Health Services",DCT Daytime Short Breaks,3rd Party Payments,Respite Care,ALPHA24 HEALTHCARE LTD,EC1M,14/06/2023,"1,440.00"
90745233,Disabled Children,"Children, Families and Community Health Services",DCT Daytime Short Breaks,3rd Party Payments,Respite Care,ALPHA24 HEALTHCARE LTD,EC1M,14/06/2023,"1,080.00"
91640233,Disabled Children,"Children, Families and Community Health Services",DCT Daytime Short Breaks,3rd Party Payments,Respite Care,ALPHA24 HEALTHCARE LTD,EC1M,21/06/2023,"1,440.00"
89929233,Disabled Children,"Children, Families and Community Health Services",DCT Daytime Short Breaks,3rd Party Payments,Respite Care,ALPHA24 HEALTHCARE LTD,EC1M,09/06/2023,720.00
91641233,Disabled Children,"Children, Families and Community Health Services",DCT Daytime Short Breaks,3rd Party Payments,Respite Care,ALPHA24 HEALTHCARE LTD,EC1M,21/06/2023,"1,080.00"
91644233,Disabled Children,"Children, Families and Community Health Services",DCT Daytime Short Breaks,3rd Party Payments,Respite Care,ALPHA24 HEALTHCARE LTD,EC1M,21/06/2023,"1,080.00"
91722233,Disabled Children,"Children, Families and Community Health Services",DCT Daytime Short Breaks,3rd Party Payments,Respite Care,ALPHA24 HEALTHCARE LTD,EC1M,21/06/2023,"1,080.00"
91719234,Disabled Children,"Children, Families and Community Health Services",DCT Daytime Short Breaks,3rd Party Payments,Respite Care,ALPHA24 HEALTHCARE LTD,EC1M,21/06/2023,720.00
91721233,Disabled Children,"Children, Families and Community Health Services",DCT Daytime Short Breaks,3rd Party Payments,Respite Care,ALPHA24 HEALTHCARE LTD,EC1M,21/06/2023,"1,800.00"
91936233,Social Care,"Children, Families and Community Health Services",Legal Fees,Supplies and Services,Fees,ALPHABIOLABS,WA5 ,21/06/2023,420.00
91172330,Physical Support,Adults,Physical Support 65 and over,Income,Client Contribution - Nursing,ALTOGETHER CARE WEYMOUTH CARE HOME,DT4 ,16/06/2023,-627.80
91172330,Physical Support,Adults,Physical Support 65 and over,3rd Party Payments,Nursing Care,ALTOGETHER CARE WEYMOUTH CARE HOME,DT4 ,16/06/2023,"4,023.28"
89909233,Highways Schemes,Strategic Planning and Highways,Wichelstowe Southern Access,Capital,Contractor Payments,ALUN GRIFFITHS (CONTRACTORS ) LTD,NP7 ,09/06/2023,"518,185.98"
91223233,Physical Support,Adults,Physical Support 18 - 64,3rd Party Payments,Carers,REDACTED PERSONAL DATA,SP11,16/06/2023,554.94
Corporate Card Transaction,ASC Finance Services Teams,ASC Finance Services,ASC Money Management Team,Supplies and Services,Services,Amznmktplace,,22/06/2023,828.99
Corporate Card Transaction,Homelessness and Travellers,Housing Services,Warm Welcome Project,Supplies and Services,Equipment,Amznmktplace,,15/06/2023,654.54
91297233,Social Care,"Children, Families and Community Health Services",Children's Resource and Home Finding Team,3rd Party Payments,Residential Care,AMBERLEIGH CARE LTD,TF2 ,16/06/2023,"21,018.00"
91472233,Social Care,"Children, Families and Community Health Services",Children's Resource and Home Finding Team,3rd Party Payments,Residential Care,AMEGREEN CHILDREN'S SERVICES LTD,RG7 ,19/06/2023,"16,875.00"
90564249,Responsive Repairs,Repairs,Responsive Repairs,Premises Costs,Repairs - Buildings,AMELIO UTILITIES(GLOU) LTD T/A 3 COUNTIES DRAIN SERVICES,GL1 ,14/06/2023,317.17
90564249,Responsive Repairs,Repairs,Responsive Repairs,Premises Costs,Repairs - Buildings,AMELIO UTILITIES(GLOU) LTD T/A 3 COUNTIES DRAIN SERVICES,GL1 ,14/06/2023,176.57
90564249,Responsive Repairs,Repairs,Responsive Repairs,Premises Costs,Repairs - Buildings,AMELIO UTILITIES(GLOU) LTD T/A 3 COUNTIES DRAIN SERVICES,GL1 ,14/06/2023,70.30
90564249,Responsive Repairs,Repairs,Responsive Repairs,Premises Costs,Repairs - Buildings,AMELIO UTILITIES(GLOU) LTD T/A 3 COUNTIES DRAIN SERVICES,GL1 ,14/06/2023,140.60
90250233,NEV,"Economy, Growth and Place",Southern Connector Road,Capital,Professional Fees,AMEY OW LTD,L19 ,12/06/2023,"42,780.76"
90250233,NEV,"Economy, Growth and Place",Package 2 - Nythe Road Junction and Piccadilly Roundabout,Capital,Professional Fees,AMEY OW LTD,L19 ,12/06/2023,"1,715.78"
93261233,Highways & Transport,Highways & Transport,Project Delivery,Supplies and Services,Services,AMEY OW LTD,L19 ,30/06/2023,"61,077.36"
90576234,Highways & Transport,Highways & Transport,Project Delivery,Supplies and Services,Services,AMEY OW LTD,L19 ,14/06/2023,"58,362.54"
90250233,NEV,"Economy, Growth and Place",White Hart Junction,Capital,Professional Fees,AMEY OW LTD,L19 ,12/06/2023,"4,002.68"
90576235,Town Centre,"Economy, Growth and Place",Fleming Way Improvement Scheme,Capital,Professional Fees,AMEY OW LTD,L19 ,14/06/2023,"23,763.19"
90250233,Highways Schemes,Strategic Planning and Highways,Wichelstowe Southern Access,Capital,Professional Fees,AMEY OW LTD,L19 ,12/06/2023,"3,477.54"
89943233,Disabled Children,"Children, Families and Community Health Services",DCT Daytime Short Breaks,3rd Party Payments,Respite Care,AMICUS FOSTER CARE,BS2 ,09/06/2023,"3,600.00"
90022250,Social Care,"Children, Families and Community Health Services",Children's Resource and Home Finding Team,3rd Party Payments,Independent Fostering Agency Placements,AMICUS FOSTER CARE,BS2 ,09/06/2023,"5,256.05"
90034233,Disabled Children,"Children, Families and Community Health Services",DCT Daytime Short Breaks,3rd Party Payments,Respite Care,AMICUS FOSTER CARE,BS2 ,09/06/2023,"2,000.00"
90168233,Disabled Children,"Children, Families and Community Health Services",DCT Daytime Short Breaks,Transfer Payments,Personal Budget - Direct Payments - Other,REDACTED PERSONAL DATA,SN2 ,12/06/2023,"2,263.00"
93131367,Mental Health,Adults,Mental Health 18-64,Transfer Payments,Personal Budget - Direct Payments - Domiciliary Care,REDACTED PERSONAL DATA,SN25,30/06/2023,619.34
91877233,Social Care,"Children, Families and Community Health Services",Legal Fees,Supplies and Services,Fees,REDACTED PERSONAL DATA,EC4Y,21/06/2023,"1,900.00"
89274233,Planning & Regulatory,Strategic Planning,Landscape & Countryside Works,Supplies and Services,Discretionary Costs,ANDREW CUNNINGHAM ARBORICULTURAL CONSULTANT LIMITED (ACAC),GL5 ,05/06/2023,"1,050.00"
93131354,Learning Disabilities,Adults,Learning Disability 18 - 64,Transfer Payments,Personal Budget - Direct Payments - Domiciliary Care,REDACTED PERSONAL DATA,SP11,30/06/2023,502.46
92253233,Homelessness and Travellers,Housing Services,Private Sector Landlords,Transfer Payments,Payment of Costs,REDACTED PERSONAL DATA,SN26,23/06/2023,675.00
90867233,Human Resources and Organisational Development,"People, Culture and Organisational Resilience",Organisational Development,Employees,Recruitment,ANGELA COLBOURNE,EX15,16/06/2023,725.80
91820233,High Needs Block,DSG Skills and Attainment,SEN Resourcing Assessment Panel,3rd Party Payments,Top up funding - Maintained providers Pre 16,REDACTED PERSONAL DATA,SN5 ,21/06/2023,936.00
92363233,Homelessness and Travellers,Housing Services,Private Sector Landlords,Transfer Payments,Payment of Costs,ANGELVIEW PROPERTIES LTD,ALBO,23/06/2023,590.00
89148233,Early Help,Early Intervention & Prevention,"Holiday, Activities & Food Grant",3rd Party Payments,Contracts - Child Care,REDACTED PERSONAL DATA,TR16,02/06/2023,"2,264.43"
93131599,Physical Support,Adults,Physical Support 18 - 64,Transfer Payments,Personal Budget - Direct Payments - Domiciliary Care,REDACTED PERSONAL DATA,SN25,30/06/2023,"2,686.51"
91569233,HRA Overheads,Supervision & Management,Admin / Management General,Premises Costs,Insurance - Premises,AON UK LIMITED,EC3V,19/06/2023,"3,459.86"
90448233,Supported Employment,Housing Services,Community Meals,Supplies and Services,Food,APETITO LIMITED,BA14,14/06/2023,898.79
92919233,Supported Employment,Housing Services,Community Meals,Supplies and Services,Food,APETITO LIMITED,BA14,28/06/2023,"1,419.62"
92917233,Supported Employment,Housing Services,Community Meals,Supplies and Services,Food,APETITO LIMITED,BA14,28/06/2023,"1,294.52"
90450233,Supported Employment,Housing Services,Community Meals,Supplies and Services,Food,APETITO LIMITED,BA14,14/06/2023,"1,054.93"
92881237,Responsive Repairs,Repairs,Responsive Repairs,3rd Party Payments,Contract Payments,APEX SCAFFOLDING SERVICES,SN2 ,28/06/2023,950.00
91866238,Responsive Repairs,Repairs,Responsive Repairs,3rd Party Payments,Contract Payments,APEX SCAFFOLDING SERVICES,SN2 ,21/06/2023,500.00
91866236,Responsive Repairs,Repairs,Responsive Repairs,3rd Party Payments,Contract Payments,APEX SCAFFOLDING SERVICES,SN2 ,21/06/2023,420.00
92539243,Responsive Repairs,Repairs,Responsive Repairs,3rd Party Payments,Contract Payments,APEX SCAFFOLDING SERVICES,SN2 ,28/06/2023,55.00
91775233,Responsive Repairs,Repairs,Responsive Repairs,3rd Party Payments,Contract Payments,APEX SCAFFOLDING SERVICES,SN2 ,21/06/2023,55.00
91773233,Responsive Repairs,Repairs,Responsive Repairs,3rd Party Payments,Contract Payments,APEX SCAFFOLDING SERVICES,SN2 ,21/06/2023,750.00
92881236,Responsive Repairs,Repairs,Responsive Repairs,3rd Party Payments,Contract Payments,APEX SCAFFOLDING SERVICES,SN2 ,28/06/2023,998.00
89800235,Responsive Repairs,Repairs,Responsive Repairs,3rd Party Payments,Contract Payments,APEX SCAFFOLDING SERVICES,SN2 ,07/06/2023,695.00
91772233,Responsive Repairs,Repairs,Responsive Repairs,3rd Party Payments,Contract Payments,APEX SCAFFOLDING SERVICES,SN2 ,21/06/2023,893.57
92539242,Responsive Repairs,Repairs,Responsive Repairs,3rd Party Payments,Contract Payments,APEX SCAFFOLDING SERVICES,SN2 ,28/06/2023,55.00
93037233,,,Balance Sheet,Balance Sheet & Recharge,MFD recharges,APOGEE CORPORATION LIMITED,ME16,30/06/2023,"6,138.42"
91742233,,,Balance Sheet,Balance Sheet & Recharge,Resources Recharges,APOGEE CORPORATION LIMITED,EC2A,21/06/2023,"12,904.79"
92809233,,,Balance Sheet,Balance Sheet & Recharge,Resources Recharges,APOGEE CORPORATION LIMITED,EC2A,28/06/2023,"16,723.20"
89951233,,,Balance Sheet,Balance Sheet & Recharge,Resources Recharges,APOGEE CORPORATION LIMITED,EC2A,09/06/2023,"2,318.60"
91172266,Learning Disabilities,Adults,Learning Disability 18 - 64,3rd Party Payments,Residential Care,APPLEFORD LTD T/A DANESWOOD,BS25,16/06/2023,"64,452.35"
91172266,Learning Disabilities,Adults,Learning Disability 18 - 64,3rd Party Payments,Residential Care,APPLEFORD LTD T/A DANESWOOD,BS25,16/06/2023,"-59,130.55"
91172266,Learning Disabilities,Adults,Learning Disability 18 - 64,Income,Client Contribution - Residential,APPLEFORD LTD T/A DANESWOOD,BS25,16/06/2023,-438.80
91172266,Learning Disabilities,Adults,Learning Disability 18 - 64,3rd Party Payments,Residential Care,APPLEFORD LTD T/A DANESWOOD,BS25,16/06/2023,"22,008.12"
90574233,Adults - Staffing and Supporting People,Adults,Blue Badges,Supplies and Services,Materials,APS GROUP,SK3 ,14/06/2023,796.74
89660233,Communications & Engagement,Communications & Engagement,"Policy, Campaigns and Communications",Employees,Training,APSE--------------------------------,M32 ,07/06/2023,"10,521.00"
90004234,Early Help,Early Intervention & Prevention,U-Turn Substance Misuse Project,Employees,Training,APT TRAINING & CONSULTANCY LTD,LE7 ,09/06/2023,440.00
92696236,Children's Community Health,Community Health,Public Health 0 - 5 years,Transport Costs,Mileage Allowance,APT TRAINING & CONSULTANCY LTD,LE7 ,28/06/2023,"6,590.00"
92727233,Responsive Repairs,Repairs,Responsive Repairs,Premises Costs,Repairs - Buildings,AQUAM WATER SERVICES,M90 ,28/06/2023,410.25
92727233,Responsive Repairs,Repairs,Responsive Repairs,Premises Costs,Repairs - Buildings,AQUAM WATER SERVICES,M90 ,28/06/2023,990.00
89659233,Learning Disabilities,Adults,Firethorn Close,Supplies and Services,Equipment,AQUATRONIC GROUP MANAGEMENT PLC,CO6 ,07/06/2023,955.00
91446233,Early Years Block,DSG Skills and Attainment,Free Nursery Education Commissioning - three & four  year olds,3rd Party Payments,Contracts - Child Care,REDACTED PERSONAL DATA,SN2 ,21/06/2023,"7,980.00"
91780233,High Needs Block,DSG Skills and Attainment,SEN Resourcing Assessment Panel,3rd Party Payments,Top up funding - Maintained providers Pre 16,REDACTED PERSONAL DATA,SN2 ,21/06/2023,"7,980.00"
89512233,Landscaping & Open Space,Culture & Heritage & Art,Moredon Recreation - Multi Sports Hub,Capital,Professional Fees,ARCHAEOLOGICAL MANAGEMENT SERVICES LTD T/A FOUNDATIONS ARCHAEOLOGY,SN1 ,05/06/2023,950.00
91172337,Mental Health,Adults,Mental Health 65 and over,3rd Party Payments,Nursing Care,ARIA HEALTHCARE GROUP LTD,CO4 ,16/06/2023,"19,071.43"
91172336,Mental Health,Adults,Mental Health 65 and over,3rd Party Payments,Nursing Care,ARIA HEALTHCARE GROUP LTD,CO4 ,16/06/2023,"14,752.11"
91731236,Lydiard Park,Culture & Heritage,Lydiard : Hotel Operations,Supplies and Services,Liquid,ARKELLS BREWERY LTD,SN2 ,21/06/2023,"1,308.06"
89643235,Lydiard Park,Culture & Heritage,Lydiard : Hotel Operations,Supplies and Services,Liquid,ARKELLS BREWERY LTD,SN2 ,07/06/2023,"1,204.55"
90713233,Lydiard Park,Culture & Heritage,Lydiard : Hotel Operations,Supplies and Services,Liquid,ARKELLS BREWERY LTD,SN2 ,14/06/2023,620.80
90073233,Streetsmart,Streetsmart,Waterside Fleet Hires,Transport Costs,Vehicle Hire / Contract,ARNOLD PLANT HIRE LIMITED,SK6 ,09/06/2023,"1,610.00"
90074233,Streetsmart,Streetsmart,Waterside Fleet Hires,Transport Costs,Vehicle Hire / Contract,ARNOLD PLANT HIRE LIMITED,SK6 ,09/06/2023,"1,219.00"
91172334,Mental Health,Adults,Mental Health 65 and over,3rd Party Payments,Residential Care,ARTI CARE HOMES (GLOUCESTER) LIMITED,WD7 ,16/06/2023,"22,114.29"
89549233,Public Health,Public Health,DAAT,3rd Party Payments,Contract Payments,ASDA STORES LTD,LS11,07/06/2023,"1,224.00"
92506233,Communications & Engagement,Communications & Engagement,"Policy, Campaigns and Communications",Supplies and Services,Materials,ASF SIGNS LTD,SN4 ,26/06/2023,425.00
91172267,Mental Health,Adults,Mental Health 18-64,3rd Party Payments,Residential Care,ASH VIEW HOUSE,BS15,16/06/2023,"7,993.72"
91172267,Mental Health,Adults,Mental Health 18-64,3rd Party Payments,Residential Care,ASH VIEW HOUSE,BS15,16/06/2023,"-18,690.90"
91172267,Mental Health,Adults,Mental Health 18-64,3rd Party Payments,Residential Care,ASH VIEW HOUSE,BS15,16/06/2023,"19,984.30"
91172267,Mental Health,Adults,Mental Health 18-64,Income,Client Contribution - Residential,ASH VIEW HOUSE,BS15,16/06/2023,-418.80
90758234,Traded Services,"Education, Inclusion and Skills",Plas Pencelli Outdoor Education Centre,Supplies and Services,Materials,ASHBURNHAM BAKERY,LD3 ,14/06/2023,502.85
91136233,Physical Support,Adults,Physical Support 65 and over,Income,Client Contribution - Residential,ASHBURY LODGE,SN3 ,16/06/2023,-587.40
91136233,Physical Support,Adults,Physical Support 65 and over,3rd Party Payments,Residential Care,ASHBURY LODGE,SN3 ,16/06/2023,"2,560.11"
91136233,Physical Support,Adults,Physical Support 65 and over,3rd Party Payments,Residential Care,ASHBURY LODGE,SN3 ,16/06/2023,"-7,497.49"
91136233,Physical Support,Adults,Physical Support 65 and over,3rd Party Payments,Residential Care,ASHBURY LODGE,SN3 ,16/06/2023,"-6,857.46"
91136233,Physical Support,Adults,Physical Support 65 and over,Income,Client Contribution - Residential,ASHBURY LODGE,SN3 ,16/06/2023,"-1,308.16"
91136233,Physical Support,Adults,Physical Support 65 and over,Income,Client Contribution - Residential,ASHBURY LODGE,SN3 ,16/06/2023,-610.00
91136233,Physical Support,Adults,Physical Support 65 and over,Income,Client Contribution - Residential,ASHBURY LODGE,SN3 ,16/06/2023,-730.76
91136233,Physical Support,Adults,Physical Support 65 and over,3rd Party Payments,Residential Care,ASHBURY LODGE,SN3 ,16/06/2023,-640.03
91136233,Mental Health,Adults,Mental Health 65 and over,3rd Party Payments,Residential Care,ASHBURY LODGE,SN3 ,16/06/2023,"2,988.96"
91136233,Physical Support,Adults,Physical Support 65 and over,3rd Party Payments,Residential Care,ASHBURY LODGE,SN3 ,16/06/2023,"2,867.32"
91136233,Physical Support,Adults,Physical Support 65 and over,Income,Client Contribution - Residential,ASHBURY LODGE,SN3 ,16/06/2023,-886.60
91136233,Physical Support,Adults,Physical Support 65 and over,Income,Client Contribution - Residential,ASHBURY LODGE,SN3 ,16/06/2023,-875.20
91136233,Mental Health,Adults,Mental Health 65 and over,Income,Client Contribution - Residential,ASHBURY LODGE,SN3 ,16/06/2023,-691.20
91136233,Mental Health,Adults,Mental Health 65 and over,3rd Party Payments,Residential Care,ASHBURY LODGE,SN3 ,16/06/2023,"2,867.32"
91136233,Physical Support,Adults,Physical Support 65 and over,3rd Party Payments,Residential Care,ASHBURY LODGE,SN3 ,16/06/2023,"4,032.00"
91136233,Physical Support,Adults,Physical Support 65 and over,3rd Party Payments,Residential Care,ASHBURY LODGE,SN3 ,16/06/2023,"-3,072.13"
91136233,Mental Health,Adults,Mental Health 65 and over,Income,Client Contribution - Residential,ASHBURY LODGE,SN3 ,16/06/2023,-805.32
91136233,Physical Support,Adults,Physical Support 65 and over,3rd Party Payments,Residential Care,ASHBURY LODGE,SN3 ,16/06/2023,"3,379.34"
91136233,Physical Support,Adults,Physical Support 65 and over,3rd Party Payments,Residential Care,ASHBURY LODGE,SN3 ,16/06/2023,716.83
91136233,Physical Support,Adults,Physical Support 65 and over,Income,Client Contribution - Residential,ASHBURY LODGE,SN3 ,16/06/2023,-657.68
91136233,Physical Support,Adults,Physical Support 65 and over,Income,Client Contribution - Residential,ASHBURY LODGE,SN3 ,16/06/2023,"-1,007.09"
91136233,Physical Support,Adults,Physical Support 65 and over,Income,Client Contribution - Residential,ASHBURY LODGE,SN3 ,16/06/2023,-691.20
91136233,Physical Support,Adults,Physical Support 65 and over,3rd Party Payments,Residential Care,ASHBURY LODGE,SN3 ,16/06/2023,"2,252.89"
91136233,Physical Support,Adults,Physical Support 65 and over,3rd Party Payments,Residential Care,ASHBURY LODGE,SN3 ,16/06/2023,"8,397.15"
91136233,Physical Support,Adults,Physical Support 65 and over,3rd Party Payments,Residential Care,ASHBURY LODGE,SN3 ,16/06/2023,"2,560.12"
91136233,Physical Support,Adults,Physical Support 65 and over,3rd Party Payments,Residential Care,ASHBURY LODGE,SN3 ,16/06/2023,"7,680.32"
91136233,Physical Support,Adults,Physical Support 65 and over,3rd Party Payments,Residential Care,ASHBURY LODGE,SN3 ,16/06/2023,"2,668.72"
91136233,Physical Support,Adults,Physical Support 65 and over,3rd Party Payments,Residential Care,ASHBURY LODGE,SN3 ,16/06/2023,"2,662.51"
91136233,Physical Support,Adults,Physical Support 65 and over,Income,Client Contribution - Residential,ASHBURY LODGE,SN3 ,16/06/2023,"-1,020.32"
91136233,Physical Support,Adults,Physical Support 65 and over,Income,Client Contribution - Residential,ASHBURY LODGE,SN3 ,16/06/2023,-627.80
91135233,Physical Support,Adults,Physical Support 65 and over,Income,Client Contribution - Nursing,ASHGROVE HOUSE NURSING HOME,SN5 ,16/06/2023,-677.20
91135233,Physical Support,Adults,Physical Support 65 and over,3rd Party Payments,Nursing Care,ASHGROVE HOUSE NURSING HOME,SN5 ,16/06/2023,"6,080.00"
93131623,Physical Support,Adults,Physical Support 18 - 64,Transfer Payments,Personal Budget - Direct Payments - Domiciliary Care,REDACTED PERSONAL DATA,SN25,30/06/2023,"1,689.94"
89910233,Libraries,"Education, Inclusion and Skills",Library Delivery,Supplies and Services,Materials,ASKEWS AND HOLTS LIBRARY SERVICES LIMITED,PR1 ,09/06/2023,582.62
89328233,Libraries,"Education, Inclusion and Skills",Library Delivery,Supplies and Services,Materials,ASKEWS AND HOLTS LIBRARY SERVICES LIMITED,PR1 ,07/06/2023,"1,372.87"
91078233,Libraries,"Education, Inclusion and Skills",Library Delivery,Supplies and Services,Materials,ASKEWS AND HOLTS LIBRARY SERVICES LIMITED,PR1 ,16/06/2023,960.78
92066233,Libraries,"Education, Inclusion and Skills",Library Delivery,Supplies and Services,Materials,ASKEWS AND HOLTS LIBRARY SERVICES LIMITED,PR1 ,23/06/2023,"1,238.22"
88956233,Libraries,"Education, Inclusion and Skills",Library Delivery,Supplies and Services,Materials,ASKEWS AND HOLTS LIBRARY SERVICES LIMITED,PR1 ,02/06/2023,"2,408.98"
89467234,Libraries,"Education, Inclusion and Skills",Library Delivery,Supplies and Services,Materials,ASKEWS AND HOLTS LIBRARY SERVICES LIMITED,PR1 ,05/06/2023,"1,090.99"
89308234,Libraries,"Education, Inclusion and Skills",Library Delivery,Supplies and Services,Materials,ASKEWS AND HOLTS LIBRARY SERVICES LIMITED,PR1 ,07/06/2023,622.93
91172236,Learning Disabilities,Adults,Learning Disability 18 - 64,Income,Client Contribution - Residential,ASPECTS & MILESTONES TRUST,BS16,16/06/2023,-425.60
91172236,Learning Disabilities,Adults,Learning Disability 18 - 64,3rd Party Payments,Residential Care,ASPECTS & MILESTONES TRUST,BS16,16/06/2023,"-18,820.05"
91172236,Learning Disabilities,Adults,Learning Disability 18 - 64,3rd Party Payments,Residential Care,ASPECTS & MILESTONES TRUST,BS16,16/06/2023,"2,754.15"
91172236,Learning Disabilities,Adults,Learning Disability 18 - 64,3rd Party Payments,Residential Care,ASPECTS & MILESTONES TRUST,BS16,16/06/2023,"20,397.15"
91172236,Learning Disabilities,Adults,Learning Disability 18 - 64,3rd Party Payments,Residential Care,ASPECTS & MILESTONES TRUST,BS16,16/06/2023,"-2,984.95"
91172236,Learning Disabilities,Adults,Learning Disability 18 - 64,3rd Party Payments,Residential Care,ASPECTS & MILESTONES TRUST,BS16,16/06/2023,"6,964.88"
91172275,Mental Health,Adults,Mental Health 65 and over,3rd Party Payments,Supported Lodgings (Childrens)/Supported Living (Adults),ASPECTS 2 LTD,B70 ,16/06/2023,"1,449.60"
91172275,Learning Disabilities,Adults,Learning Disability 18 - 64,Income,Client Contribution - Residential,ASPECTS 2 LTD,B70 ,16/06/2023,-438.80
91172275,Physical Support,Adults,Physical Support 18 - 64,3rd Party Payments,Supported Lodgings (Childrens)/Supported Living (Adults),ASPECTS 2 LTD,B70 ,16/06/2023,"4,200.00"
91172275,Learning Disabilities,Adults,Learning Disability 18 - 64,3rd Party Payments,Residential Care,ASPECTS 2 LTD,B70 ,16/06/2023,"9,278.64"
91229233,Disabled Children,"Children, Families and Community Health Services",DCT Overnight Short Breaks,3rd Party Payments,Respite Care,ASPRIS CHILDREN'S SERVICES,DL1 ,16/06/2023,"15,552.00"
91172297,Learning Disabilities,Adults,Learning Disability 18 - 64,3rd Party Payments,Residential Care,ASTON CARE LIMITED,RG30,16/06/2023,"7,288.00"
91172297,Learning Disabilities,Adults,Learning Disability 18 - 64,3rd Party Payments,Residential Care,ASTON CARE LIMITED,RG30,16/06/2023,592.00
91172297,Learning Disabilities,Adults,Learning Disability 65 and over,3rd Party Payments,Residential Care,ASTON CARE LIMITED,RG30,16/06/2023,"8,008.00"
91172297,Learning Disabilities,Adults,Learning Disability 65 and over,3rd Party Payments,Residential Care,ASTON CARE LIMITED,RG30,16/06/2023,-471.94
91172297,Learning Disabilities,Adults,Learning Disability 18 - 64,3rd Party Payments,Residential Care,ASTON CARE LIMITED,RG30,16/06/2023,"-8,527.18"
91172297,Learning Disabilities,Adults,Learning Disability 18 - 64,3rd Party Payments,Residential Care,ASTON CARE LIMITED,RG30,16/06/2023,572.00
91172297,Learning Disabilities,Adults,Learning Disability 18 - 64,3rd Party Payments,Residential Care,ASTON CARE LIMITED,RG30,16/06/2023,-650.34
91172298,Learning Disabilities,Adults,Learning Disability 18 - 64,3rd Party Payments,Residential Care,ASTON CARE LIMITED,RG30,16/06/2023,"29,201.40"
91172297,Learning Disabilities,Adults,Learning Disability 18 - 64,Income,Client Contribution - Residential,ASTON CARE LIMITED,RG30,16/06/2023,-594.36
91172297,Learning Disabilities,Adults,Learning Disability 65 and over,3rd Party Payments,Residential Care,ASTON CARE LIMITED,RG30,16/06/2023,"1,780.69"
91172297,Learning Disabilities,Adults,Learning Disability 65 and over,3rd Party Payments,Residential Care,ASTON CARE LIMITED,RG30,16/06/2023,572.00
91172297,Learning Disabilities,Adults,Learning Disability 18 - 64,3rd Party Payments,Residential Care,ASTON CARE LIMITED,RG30,16/06/2023,-453.59
91172297,Learning Disabilities,Adults,Learning Disability 18 - 64,3rd Party Payments,Residential Care,ASTON CARE LIMITED,RG30,16/06/2023,520.57
91172297,Learning Disabilities,Adults,Learning Disability 18 - 64,Income,Client Contribution - Residential,ASTON CARE LIMITED,RG30,16/06/2023,-410.80
91172297,Learning Disabilities,Adults,Learning Disability 18 - 64,3rd Party Payments,Residential Care,ASTON CARE LIMITED,RG30,16/06/2023,"1,609.19"
91172297,Learning Disabilities,Adults,Learning Disability 18 - 64,3rd Party Payments,Residential Care,ASTON CARE LIMITED,RG30,16/06/2023,-493.53
91172298,Learning Disabilities,Adults,Learning Disability 18 - 64,3rd Party Payments,Residential Care,ASTON CARE LIMITED,RG30,16/06/2023,"-27,548.52"
91172297,Learning Disabilities,Adults,Learning Disability 18 - 64,3rd Party Payments,Residential Care,ASTON CARE LIMITED,RG30,16/06/2023,"2,623.18"
91172298,Learning Disabilities,Adults,Learning Disability 18 - 64,3rd Party Payments,Residential Care,ASTON CARE LIMITED,RG30,16/06/2023,"9,733.80"
91172297,Learning Disabilities,Adults,Learning Disability 18 - 64,Income,Client Contribution - Residential,ASTON CARE LIMITED,RG30,16/06/2023,"-1,033.20"
91172298,Learning Disabilities,Adults,Learning Disability 18 - 64,Income,Client Contribution - Residential,ASTON CARE LIMITED,RG30,16/06/2023,-262.40
91172297,Learning Disabilities,Adults,Learning Disability 18 - 64,3rd Party Payments,Residential Care,ASTON CARE LIMITED,RG30,16/06/2023,"8,008.00"
91172297,Learning Disabilities,Adults,Learning Disability 18 - 64,3rd Party Payments,Residential Care,ASTON CARE LIMITED,RG30,16/06/2023,"8,288.00"
92204233,NEV,"Economy, Growth and Place",Package 2 - Nythe Road Junction and Piccadilly Roundabout,Capital,Professional Fees,ATKINS LTD,WR4 ,23/06/2023,"16,502.00"
91889233,NEV,"Economy, Growth and Place",Gablecross Junction,Capital,Professional Fees,ATKINS LTD,WR4 ,21/06/2023,"8,250.00"
91471233,Social Care,"Children, Families and Community Health Services",Children's Resource and Home Finding Team,3rd Party Payments,Residential Care,A-TRIANGLE CARE LIMITED,FY5 ,19/06/2023,"25,692.86"
90066233,Social Care,"Children, Families and Community Health Services",CP & CIN Social Work - South,Employees,Temporary / Agency - by Accounts Payable,ATTENTI LTD,EC2R,09/06/2023,"2,124.00"
89154233,Social Care,"Children, Families and Community Health Services",CP & CIN Social Work - South,Employees,Temporary / Agency - by Accounts Payable,ATTENTI LTD,EC2R,02/06/2023,"2,360.00"
92715233,Senior Management Team,"Children, Families and Community Health Services",Senior Management Team - Staffing,Employees,Temporary / Agency - by Accounts Payable,ATTENTI LTD,EC2R,28/06/2023,649.00
92102236,Senior Management Team,"Children, Families and Community Health Services",Senior Management Team - Staffing,Employees,Temporary / Agency - by Accounts Payable,ATTENTI LTD,EC2R,23/06/2023,"14,500.00"
90068233,Senior Management Team,"Children, Families and Community Health Services",Senior Management Team - Staffing,Employees,Temporary / Agency - by Accounts Payable,ATTENTI LTD,EC2R,09/06/2023,"2,596.00"
90128233,Social Care,"Children, Families and Community Health Services",CP & CIN Social Work - South,Employees,Temporary / Agency - by Accounts Payable,ATTENTI LTD,EC2R,12/06/2023,"1,888.00"
92102238,Senior Management Team,"Children, Families and Community Health Services",Senior Management Team - Staffing,Employees,Temporary / Agency - by Accounts Payable,ATTENTI LTD,EC2R,23/06/2023,"4,130.00"
89077233,Senior Management Team,"Children, Families and Community Health Services",Senior Management Team - Staffing,Employees,Temporary / Agency - by Accounts Payable,ATTENTI LTD,EC2R,02/06/2023,"4,130.00"
92121233,Social Care,"Children, Families and Community Health Services",CP & CIN Social Work - South,Employees,Temporary / Agency - by Accounts Payable,ATTENTI LTD,EC2R,23/06/2023,"2,183.00"
90065233,Social Care,"Children, Families and Community Health Services",CP & CIN Social Work - South,Employees,Temporary / Agency - by Accounts Payable,ATTENTI LTD,EC2R,09/06/2023,"2,950.00"
89136233,Senior Management Team,"Children, Families and Community Health Services",Senior Management Team - Staffing,Employees,Temporary / Agency - by Accounts Payable,ATTENTI LTD,EC2R,02/06/2023,"3,245.00"
90127233,Senior Management Team,"Children, Families and Community Health Services",Senior Management Team - Staffing,Employees,Temporary / Agency - by Accounts Payable,ATTENTI LTD,EC2R,12/06/2023,"2,596.00"
89155233,Senior Management Team,"Children, Families and Community Health Services",Senior Management Team - Staffing,Employees,Temporary / Agency - by Accounts Payable,ATTENTI LTD,EC2R,02/06/2023,"3,540.00"
90129233,Social Care,"Children, Families and Community Health Services",CP & CIN Social Work - South,Employees,Temporary / Agency - by Accounts Payable,ATTENTI LTD,EC2R,12/06/2023,"2,183.00"
90236233,Senior Management Team,"Children, Families and Community Health Services",Senior Management Team - Staffing,Employees,Temporary / Agency - by Accounts Payable,ATTENTI LTD,EC2R,12/06/2023,"4,130.00"
90125233,Social Care,"Children, Families and Community Health Services",CP & CIN Social Work - South,Employees,Temporary / Agency - by Accounts Payable,ATTENTI LTD,EC2R,12/06/2023,"1,770.00"
90063233,Social Care,"Children, Families and Community Health Services",CP & CIN Social Work - South,Employees,Temporary / Agency - by Accounts Payable,ATTENTI LTD,EC2R,09/06/2023,"2,183.00"
90126233,Senior Management Team,"Children, Families and Community Health Services",Senior Management Team - Staffing,Employees,Temporary / Agency - by Accounts Payable,ATTENTI LTD,EC2R,12/06/2023,973.50
90067233,Senior Management Team,"Children, Families and Community Health Services",Senior Management Team - Staffing,Employees,Temporary / Agency - by Accounts Payable,ATTENTI LTD,EC2R,09/06/2023,"3,245.00"
90069298,Senior Management Team,"Children, Families and Community Health Services",Senior Management Team - Staffing,Employees,Temporary / Agency - by Accounts Payable,ATTENTI LTD,EC2R,09/06/2023,"2,832.00"
92713233,Social Care,"Children, Families and Community Health Services",CP & CIN Social Work - South,Employees,Temporary / Agency - by Accounts Payable,ATTENTI LTD,EC2R,28/06/2023,"1,888.00"
92105233,Social Care,"Children, Families and Community Health Services",CP & CIN Social Work - South,Employees,Temporary / Agency - by Accounts Payable,ATTENTI LTD,EC2R,23/06/2023,"4,130.00"
91834233,Social Care,"Children, Families and Community Health Services",CP & CIN Social Work - South,Employees,Temporary / Agency - by Accounts Payable,ATTENTI LTD,EC2R,21/06/2023,"2,360.00"
90171233,Social Care,"Children, Families and Community Health Services",CP & CIN Social Work - South,Employees,Temporary / Agency - by Accounts Payable,ATTENTI LTD,EC2R,12/06/2023,"1,888.00"
90069299,Social Care,"Children, Families and Community Health Services",CP & CIN Social Work - South,Employees,Temporary / Agency - by Accounts Payable,ATTENTI LTD,EC2R,09/06/2023,"1,888.00"
89128234,Social Care,"Children, Families and Community Health Services",CP & CIN Social Work - South,Employees,Temporary / Agency - by Accounts Payable,ATTENTI LTD,EC2R,02/06/2023,"2,360.00"
92103233,Senior Management Team,"Children, Families and Community Health Services",Senior Management Team - Staffing,Employees,Temporary / Agency - by Accounts Payable,ATTENTI LTD,EC2R,23/06/2023,649.00
90123233,Senior Management Team,"Children, Families and Community Health Services",Senior Management Team - Staffing,Employees,Temporary / Agency - by Accounts Payable,ATTENTI LTD,EC2R,09/06/2023,"3,540.00"
92120233,Social Care,"Children, Families and Community Health Services",CP & CIN Social Work - South,Employees,Temporary / Agency - by Accounts Payable,ATTENTI LTD,EC2R,23/06/2023,"2,183.00"
91613233,Social Care,"Children, Families and Community Health Services",CP & CIN Social Work - South,Employees,Temporary / Agency - by Accounts Payable,ATTENTI LTD,EC2R,21/06/2023,"2,950.00"
90421233,Social Care,"Children, Families and Community Health Services",CP & CIN Social Work - South,Employees,Temporary / Agency - by Accounts Payable,ATTENTI LTD,EC2R,14/06/2023,"2,360.00"
90420233,Social Care,"Children, Families and Community Health Services",CP & CIN Social Work - South,Employees,Temporary / Agency - by Accounts Payable,ATTENTI LTD,EC2R,14/06/2023,"2,360.00"
90393234,Social Care,"Children, Families and Community Health Services",CP & CIN Social Work - South,Employees,Temporary / Agency - by Accounts Payable,ATTENTI LTD,EC2R,14/06/2023,"2,360.00"
90172233,Social Care,"Children, Families and Community Health Services",CP & CIN Social Work - South,Employees,Temporary / Agency - by Accounts Payable,ATTENTI LTD,EC2R,12/06/2023,"2,950.00"
90122233,Senior Management Team,"Children, Families and Community Health Services",Senior Management Team - Staffing,Employees,Temporary / Agency - by Accounts Payable,ATTENTI LTD,EC2R,09/06/2023,"3,245.00"
90441233,Social Care,"Children, Families and Community Health Services",CP & CIN Social Work - South,Employees,Temporary / Agency - by Accounts Payable,ATTENTI LTD,EC2R,14/06/2023,"1,888.00"
90425233,Social Care,"Children, Families and Community Health Services",CP & CIN Social Work - South,Employees,Temporary / Agency - by Accounts Payable,ATTENTI LTD,EC2R,14/06/2023,"2,183.00"
90064233,Social Care,"Children, Families and Community Health Services",CP & CIN Social Work - South,Employees,Temporary / Agency - by Accounts Payable,ATTENTI LTD,EC2R,09/06/2023,"1,888.00"
89114233,Social Care,"Children, Families and Community Health Services",CP & CIN Social Work - South,Employees,Temporary / Agency - by Accounts Payable,ATTENTI LTD,EC2R,02/06/2023,"2,360.00"
92105234,Senior Management Team,"Children, Families and Community Health Services",Senior Management Team - Staffing,Employees,Temporary / Agency - by Accounts Payable,ATTENTI LTD,EC2R,23/06/2023,"3,540.00"
92834233,Digital & Business Change,Digital & Business Change,IT Operations,Supplies and Services,Equipment,AUDITEL RENTAL & SERVICE LTD,HP12,28/06/2023,"1,030.00"
93131706,Physical Support,Adults,Physical Support 65 and over,Transfer Payments,Personal Budget - Direct Payments - Domiciliary Care,REDACTED PERSONAL DATA,SP11,30/06/2023,"4,204.35"
91172325,Physical Support,Adults,Physical Support 65 and over,3rd Party Payments,Nursing Care,AURA CARE LIVING CIRENCESTER LTD,GL7 ,16/06/2023,"5,400.00"
91172325,Care Management & Safeguarding,Adults,Intermediate Care Team,3rd Party Payments,Residential Care,AURA CARE LIVING CIRENCESTER LTD,GL7 ,16/06/2023,"-10,685.71"
91172325,Mental Health,Adults,Mental Health 18-64,3rd Party Payments,Residential Care,AURA CARE LIVING CIRENCESTER LTD,GL7 ,16/06/2023,"6,720.00"
91172325,Mental Health,Adults,Mental Health 65 and over,3rd Party Payments,Residential Care,AURA CARE LIVING CIRENCESTER LTD,GL7 ,16/06/2023,"5,600.00"
91172325,Mental Health,Adults,Mental Health 18-64,3rd Party Payments,Nursing Care,AURA CARE LIVING CIRENCESTER LTD,GL7 ,16/06/2023,"5,400.00"
91172325,Physical Support,Adults,Physical Support 65 and over,Income,Client Contribution - Nursing,AURA CARE LIVING CIRENCESTER LTD,GL7 ,16/06/2023,-691.20
91172325,Physical Support,Adults,Physical Support 65 and over,Income,Client Contribution - Nursing,AURA CARE LIVING CIRENCESTER LTD,GL7 ,16/06/2023,-735.64
91172325,Care Management & Safeguarding,Adults,Intermediate Care Team,3rd Party Payments,Residential Care,AURA CARE LIVING CIRENCESTER LTD,GL7 ,16/06/2023,"3,800.00"
91172325,Physical Support,Adults,Physical Support 65 and over,Income,Client Contribution - Nursing,AURA CARE LIVING CIRENCESTER LTD,GL7 ,16/06/2023,-396.40
91172325,Mental Health,Adults,Mental Health 18-64,3rd Party Payments,Residential Care,AURA CARE LIVING CIRENCESTER LTD,GL7 ,16/06/2023,"4,600.00"
91172325,Physical Support,Adults,Physical Support 65 and over,3rd Party Payments,Nursing Care,AURA CARE LIVING CIRENCESTER LTD,GL7 ,16/06/2023,"4,400.00"
90689233,Streetsmart,Streetsmart,Waterside Fleet Workshops,Supplies and Services,Equipment,AUTOCRAFT EQUIPMENT LTD,TA12,14/06/2023,710.00
91562234,Streetsmart,Streetsmart,Waterside Fleet Workshops,Supplies and Services,Equipment,AUTOCRAFT EQUIPMENT LTD,TA12,19/06/2023,"5,375.00"
91172307,Learning Disabilities,Adults,Learning Disability 65 and over,3rd Party Payments,Residential Care,AUTONOMY LIFE LIMITED,SN12,16/06/2023,"10,027.60"
91172307,Learning Disabilities,Adults,Learning Disability 65 and over,3rd Party Payments,Residential Care,AUTONOMY LIFE LIMITED,SN12,16/06/2023,"30,082.80"
91172307,Learning Disabilities,Adults,Learning Disability 65 and over,Income,Client Contribution - Residential,AUTONOMY LIFE LIMITED,SN12,16/06/2023,-528.80
91172307,Learning Disabilities,Adults,Learning Disability 65 and over,3rd Party Payments,Residential Care,AUTONOMY LIFE LIMITED,SN12,16/06/2023,"-28,380.00"
91928233,Homelessness and Travellers,Housing Services,Afghan Resettlement,Supplies and Services,Equipment,AVANA FLOORING LIMITED,SN4 ,21/06/2023,928.33
91928233,Homelessness and Travellers,Housing Services,Afghan Resettlement,Supplies and Services,Equipment,AVANA FLOORING LIMITED,SN4 ,21/06/2023,306.67
91532233,Social Care,"Children, Families and Community Health Services",Placement - Care Leaver Team,3rd Party Payments,Semi Independent,AVISANT CONSULTING LTD,EC1V,19/06/2023,"1,660.71"
90242255,Property & Assets,Property & Assets,General Enhancement Works Corporate Buildings,Capital,Contractor Payments,AVISON YOUNG (UK) LTD,B1 2,12/06/2023,"11,297.03"
91485233,Homelessness and Travellers,Housing Services,Homelessness Prevention,Transfer Payments,Payment of Costs,AVIVCO DEVELOPMENTS LTD,N16 ,19/06/2023,"1,581.71"
91148233,Learning Disabilities,Adults,Learning Disability 18 - 64,3rd Party Payments,Residential Care,AVON AUTISTIC FOUNDATION LTD,BS11,16/06/2023,"5,482.04"
91149233,Learning Disabilities,Adults,Learning Disability 18 - 64,Income,Client Contribution - Residential,AVON AUTISTIC FOUNDATION LTD,BS11,16/06/2023,-414.20
91149233,Learning Disabilities,Adults,Learning Disability 18 - 64,3rd Party Payments,Residential Care,AVON AUTISTIC FOUNDATION LTD,BS11,16/06/2023,"7,668.32"
91148233,Learning Disabilities,Adults,Learning Disability 18 - 64,Income,Client Contribution - Residential,AVON AUTISTIC FOUNDATION LTD,BS11,16/06/2023,-438.80
91149233,Learning Disabilities,Adults,Learning Disability 18 - 64,3rd Party Payments,Residential Care,AVON AUTISTIC FOUNDATION LTD,BS11,16/06/2023,"-20,793.68"
91148233,Learning Disabilities,Adults,Learning Disability 18 - 64,3rd Party Payments,Residential Care,AVON AUTISTIC FOUNDATION LTD,BS11,16/06/2023,"16,054.55"
91148233,Learning Disabilities,Adults,Learning Disability 18 - 64,3rd Party Payments,Residential Care,AVON AUTISTIC FOUNDATION LTD,BS11,16/06/2023,"-14,865.31"
91149233,Learning Disabilities,Adults,Learning Disability 18 - 64,3rd Party Payments,Residential Care,AVON AUTISTIC FOUNDATION LTD,BS11,16/06/2023,"22,457.22"
89654234,Streetsmart,Streetsmart,Forest Caf� and Coach House Refurbishment,Capital,Professional Fees,AZURA NETWORKS,BN11,07/06/2023,"1,677.00"
89649237,Streetsmart,Streetsmart,Forest Caf� and Coach House Refurbishment,Capital,Professional Fees,AZURA NETWORKS,OX28,07/06/2023,"1,998.00"
93131698,Physical Support,Adults,Physical Support 65 and over,Transfer Payments,Personal Budget - Direct Payments - Domiciliary Care,REDACTED PERSONAL DATA,2969,30/06/2023,864.26
91172303,Memory & Cognition,Adults,Support for Memory and Cognition 65 and over,3rd Party Payments,Nursing Care,BARCHESTER HEALTHCARE HOMES,GL7 ,16/06/2023,"16,463.60"
91172303,Memory & Cognition,Adults,Support for Memory and Cognition 65 and over,3rd Party Payments,Nursing Care,BARCHESTER HEALTHCARE HOMES,GL7 ,16/06/2023,"-15,679.60"
89641233,School Transport,"Education, Inclusion and Skills",Mainstream School Transport,Employees,Temporary / Agency - by Accounts Payable,BARNES COACHES LTD,SN3 ,07/06/2023,709.84
89641233,School Transport,"Education, Inclusion and Skills",Mainstream School Transport,Transport Costs,Home to School Transport,BARNES COACHES LTD,SN3 ,07/06/2023,"9,462.00"
90532233,Libraries,"Education, Inclusion and Skills",Library Shop,Supplies and Services,Goods for resale,BARNES COACHES LTD,SN3 ,14/06/2023,847.55
92123233,Communications & Engagement,Communications & Engagement,"Policy, Campaigns and Communications",Supplies and Services,Materials,BAY MEDIA LTD,NW5 ,23/06/2023,600.00
90810265,High Needs Block,DSG Skills and Attainment,SEN Resourcing Assessment Panel,3rd Party Payments,Top up funding - Maintained providers Pre 16,BEECHCROFT INFANT SCHOOL,SN2 ,14/06/2023,"2,614.09"
90513248,DSG Other Funding,DSG Skills and Attainment,DFE Additional Grants,3rd Party Payments,Payment of Pupil Premium to school,BEECHCROFT INFANT SCHOOL,SN2 ,14/06/2023,"8,389.00"
90505233,Schools - Primary,DSG Skills and Attainment,Primary School Budgets,3rd Party Payments,Mainstream Delegated Funding,BEECHCROFT INFANT SCHOOL,SN2 ,14/06/2023,"96,892.00"
91404234,DSG Other Funding,DSG Skills and Attainment,DFE Additional Grants,Supplies and Services,Payments to Educational Bodies,BEECHCROFT INFANT SCHOOL,SN2 ,16/06/2023,"3,240.00"
91172264,Learning Disabilities,Adults,Learning Disability 18 - 64,3rd Party Payments,Residential Care,BEECHWOOD COURT LTD,CF10,16/06/2023,"20,830.56"
91172264,Learning Disabilities,Adults,Learning Disability 18 - 64,3rd Party Payments,Residential Care,BEECHWOOD COURT LTD,CF10,16/06/2023,"61,003.78"
91172264,Learning Disabilities,Adults,Learning Disability 18 - 64,3rd Party Payments,Residential Care,BEECHWOOD COURT LTD,CF10,16/06/2023,"29,947.84"
91172264,Learning Disabilities,Adults,Learning Disability 18 - 64,Income,Client Contribution - Residential,BEECHWOOD COURT LTD,CF10,16/06/2023,-322.56
91172264,Learning Disabilities,Adults,Learning Disability 18 - 64,3rd Party Payments,Residential Care,BEECHWOOD COURT LTD,CF10,16/06/2023,"-78,307.54"
91172264,Learning Disabilities,Adults,Learning Disability 18 - 64,3rd Party Payments,Residential Care,BEECHWOOD COURT LTD,CF10,16/06/2023,"-54,467.68"
91172264,Learning Disabilities,Adults,Learning Disability 18 - 64,3rd Party Payments,Residential Care,BEECHWOOD COURT LTD,CF10,16/06/2023,"87,704.39"
92723233,Parking & Bus lanes,Highway Operations and Car Parking,Car Parking,Supplies and Services,Materials,BEMROSE BOOTH PARAGON LTD,HU7 ,28/06/2023,"1,377.13"
93275257,Social Care,"Children, Families and Community Health Services",Children's Resource and Home Finding Team,3rd Party Payments,Residential Care,BENJAMIN UK LIMITED,LU7 ,30/06/2023,"17,121.30"
93275259,Social Care,"Children, Families and Community Health Services",Children's Resource and Home Finding Team,3rd Party Payments,Residential Care,BENJAMIN UK LIMITED,LU7 ,30/06/2023,"17,121.30"
93275258,Social Care,"Children, Families and Community Health Services",Children's Resource and Home Finding Team,3rd Party Payments,Residential Care,BENJAMIN UK LIMITED,LU7 ,30/06/2023,"17,121.30"
91836233,Void Repairs,Supervision & Management,Void Property Repairs,Employees,Temporary / Agency - by Accounts Payable,BEVAN BRITTAN,BS2 ,21/06/2023,"3,132.00"
89642233,Learning Disabilities,Adults,LD Day Services (OK4U),Premises Costs,Waste,BIFFA WASTE SERVICES LTD,HP12,07/06/2023,598.78
92106240,School Transport,"Education, Inclusion and Skills",Special Educational Needs Transport,Transport Costs,Home to School Transport,REDACTED PERSONAL DATA,SN2 ,30/06/2023,812.16
90451233,Supported Employment,Housing Services,EW - Timber,Supplies and Services,Materials,BIRKDALE SALES,HP14,14/06/2023,592.14
90496233,Schools - Primary,DSG Skills and Attainment,Primary School Budgets,3rd Party Payments,Mainstream Delegated Funding,BISHOPSTONE C E PRIMARY SCHOOL,SN6 ,14/06/2023,"27,037.00"
90513240,DSG Other Funding,DSG Skills and Attainment,DFE Additional Grants,3rd Party Payments,Payment of Pupil Premium to school,BISHOPSTONE C E PRIMARY SCHOOL,SN6 ,14/06/2023,"1,660.00"
90742233,Property Estates,Property,Garages & Shops (ex HRA),Premises Costs,Maintenance - Grounds,BISHOPSTONE PARISH COUNCIL,SN1 ,14/06/2023,"1,167.22"
Corporate Card Transaction,Social Care,"Children, Families and Community Health Services",Looked After Children Service,3rd Party Payments,Personal Needs,Bkg*hotel At Booking.C,,16/06/2023,755.92
Corporate Card Transaction,Social Care,"Children, Families and Community Health Services",Looked After Children Service,3rd Party Payments,Cash Support,Bkg*hotel At Booking.C,,23/06/2023,800.42
Corporate Card Transaction,Homelessness and Travellers,Housing Services,Bed and Breakfast Accommodation,Transfer Payments,Payment of Costs,Bkg*hotel At Booking.C,,14/06/2023,546.00
90075233,Streetsmart,Streetsmart,Waterside Fleet Hires,Transport Costs,Vehicle Hire / Contract,BLAKEDALE LTD,PR7 ,09/06/2023,861.35
89719283,Social Care,"Children, Families and Community Health Services",Children's Resource and Home Finding Team,3rd Party Payments,Independent Fostering Agency Placements,BLUE SKY,HA1 ,07/06/2023,"4,582.16"
89719281,Social Care,"Children, Families and Community Health Services",Children's Resource and Home Finding Team,3rd Party Payments,Independent Fostering Agency Placements,BLUE SKY,HA1 ,07/06/2023,"4,582.16"
93271233,Social Care,"Children, Families and Community Health Services",Children's Resource and Home Finding Team,3rd Party Payments,Parent & Child Placements,BLUE SKY,HA1 ,30/06/2023,"6,660.00"
89719279,Social Care,"Children, Families and Community Health Services",Children's Resource and Home Finding Team,3rd Party Payments,Independent Fostering Agency Placements,BLUE SKY,HA1 ,07/06/2023,"5,934.02"
93274233,Social Care,"Children, Families and Community Health Services",Children's Resource and Home Finding Team,3rd Party Payments,Parent & Child Placements,BLUE SKY,HA1 ,30/06/2023,"3,055.08"
89719280,Social Care,"Children, Families and Community Health Services",Children's Resource and Home Finding Team,3rd Party Payments,Independent Fostering Agency Placements,BLUE SKY,HA1 ,07/06/2023,"1,093.68"
93275233,Social Care,"Children, Families and Community Health Services",Children's Resource and Home Finding Team,3rd Party Payments,Parent & Child Placements,BLUE SKY,HA1 ,30/06/2023,"-3,491.52"
93272233,Social Care,"Children, Families and Community Health Services",Children's Resource and Home Finding Team,3rd Party Payments,Parent & Child Placements,BLUE SKY,HA1 ,30/06/2023,"-2,664.00"
89719282,Social Care,"Children, Families and Community Health Services",Children's Resource and Home Finding Team,3rd Party Payments,Independent Fostering Agency Placements,BLUE SKY,HA1 ,07/06/2023,"1,093.68"
93282235,Learning Disabilities,Adults,Learning Disability 18 - 64,3rd Party Payments,Personal Budget - Domiciliary care,BLUEBIRD CARE (SWINDON),SN25,30/06/2023,"1,244.76"
90975233,Learning Disabilities,Adults,Learning Disability 18 - 64,3rd Party Payments,Personal Budget - Domiciliary care,BLUEBIRD CARE (SWINDON),SN25,16/06/2023,"1,194.16"
93282236,Physical Support,Adults,Physical Support 18 - 64,3rd Party Payments,Personal Budget - Domiciliary care,BLUEBIRD CARE (SWINDON),SN25,30/06/2023,"1,234.64"
90978233,Physical Support,Adults,Physical Support 65 and over,3rd Party Payments,Personal Budget - Domiciliary care,BLUEBIRD CARE (SWINDON),SN25,16/06/2023,"1,720.40"
90970233,Learning Disabilities,Adults,Learning Disability 18 - 64,3rd Party Payments,Personal Budget - Domiciliary care,BLUEBIRD CARE (SWINDON),SN25,16/06/2023,809.60
90971233,Learning Disabilities,Adults,Learning Disability 18 - 64,3rd Party Payments,Personal Budget - Domiciliary care,BLUEBIRD CARE (SWINDON),SN25,16/06/2023,809.60
88951233,Physical Support,Adults,Physical Support 65 and over,3rd Party Payments,Personal Budget - Domiciliary care,BLUEBIRD CARE (SWINDON),SN25,02/06/2023,"1,558.48"
90197255,Physical Support,Adults,Physical Support 18 - 64,3rd Party Payments,Personal Budget - Domiciliary care,BLUEBIRD CARE (SWINDON),SN25,12/06/2023,931.04
93282237,Physical Support,Adults,Physical Support 65 and over,3rd Party Payments,Personal Budget - Domiciliary care,BLUEBIRD CARE (SWINDON),SN25,30/06/2023,"1,998.70"
90974233,Learning Disabilities,Adults,Learning Disability 18 - 64,3rd Party Payments,Personal Budget - Domiciliary care,BLUEBIRD CARE (SWINDON),SN25,16/06/2023,"1,153.68"
90972233,Learning Disabilities,Adults,Learning Disability 18 - 64,3rd Party Payments,Personal Budget - Domiciliary care,BLUEBIRD CARE (SWINDON),SN25,16/06/2023,546.48
90977233,Physical Support,Adults,Physical Support 18 - 64,3rd Party Payments,Personal Budget - Domiciliary care,BLUEBIRD CARE (SWINDON),SN25,16/06/2023,"1,012.00"
90740233,Streetsmart,Streetsmart,Waterside Fleet Workshops,Supplies and Services,Equipment,BOC LTD,M28 ,14/06/2023,618.91
91172290,Mental Health,Adults,Mental Health 65 and over,3rd Party Payments,Residential Care,BOLEALLER HOUSE LTD,EX15,16/06/2023,"15,520.84"
91172290,Mental Health,Adults,Mental Health 65 and over,3rd Party Payments,Residential Care,BOLEALLER HOUSE LTD,EX15,16/06/2023,"-13,820.87"
91172290,Mental Health,Adults,Mental Health 65 and over,3rd Party Payments,Residential Care,BOLEALLER HOUSE LTD,EX15,16/06/2023,"5,299.80"
89955239,Libraries,"Education, Inclusion and Skills",Library Delivery,Supplies and Services,Materials,BOLINDA UK LTD,RG14,09/06/2023,437.04
90595234,Libraries,"Education, Inclusion and Skills",Library Delivery,Supplies and Services,Materials,BOLINDA UK LTD,RG14,14/06/2023,"5,284.17"
89955240,Libraries,"Education, Inclusion and Skills",Library Delivery,Supplies and Services,Materials,BOLINDA UK LTD,RG14,09/06/2023,437.04
90136233,Libraries,"Education, Inclusion and Skills",Library Delivery,Supplies and Services,Materials,BOLINDA UK LTD,RG14,12/06/2023,"4,906.89"
92803233,Physical Support,Adults,Fessey House,Supplies and Services,Food,BOOKER LIMITED,CH5 ,28/06/2023,296.59
91712233,Physical Support,Adults,Fessey House,Supplies and Services,Food,BOOKER LIMITED,CH5 ,21/06/2023,112.92
89332233,Physical Support,Adults,Fessey House,Supplies and Services,Food,BOOKER LIMITED,CH5 ,05/06/2023,421.60
91704234,Physical Support,Adults,Fessey House,Supplies and Services,Food,BOOKER LIMITED,CH5 ,21/06/2023,246.11
91704234,Physical Support,Adults,Fessey House,Supplies and Services,Food,BOOKER LIMITED,CH5 ,21/06/2023,224.45
91712233,Physical Support,Adults,Fessey House,Supplies and Services,Food,BOOKER LIMITED,CH5 ,21/06/2023,418.53
89332233,Physical Support,Adults,Fessey House,Supplies and Services,Food,BOOKER LIMITED,CH5 ,05/06/2023,107.70
92803233,Physical Support,Adults,Fessey House,Supplies and Services,Food,BOOKER LIMITED,CH5 ,28/06/2023,671.98
91170233,Physical Support,Adults,Physical Support 65 and over,3rd Party Payments,Nursing Care,BOTHWELLS LTD,HA6 ,16/06/2023,"3,879.95"
91170233,Physical Support,Adults,Physical Support 65 and over,3rd Party Payments,Nursing Care,BOTHWELLS LTD,HA6 ,16/06/2023,"4,654.84"
91170233,Physical Support,Adults,Physical Support 65 and over,Income,Client Contribution - Nursing,BOTHWELLS LTD,HA6 ,16/06/2023,-781.40
91170233,Physical Support,Adults,Physical Support 65 and over,3rd Party Payments,Nursing Care,BOTHWELLS LTD,HA6 ,16/06/2023,"-3,686.55"
91170233,Physical Support,Adults,Physical Support 65 and over,3rd Party Payments,Nursing Care,BOTHWELLS LTD,HA6 ,16/06/2023,"2,867.32"
91170233,Physical Support,Adults,Physical Support 65 and over,3rd Party Payments,Nursing Care,BOTHWELLS LTD,HA6 ,16/06/2023,"-2,969.72"
91170233,Physical Support,Adults,Physical Support 65 and over,Income,Client Contribution - Nursing,BOTHWELLS LTD,HA6 ,16/06/2023,-888.69
91170233,Physical Support,Adults,Physical Support 65 and over,3rd Party Payments,Nursing Care,BOTHWELLS LTD,HA6 ,16/06/2023,"13,632.03"
91170233,Physical Support,Adults,Physical Support 65 and over,3rd Party Payments,Nursing Care,BOTHWELLS LTD,HA6 ,16/06/2023,"-12,171.49"
91170233,Physical Support,Adults,Physical Support 65 and over,3rd Party Payments,Nursing Care,BOTHWELLS LTD,HA6 ,16/06/2023,"-5,217.87"
91170233,Physical Support,Adults,Physical Support 65 and over,3rd Party Payments,Nursing Care,BOTHWELLS LTD,HA6 ,16/06/2023,"-7,497.49"
91170233,Physical Support,Adults,Physical Support 18 - 64,3rd Party Payments,Nursing Care,BOTHWELLS LTD,HA6 ,16/06/2023,"2,867.32"
91170233,Physical Support,Adults,Physical Support 65 and over,Income,Client Contribution - Nursing,BOTHWELLS LTD,HA6 ,16/06/2023,-691.20
91170233,Physical Support,Adults,Physical Support 65 and over,Income,Client Contribution - Nursing,BOTHWELLS LTD,HA6 ,16/06/2023,-779.00
91170233,Physical Support,Adults,Physical Support 65 and over,Income,Client Contribution - Nursing,BOTHWELLS LTD,HA6 ,16/06/2023,-909.16
91170233,Physical Support,Adults,Physical Support 65 and over,3rd Party Payments,Nursing Care,BOTHWELLS LTD,HA6 ,16/06/2023,"3,746.16"
91170233,Physical Support,Adults,Physical Support 65 and over,3rd Party Payments,Nursing Care,BOTHWELLS LTD,HA6 ,16/06/2023,"2,969.72"
91170233,Physical Support,Adults,Physical Support 18 - 64,3rd Party Payments,Nursing Care,BOTHWELLS LTD,HA6 ,16/06/2023,"8,397.15"
91170233,Physical Support,Adults,Physical Support 65 and over,3rd Party Payments,Nursing Care,BOTHWELLS LTD,HA6 ,16/06/2023,"3,686.55"
91170233,Physical Support,Adults,Physical Support 65 and over,3rd Party Payments,Nursing Care,BOTHWELLS LTD,HA6 ,16/06/2023,"3,733.20"
91170233,Physical Support,Adults,Physical Support 65 and over,3rd Party Payments,Nursing Care,BOTHWELLS LTD,HA6 ,16/06/2023,"3,270.76"
91170233,Physical Support,Adults,Physical Support 65 and over,Income,Client Contribution - Nursing,BOTHWELLS LTD,HA6 ,16/06/2023,-608.80
91170233,Physical Support,Adults,Physical Support 65 and over,Income,Client Contribution - Nursing,BOTHWELLS LTD,HA6 ,16/06/2023,-659.80
91170233,Physical Support,Adults,Physical Support 18 - 64,3rd Party Payments,Nursing Care,BOTHWELLS LTD,HA6 ,16/06/2023,"-7,497.49"
91170233,Physical Support,Adults,Physical Support 65 and over,3rd Party Payments,Nursing Care,BOTHWELLS LTD,HA6 ,16/06/2023,"8,397.15"
91170233,Physical Support,Adults,Physical Support 18 - 64,Income,Client Contribution - Nursing,BOTHWELLS LTD,HA6 ,16/06/2023,-425.60
91170233,Physical Support,Adults,Physical Support 18 - 64,Income,Client Contribution - Nursing,BOTHWELLS LTD,HA6 ,16/06/2023,-414.20
92881242,Responsive Repairs,Repairs,Responsive Repairs,3rd Party Payments,Contract Payments,BOUNDARY SCAFFOLDING LTD,SN6 ,28/06/2023,660.00
90564241,Responsive Repairs,Repairs,Responsive Repairs,3rd Party Payments,Contract Payments,BOUNDARY SCAFFOLDING LTD,SN6 ,14/06/2023,72.00
89765239,Responsive Repairs,Repairs,Responsive Repairs,3rd Party Payments,Contract Payments,BOUNDARY SCAFFOLDING LTD,SN6 ,07/06/2023,960.00
90564241,Responsive Repairs,Repairs,Responsive Repairs,3rd Party Payments,Contract Payments,BOUNDARY SCAFFOLDING LTD,SN6 ,14/06/2023,144.00
90564243,Responsive Repairs,Repairs,Responsive Repairs,3rd Party Payments,Contract Payments,BOUNDARY SCAFFOLDING LTD,SN6 ,14/06/2023,960.00
Corporate Card Transaction,Legal Services,Legal Services,Legal Services,Employees,Training,Bpp Professional Educatio,,01/06/2023,"1,382.00"
91783233,High Needs Block,DSG Skills and Attainment,SEN Resourcing Assessment Panel,3rd Party Payments,Top up funding - Maintained providers Pre 16,BRAMBLE HOUSE DAY NURSERY LTD,SN2 ,21/06/2023,900.00
91446234,Early Years Block,DSG Skills and Attainment,Free Nursery Education Commissioning - three & four  year olds,3rd Party Payments,Contracts - Child Care,BRAMBLE HOUSE DAY NURSERY LTD,SN2 ,21/06/2023,836.00
91446236,Early Years Block,DSG Skills and Attainment,Free Nursery Education Commissioning - three & four  year olds,3rd Party Payments,Contracts - Child Care,BRAMBLE HOUSE DAY NURSERY LTD,SN2 ,21/06/2023,608.00
91465233,Social Care,"Children, Families and Community Health Services",Children's Resource and Home Finding Team,3rd Party Payments,Residential Care,BRANAS ISAF LIMITED,EN6 ,19/06/2023,"23,785.80"
90477233,Museums & Heritage,Culture & Heritage,Steam:Income Generation,Supplies and Services,Goods for resale,BRANDART LTD,CO4 ,14/06/2023,799.50
89958234,DSG Other Funding,DSG Skills and Attainment,LAC pupil premium,Supplies and Services,Services,BRENTSIDE HIGH SCHOOL,W7 1,09/06/2023,600.00
93236234,Planned Maintenance Programme,HRA Capital Financing,Improvements,Capital,Contractor Payments,BRISTOL FIRE,BS37,30/06/2023,"1,474.60"
91743233,,,Balance Sheet,Balance Sheet & Recharge,British Telecom invoices,BRITISH TELECOMMUNICATIONS PLC,NE82,21/06/2023,"21,441.89"
90201233,Corporate,Corporate Finance,Corporate Financial Management,Supplies and Services,Fees,BROADSTONE CONSULTANTS & ACTUARIES LTD,BS1 ,12/06/2023,"3,328.75"
89999233,Corporate,Corporate Finance,Corporate Financial Management,Supplies and Services,Fees,BROADSTONE CONSULTANTS & ACTUARIES LTD,BS1 ,09/06/2023,"1,837.50"
92817239,Other Repairs,Repairs,Unallocated job costs from OPEN system,Premises Costs,Maintenance - Buildings,BROADWATER TECHNOLOGIES LTD,BS37,28/06/2023,530.00
93263233,Property Management,Property,Corporate Repairs & Maintenance Programme,Premises Costs,Maintenance - Buildings,BROADWATER TECHNOLOGIES LTD,BS37,30/06/2023,575.00
91547235,Other Repairs,Repairs,Unallocated job costs from OPEN system,Premises Costs,Maintenance - Buildings,BROADWATER TECHNOLOGIES LTD,BS37,19/06/2023,602.55
90705233,Public Health,Public Health,DAAT,3rd Party Payments,Contract Payments,BROADWAY LODGE LTD,BS24,14/06/2023,"5,600.00"
89062233,Public Health,Public Health,DAAT,3rd Party Payments,Contract Payments,BROADWAY LODGE LTD,BS24,02/06/2023,"4,400.00"
90711235,Disabled Children,"Children, Families and Community Health Services",DCT Daytime Short Breaks,3rd Party Payments,Day Care,BRUNEL EDUCATION,SN25,14/06/2023,660.00
90582234,Disabled Children,"Children, Families and Community Health Services",DCT Daytime Short Breaks,3rd Party Payments,Day Care,BRUNEL EDUCATION,SN25,14/06/2023,627.00
90810357,High Needs Block,DSG Skills and Attainment,Post 16 - New Responsibilties,3rd Party Payments,Independent Service Provider- Post 16,BRUNEL EDUCATION,SN25,14/06/2023,"112,221.50"
90644233,Disabled Children,"Children, Families and Community Health Services",DCT Daytime Short Breaks,3rd Party Payments,Day Care,BRUNEL EDUCATION,SN25,14/06/2023,902.00
90653233,Disabled Children,"Children, Families and Community Health Services",DCT Daytime Short Breaks,3rd Party Payments,Day Care,BRUNEL EDUCATION,SN25,14/06/2023,698.50
90810321,High Needs Block,DSG Skills and Attainment,SEN Resourcing Assessment Panel,3rd Party Payments,Top up funding - Academies and Free Schools Pre 16,BRUNEL EDUCATION,SN25,14/06/2023,"10,442.71"
91724234,Disabled Children,"Children, Families and Community Health Services",Aiming High for Disabled Children,Supplies and Services,Services,BRUNEL EDUCATION,SN25,21/06/2023,"2,341.10"
90583234,Disabled Children,"Children, Families and Community Health Services",DCT Daytime Short Breaks,3rd Party Payments,Day Care,BRUNEL EDUCATION,SN25,14/06/2023,660.00
90716233,Disabled Children,"Children, Families and Community Health Services",DCT Daytime Short Breaks,3rd Party Payments,Day Care,BRUNEL EDUCATION,SN25,14/06/2023,508.20
90718233,Disabled Children,"Children, Families and Community Health Services",DCT Daytime Short Breaks,3rd Party Payments,Day Care,BRUNEL EDUCATION,SN25,14/06/2023,528.00
90717233,Disabled Children,"Children, Families and Community Health Services",DCT Daytime Short Breaks,3rd Party Payments,Day Care,BRUNEL EDUCATION,SN25,14/06/2023,528.00
90737234,Disabled Children,"Children, Families and Community Health Services",DCT Daytime Short Breaks,3rd Party Payments,Day Care,BRUNEL EDUCATION,SN25,14/06/2023,660.00
90810327,High Needs Block,DSG Skills and Attainment,SEN Resourcing Assessment Panel,3rd Party Payments,Top up funding - Academies and Free Schools Pre 16,REDACTED PERSONAL DATA,SN25,14/06/2023,"209,624.70"
90810347,High Needs Block,DSG Skills and Attainment,SEN Resourcing Assessment Panel,3rd Party Payments,Top up funding - Academies and Free Schools Pre 16,REDACTED PERSONAL DATA,SN25,14/06/2023,"21,422.08"
90520236,High Needs Block,DSG Skills and Attainment,Advisory Teacher Services,Supplies and Services,Payments to Educational Bodies,REDACTED PERSONAL DATA,SN25,14/06/2023,"11,325.00"
90520235,High Needs Block,DSG Skills and Attainment,Advisory Teacher Services,Supplies and Services,Payments to Educational Bodies,REDACTED PERSONAL DATA,SN25,14/06/2023,"7,250.00"
90810305,High Needs Block,DSG Skills and Attainment,SEN Resourcing Assessment Panel,3rd Party Payments,Top up funding - Academies and Free Schools Pre 16,REDACTED PERSONAL DATA,SN25,14/06/2023,"2,132.08"
90810322,High Needs Block,DSG Skills and Attainment,SEN Resourcing Assessment Panel,3rd Party Payments,Top up funding - Academies and Free Schools Pre 16,REDACTED PERSONAL DATA,SN25,14/06/2023,"28,209.38"
90810335,High Needs Block,DSG Skills and Attainment,SEN Resourcing Assessment Panel,3rd Party Payments,Top up funding - Academies and Free Schools Pre 16,REDACTED PERSONAL DATA,SN25,14/06/2023,"29,070.81"
90810324,High Needs Block,DSG Skills and Attainment,SEN Resourcing Assessment Panel,3rd Party Payments,Top up funding - Academies and Free Schools Pre 16,REDACTED PERSONAL DATA,SN25,14/06/2023,"136,433.19"
90810342,High Needs Block,DSG Skills and Attainment,SEN Resourcing Assessment Panel,3rd Party Payments,Top up funding - Academies and Free Schools Pre 16,REDACTED PERSONAL DATA,SN25,14/06/2023,"9,249.73"
92188233,High Needs Block,DSG Skills and Attainment,SEN Resourcing Assessment Panel,Supplies and Services,Services,REDACTED PERSONAL DATA,SN2 ,23/06/2023,"4,555.00"
90810346,High Needs Block,DSG Skills and Attainment,SEN Resourcing Assessment Panel,3rd Party Payments,Top up funding - Academies and Free Schools Pre 16,REDACTED PERSONAL DATA,SN25,14/06/2023,"19,016.66"
92187233,High Needs Block,DSG Skills and Attainment,SEN Resourcing Assessment Panel,Supplies and Services,Services,REDACTED PERSONAL DATA,SN2 ,23/06/2023,"12,960.00"
90810350,High Needs Block,DSG Skills and Attainment,SEN Resourcing Assessment Panel,3rd Party Payments,Top up funding - Academies and Free Schools Post 16,REDACTED PERSONAL DATA,SN25,14/06/2023,"49,927.43"
90417233,Early Years Block,DSG Skills and Attainment,Free Nursery Education Commissioning - three & four  year olds,3rd Party Payments,Contracts - Child Care,REDACTED PERSONAL DATA,SN25,14/06/2023,"6,258.39"
90810323,High Needs Block,DSG Skills and Attainment,SEN Resourcing Assessment Panel,3rd Party Payments,Top up funding - Academies and Free Schools Pre 16,REDACTED PERSONAL DATA,SN25,14/06/2023,"80,424.41"
90810320,High Needs Block,DSG Skills and Attainment,SEN Resourcing Assessment Panel,3rd Party Payments,Top up funding - Academies and Free Schools Pre 16,REDACTED PERSONAL DATA,SN25,14/06/2023,"117,559.99"
91898233,Highways Inspections & Maintenance,Highway Operations and Car Parking,Highway Maintenance,3rd Party Payments,Contract Payments,BRUNEL SURVEYS LTD,CM20,21/06/2023,"7,970.00"
90196233,NEV,"Economy, Growth and Place",Southern Connector Road,Capital,Consultants,BRUTON KNOWLES,GL2 ,12/06/2023,"3,026.05"
90452233,Supported Employment,Housing Services,EW - Timber,Supplies and Services,Materials,BSW TIMBER LIMITED,TD4 ,14/06/2023,"6,517.44"
92894233,NEV,"Economy, Growth and Place",Southern Connector Road,Capital,Contractor Payments,BUCKINGHAM GROUP CONTRACTING LIMITED,MK18,28/06/2023,"1,602,509.02"
91591233,Small New Build Schemes,HRA Capital Financing,Ventnor Close,Capital,Professional Fees,BUILDTECH SW LIMITED,GL53,21/06/2023,"1,945.00"
91591233,Small New Build Schemes,HRA Capital Financing,Ventnor Close,Capital,Professional Fees,BUILDTECH SW LIMITED,GL53,21/06/2023,"1,890.00"
91172335,Physical Support,Adults,Physical Support 65 and over,3rd Party Payments,Residential Care,BUPA CARE HOME (ANS) LTD,LS5 ,16/06/2023,"9,114.29"
90202233,Corporate,Corporate Finance,Corporate Financial Management,Supplies and Services,Fees,BURGES SALMON,BS2 ,12/06/2023,"2,750.00"
92791233,Human Resources and Organisational Development,"People, Culture and Organisational Resilience",HR System,Employees,Temporary / Agency - by Accounts Payable,BURMAN HR,DT1 ,28/06/2023,"2,858.10"
89502233,Human Resources and Organisational Development,"People, Culture and Organisational Resilience",HR System,Employees,Temporary / Agency - by Accounts Payable,BURMAN HR,DT1 ,07/06/2023,"2,554.05"
91554233,Human Resources and Organisational Development,"People, Culture and Organisational Resilience",HR System,Employees,Temporary / Agency - by Accounts Payable,BURMAN HR,DT1 ,19/06/2023,"2,389.86"
92792233,Human Resources and Organisational Development,"People, Culture and Organisational Resilience",HR System,Employees,Temporary / Agency - by Accounts Payable,BURMAN HR,DT1 ,28/06/2023,"2,858.10"
90311233,Early Years Block,DSG Skills and Attainment,Free Nursery Education Commissioning - two year olds,3rd Party Payments,Contracts - Child Care,"BUSY BEES, BROOME MANOR",SN3 ,14/06/2023,718.53
91784233,High Needs Block,DSG Skills and Attainment,SEN Resourcing Assessment Panel,3rd Party Payments,Top up funding - Maintained providers Pre 16,"BUSY BEES, BROOME MANOR",SN3 ,21/06/2023,624.00
90310233,Early Years Block,DSG Skills and Attainment,Free Nursery Education Commissioning - three & four  year olds,3rd Party Payments,Contracts - Child Care,"BUSY BEES, BROOME MANOR",SN3 ,14/06/2023,"15,379.89"
91785233,High Needs Block,DSG Skills and Attainment,SEN Resourcing Assessment Panel,3rd Party Payments,Top up funding - Maintained providers Pre 16,"BUSY BEES, PEATMOOR",SN5 ,21/06/2023,624.00
90313233,Early Years Block,DSG Skills and Attainment,Free Nursery Education Commissioning - three & four  year olds,3rd Party Payments,Contracts - Child Care,"BUSY BEES, PEATMOOR",SN5 ,14/06/2023,"15,025.08"
90312233,Early Years Block,DSG Skills and Attainment,Free Nursery Education Commissioning - two year olds,3rd Party Payments,Contracts - Child Care,"BUSY BEES, PEATMOOR",SN5 ,14/06/2023,718.53
90308233,Early Years Block,DSG Skills and Attainment,Free Nursery Education Commissioning - three & four  year olds,3rd Party Payments,Contracts - Child Care,"BUSY BEES, ST ANDREWS RIDGE",SN25,14/06/2023,"21,056.94"
90309233,Early Years Block,DSG Skills and Attainment,Free Nursery Education Commissioning - two year olds,3rd Party Payments,Contracts - Child Care,"BUSY BEES, ST ANDREWS RIDGE",SN25,14/06/2023,718.53
89653234,Property & Assets,Property & Assets,General Enhancement Works Corporate Buildings,Capital,Contractor Payments,C G UTILITIES LTD,GU5 ,07/06/2023,"1,659.99"
91172249,Learning Disabilities,Adults,Learning Disability 18 - 64,Income,Client Contribution - Residential,C.H.O.I.C.E LTD,RG12,16/06/2023,-391.00
91172248,Learning Disabilities,Adults,Learning Disability 65 and over,3rd Party Payments,Residential Care,C.H.O.I.C.E LTD,RG12,16/06/2023,"10,516.64"
91172248,Learning Disabilities,Adults,Learning Disability 65 and over,3rd Party Payments,Residential Care,C.H.O.I.C.E LTD,RG12,16/06/2023,"-24,590.00"
91172244,Learning Disabilities,Adults,Learning Disability 18 - 64,3rd Party Payments,Residential Care,C.H.O.I.C.E LTD,RG12,16/06/2023,"13,440.00"
91172250,Learning Disabilities,Adults,Learning Disability 18 - 64,Income,Client Contribution - Residential,C.H.O.I.C.E LTD,RG12,16/06/2023,-454.80
91172250,Learning Disabilities,Adults,Learning Disability 18 - 64,Income,Client Contribution - Residential,C.H.O.I.C.E LTD,RG12,16/06/2023,-276.60
91172246,Learning Disabilities,Adults,Learning Disability 18 - 64,Income,Client Contribution - Residential,C.H.O.I.C.E LTD,RG12,16/06/2023,-415.00
91172249,Learning Disabilities,Adults,Learning Disability 65 and over,Income,Client Contribution - Residential,C.H.O.I.C.E LTD,RG12,16/06/2023,-617.76
91172249,Learning Disabilities,Adults,Learning Disability 18 - 64,3rd Party Payments,Residential Care,C.H.O.I.C.E LTD,RG12,16/06/2023,"9,887.36"
91172247,Learning Disabilities,Adults,Learning Disability 18 - 64,3rd Party Payments,Residential Care,C.H.O.I.C.E LTD,SO23,16/06/2023,"8,203.60"
91172246,Learning Disabilities,Adults,Learning Disability 18 - 64,3rd Party Payments,Residential Care,C.H.O.I.C.E LTD,RG12,16/06/2023,"-32,300.00"
91172244,Learning Disabilities,Adults,Learning Disability 18 - 64,Income,Client Contribution - Residential,C.H.O.I.C.E LTD,RG12,16/06/2023,-298.20
91172250,Physical Support,Adults,Physical Support 18 - 64,Income,Client Contribution - Residential,C.H.O.I.C.E LTD,RG12,16/06/2023,-414.20
91172248,Learning Disabilities,Adults,Learning Disability 65 and over,Income,Client Contribution - Residential,C.H.O.I.C.E LTD,RG12,16/06/2023,-607.60
91172248,Learning Disabilities,Adults,Learning Disability 65 and over,3rd Party Payments,Residential Care,C.H.O.I.C.E LTD,RG12,16/06/2023,"24,655.80"
91172249,Learning Disabilities,Adults,Learning Disability 65 and over,Income,Client Contribution - Residential,C.H.O.I.C.E LTD,RG12,16/06/2023,-639.20
91172248,Learning Disabilities,Adults,Learning Disability 65 and over,Income,Client Contribution - Residential,C.H.O.I.C.E LTD,RG12,16/06/2023,-773.20
91172246,Learning Disabilities,Adults,Learning Disability 18 - 64,3rd Party Payments,Residential Care,C.H.O.I.C.E LTD,RG12,16/06/2023,"34,535.20"
91172245,Learning Disabilities,Adults,Learning Disability 18 - 64,Income,Client Contribution - Residential,C.H.O.I.C.E LTD,RG12,16/06/2023,-423.00
91172248,Learning Disabilities,Adults,Learning Disability 65 and over,3rd Party Payments,Residential Care,C.H.O.I.C.E LTD,RG12,16/06/2023,"9,862.32"
91172249,Learning Disabilities,Adults,Learning Disability 65 and over,3rd Party Payments,Residential Care,C.H.O.I.C.E LTD,RG12,16/06/2023,"9,797.76"
91172248,Learning Disabilities,Adults,Learning Disability 65 and over,3rd Party Payments,Residential Care,C.H.O.I.C.E LTD,RG12,16/06/2023,"-23,060.00"
91172248,Learning Disabilities,Adults,Learning Disability 65 and over,3rd Party Payments,Residential Care,C.H.O.I.C.E LTD,RG12,16/06/2023,"26,291.60"
91172250,Learning Disabilities,Adults,Learning Disability 18 - 64,3rd Party Payments,Residential Care,C.H.O.I.C.E LTD,RG12,16/06/2023,"11,468.00"
91172250,Learning Disabilities,Adults,Learning Disability 18 - 64,3rd Party Payments,Residential Care,C.H.O.I.C.E LTD,RG12,16/06/2023,"12,384.00"
91172246,Learning Disabilities,Adults,Learning Disability 18 - 64,3rd Party Payments,Residential Care,C.H.O.I.C.E LTD,RG12,16/06/2023,"13,814.08"
91172245,Learning Disabilities,Adults,Learning Disability 18 - 64,3rd Party Payments,Residential Care,C.H.O.I.C.E LTD,RG12,16/06/2023,"8,992.00"
91172250,Physical Support,Adults,Physical Support 18 - 64,3rd Party Payments,Residential Care,C.H.O.I.C.E LTD,RG12,16/06/2023,"10,222.80"
91172249,Learning Disabilities,Adults,Learning Disability 65 and over,3rd Party Payments,Residential Care,C.H.O.I.C.E LTD,RG12,16/06/2023,"10,380.16"
92847233,Physical Support,Adults,Physical Support 65 and over,3rd Party Payments,Residential Care,CAERPHILLY COUNTY BOROUGH COUNCIL,CF82,28/06/2023,"56,304.38"
92848233,Physical Support,Adults,Physical Support 65 and over,3rd Party Payments,Residential Care,CAERPHILLY COUNTY BOROUGH COUNCIL,CF82,28/06/2023,"-8,638.48"
91296233,Social Care,"Children, Families and Community Health Services",Children's Resource and Home Finding Team,3rd Party Payments,Residential Care,CALCOT SERVICES FOR CHILDREN LTD,RG7 ,16/06/2023,"28,928.40"
91295233,Social Care,"Children, Families and Community Health Services",Children's Resource and Home Finding Team,3rd Party Payments,Residential Care,CALCOT SERVICES FOR CHILDREN LTD,RG7 ,16/06/2023,"28,414.20"
92584235,Social Care,"Children, Families and Community Health Services",Children's Resource and Home Finding Team,3rd Party Payments,Independent Fostering Agency Placements,CALDECOTT FOSTERING LTD,TN25,26/06/2023,"6,915.90"
93131543,Learning Disabilities,Adults,Learning Disability 18 - 64,Transfer Payments,Personal Budget - Direct Payments - Domiciliary Care,REDACTED PERSONAL DATA,SP11,30/06/2023,"2,053.88"
93131639,Learning Disabilities,Adults,Learning Disability 18 - 64,Transfer Payments,Personal Budget - Direct Payments - Domiciliary Care,REDACTED PERSONAL DATA,SP11,30/06/2023,707.37
90709235,Lydiard Park,Culture & Heritage,Lydiard : Hotel Operations,Premises Costs,Gas,CALOR GAS LTD,CV34,14/06/2023,"1,957.41"
91464233,Social Care,"Children, Families and Community Health Services",Children's Resource and Home Finding Team,3rd Party Payments,Residential Care,CAMBIAN CHILDCARE LTD,EN6 ,19/06/2023,"25,427.10"
93131275,Physical Support,Adults,Physical Support 18 - 64,Transfer Payments,Personal Budget - Direct Payments - Domiciliary Care,REDACTED PERSONAL DATA,SN25,30/06/2023,940.61
92826234,Business Development,Supervision & Management,ICT & Administration,Supplies and Services,Equipment,CAPITA BUSINESS SERVICES LTD,DL1 ,28/06/2023,"3,125.00"
90866233,NEV,"Economy, Growth and Place",Southern Connector Road,Capital,Consultants,CAPITAL CONSULTING INTERNATIONAL LIMITED,EC3M,16/06/2023,"10,000.00"
92584239,Social Care,"Children, Families and Community Health Services",Children's Resource and Home Finding Team,3rd Party Payments,Independent Fostering Agency Placements,CAPSTONE FOSTER CARE (SW) LTD,TQ12,26/06/2023,"3,644.70"
92584238,Social Care,"Children, Families and Community Health Services",Children's Resource and Home Finding Team,3rd Party Payments,Independent Fostering Agency Placements,CAPSTONE FOSTER CARE (SW) LTD,TQ12,26/06/2023,"3,608.25"
92584237,Social Care,"Children, Families and Community Health Services",Children's Resource and Home Finding Team,3rd Party Payments,Independent Fostering Agency Placements,CAPSTONE FOSTER CARE (SW) LTD,TQ12,26/06/2023,"7,627.50"
90069237,Streetsmart,Streetsmart,Waterside Fleet Workshops,Supplies and Services,Materials,CAR AND TRUCK SERVICES (SWINDON) LTD,SN1 ,09/06/2023,441.86
93243233,Social Care,"Children, Families and Community Health Services",Placement - Care Leaver Team,3rd Party Payments,Education / Training,CARDIFF UNIVERSITY,CF24,30/06/2023,"1,222.75"
90917234,Disabled Children,"Children, Families and Community Health Services",ICES Paediatric,Supplies and Services,Equipment,CARE & INDEPENDENCE SYSTEMS LTD,OX26,16/06/2023,500.80
90916236,Disabled Children,"Children, Families and Community Health Services",ICES Paediatric,Supplies and Services,Equipment,CARE & INDEPENDENCE SYSTEMS LTD,OX26,16/06/2023,500.80
93140233,Disabled Children,"Children, Families and Community Health Services",ICES Paediatric,Supplies and Services,Equipment,CARE & INDEPENDENCE SYSTEMS LTD,OX26,30/06/2023,500.80
91172324,Learning Disabilities,Adults,Learning Disability 18 - 64,3rd Party Payments,Supported Lodgings (Childrens)/Supported Living (Adults),CAREFORYOU LTD,N13 ,16/06/2023,"4,882.00"
91881233,Social Care,"Children, Families and Community Health Services",Unaccompanied Asylum Seeking Children (UASC),3rd Party Payments,Semi Independent,CARING FOR COMMUNITIES AND PEOPLE (CCP),GL50,21/06/2023,"3,410.33"
92558233,Social Care,"Children, Families and Community Health Services",Placement - Care Leaver Team,3rd Party Payments,Semi Independent,CARING FOR COMMUNITIES AND PEOPLE (CCP),GL50,26/06/2023,"2,630.00"
92560233,Social Care,"Children, Families and Community Health Services",Unaccompanied Asylum Seeking Children (UASC),3rd Party Payments,Semi Independent,CARING FOR COMMUNITIES AND PEOPLE (CCP),GL50,26/06/2023,"3,650.00"
90022256,Social Care,"Children, Families and Community Health Services",Children's Resource and Home Finding Team,3rd Party Payments,Care Packages,CARING FOR COMMUNITIES AND PEOPLE (CCP),GL50,09/06/2023,"3,355.53"
92562233,Social Care,"Children, Families and Community Health Services",Unaccompanied Asylum Seeking Children (UASC),3rd Party Payments,Semi Independent,CARING FOR COMMUNITIES AND PEOPLE (CCP),GL50,26/06/2023,"2,630.00"
91881233,Social Care,"Children, Families and Community Health Services",Unaccompanied Asylum Seeking Children (UASC),3rd Party Payments,Semi Independent,CARING FOR COMMUNITIES AND PEOPLE (CCP),GL50,21/06/2023,"3,300.32"
92557233,Social Care,"Children, Families and Community Health Services",Children's Resource and Home Finding Team,3rd Party Payments,Semi Independent,CARING FOR COMMUNITIES AND PEOPLE (CCP),GL50,26/06/2023,"7,120.00"
92563233,Social Care,"Children, Families and Community Health Services",Children's Resource and Home Finding Team,3rd Party Payments,Semi Independent,CARING FOR COMMUNITIES AND PEOPLE (CCP),GL50,26/06/2023,607.50
89050233,Social Care,"Children, Families and Community Health Services",Looked After Children Service,3rd Party Payments,Personal Needs,CARING FOR COMMUNITIES AND PEOPLE (CCP),GL50,02/06/2023,973.71
91881233,Social Care,"Children, Families and Community Health Services",Unaccompanied Asylum Seeking Children (UASC),3rd Party Payments,Semi Independent,CARING FOR COMMUNITIES AND PEOPLE (CCP),GL50,21/06/2023,660.06
91881233,Social Care,"Children, Families and Community Health Services",Unaccompanied Asylum Seeking Children (UASC),3rd Party Payments,Semi Independent,CARING FOR COMMUNITIES AND PEOPLE (CCP),GL50,21/06/2023,"12,431.23"
92559233,Social Care,"Children, Families and Community Health Services",Placement - Care Leaver Team,3rd Party Payments,Semi Independent,CARING FOR COMMUNITIES AND PEOPLE (CCP),GL50,26/06/2023,"2,630.00"
91881233,Social Care,"Children, Families and Community Health Services",Unaccompanied Asylum Seeking Children (UASC),3rd Party Payments,Semi Independent,CARING FOR COMMUNITIES AND PEOPLE (CCP),GL50,21/06/2023,660.06
92556233,Social Care,"Children, Families and Community Health Services",Placement - Care Leaver Team,3rd Party Payments,Semi Independent,CARING FOR COMMUNITIES AND PEOPLE (CCP),GL50,26/06/2023,"3,710.00"
90022255,Social Care,"Children, Families and Community Health Services",Children's Resource and Home Finding Team,3rd Party Payments,Care Packages,CARING FOR COMMUNITIES AND PEOPLE (CCP),GL50,09/06/2023,"2,114.37"
92561233,Social Care,"Children, Families and Community Health Services",Placement - Care Leaver Team,3rd Party Payments,Semi Independent,CARING FOR COMMUNITIES AND PEOPLE (CCP),GL50,26/06/2023,"2,630.00"
89535233,Physical Support,Adults,Physical Support 65 and over,3rd Party Payments,Personal Budget - Domiciliary care,CARING HEART CARERS LIMITED,SN25,07/06/2023,"1,193.58"
89534233,Physical Support,Adults,Physical Support 65 and over,3rd Party Payments,Personal Budget - Domiciliary care,CARING HEART CARERS LIMITED,SN25,07/06/2023,"1,107.18"
89536233,Physical Support,Adults,Physical Support 18 - 64,3rd Party Payments,Personal Budget - Domiciliary care,CARING HEART CARERS LIMITED,SN25,07/06/2023,"1,349.52"
93131335,Learning Disabilities,Adults,Learning Disability 18 - 64,Transfer Payments,Personal Budget - Direct Payments - Domiciliary Care,REDACTED PERSONAL DATA,SN2 ,30/06/2023,"2,640.28"
93131585,Physical Support,Adults,Physical Support 65 and over,3rd Party Payments,Carers,REDACTED PERSONAL DATA,SP11,30/06/2023,591.27
90810237,High Needs Block,DSG Skills and Attainment,SEN Resourcing Assessment Panel,Supplies and Services,Services,REDACTED PERSONAL DATA,SN3 ,14/06/2023,"1,557.82"
93131588,Learning Disabilities,Adults,Learning Disability 18 - 64,Transfer Payments,Personal Budget - Direct Payments - Other,REDACTED PERSONAL DATA,SN2 ,30/06/2023,"2,840.89"
93131587,Learning Disabilities,Adults,Learning Disability 18 - 64,Transfer Payments,Personal Budget - Direct Payments - Domiciliary Care,REDACTED PERSONAL DATA,SN2 ,30/06/2023,"1,572.42"
90314233,Early Years Block,DSG Skills and Attainment,Free Nursery Education Commissioning - three & four  year olds,3rd Party Payments,Contracts - Child Care,REDACTED PERSONAL DATA,SN3 ,14/06/2023,757.48
90564237,Responsive Repairs,Repairs,Responsive Repairs,3rd Party Payments,Contract Payments,CARPET WAREHOUSE SWINDON LTD,SN2 ,14/06/2023,798.53
90564242,Responsive Repairs,Repairs,Responsive Repairs,3rd Party Payments,Contract Payments,CARPET WAREHOUSE SWINDON LTD,SN2 ,14/06/2023,809.01
90564240,Responsive Repairs,Repairs,Responsive Repairs,3rd Party Payments,Contract Payments,CARPET WAREHOUSE SWINDON LTD,SN2 ,14/06/2023,807.18
92910233,Social Care,"Children, Families and Community Health Services",Legal Fees,Supplies and Services,Fees,CARTER BROWN LTD,B15 ,28/06/2023,"2,625.00"
89096233,Other Repairs,Repairs,Unallocated job costs from OPEN system,Premises Costs,Maintenance - Buildings,CARTER PUMPS LTD,SN10,02/06/2023,"1,090.00"
93131355,Learning Disabilities,Adults,Learning Disability 18 - 64,Transfer Payments,Personal Budget - Direct Payments - Domiciliary Care,REDACTED PERSONAL DATA,SN6 ,30/06/2023,"2,744.96"
90771234,Traded Services,"Education, Inclusion and Skills",Plas Pencelli Outdoor Education Centre,Supplies and Services,Materials,CASTELL HOWELL FOODS LIMITED,SA14,14/06/2023,"1,590.60"
93014234,Traded Services,"Education, Inclusion and Skills",Plas Pencelli Outdoor Education Centre,Supplies and Services,Materials,CASTELL HOWELL FOODS LIMITED,SA14,30/06/2023,599.08
93013233,Traded Services,"Education, Inclusion and Skills",Plas Pencelli Outdoor Education Centre,Supplies and Services,Materials,CASTELL HOWELL FOODS LIMITED,SA14,30/06/2023,"1,238.20"
93014234,Traded Services,"Education, Inclusion and Skills",Plas Pencelli Outdoor Education Centre,Supplies and Services,Materials,CASTELL HOWELL FOODS LIMITED,SA14,30/06/2023,"1,719.25"
90756233,Traded Services,"Education, Inclusion and Skills",Plas Pencelli Outdoor Education Centre,Supplies and Services,Materials,CASTELL HOWELL FOODS LIMITED,SA14,14/06/2023,"1,875.70"
93013233,Traded Services,"Education, Inclusion and Skills",Plas Pencelli Outdoor Education Centre,Supplies and Services,Materials,CASTELL HOWELL FOODS LIMITED,SA14,30/06/2023,417.45
90771234,Traded Services,"Education, Inclusion and Skills",Plas Pencelli Outdoor Education Centre,Supplies and Services,Materials,CASTELL HOWELL FOODS LIMITED,SA14,14/06/2023,626.62
90756233,Traded Services,"Education, Inclusion and Skills",Plas Pencelli Outdoor Education Centre,Supplies and Services,Materials,CASTELL HOWELL FOODS LIMITED,SA14,14/06/2023,562.56
90553233,Treasury,Corporate Finance,Private Finance Initiatives (PFI),Supplies and Services,Services,CASTLE GATE LEGAL & COMMERCIAL LTD,NG12,14/06/2023,"4,284.50"
92788233,Treasury,Corporate Finance,Private Finance Initiatives (PFI),Supplies and Services,Services,CASTLE GATE LEGAL & COMMERCIAL LTD,NG12,28/06/2023,"2,276.24"
91881234,Social Care,"Children, Families and Community Health Services",Placement - Care Leaver Team,3rd Party Payments,Personal Needs,CATCH22,TN16,21/06/2023,"3,295.00"
91159233,Learning Disabilities,Adults,Learning Disability 18 - 64,3rd Party Payments,Supported Lodgings (Childrens)/Supported Living (Adults),CATHEDRAL HOMES,GL1 ,16/06/2023,"2,325.00"
91159233,Learning Disabilities,Adults,Learning Disability 18 - 64,3rd Party Payments,Supported Lodgings (Childrens)/Supported Living (Adults),CATHEDRAL HOMES,GL1 ,16/06/2023,"4,462.52"
91159233,Learning Disabilities,Adults,Learning Disability 18 - 64,Income,Client Contribution - Supported Living,CATHEDRAL HOMES,GL1 ,16/06/2023,-414.20
91159233,Learning Disabilities,Adults,Learning Disability 18 - 64,Income,Client Contribution - Personal Budget - Fairer Charging,CATHEDRAL HOMES,GL1 ,16/06/2023,-181.60
91159233,Learning Disabilities,Adults,Learning Disability 18 - 64,3rd Party Payments,Supported Lodgings (Childrens)/Supported Living (Adults),CATHEDRAL HOMES,GL1 ,16/06/2023,"1,706.28"
91159233,Learning Disabilities,Adults,Learning Disability 18 - 64,3rd Party Payments,Supported Lodgings (Childrens)/Supported Living (Adults),CATHEDRAL HOMES,GL1 ,16/06/2023,675.00
91159233,Learning Disabilities,Adults,Learning Disability 18 - 64,3rd Party Payments,Supported Lodgings (Childrens)/Supported Living (Adults),CATHEDRAL HOMES,GL1 ,16/06/2023,"3,225.00"
90316233,Early Years Block,DSG Skills and Attainment,Free Nursery Education Commissioning - three & four  year olds,3rd Party Payments,Contracts - Child Care,REDACTED PERSONAL DATA,SN5 ,14/06/2023,573.17
91501233,Learning Disabilities,Adults,Learning Disability 18 - 64,3rd Party Payments,Supported Accommodation Scheme,REDACTED PERSONAL DATA,SN6 ,21/06/2023,"2,850.00"
91501233,Learning Disabilities,Adults,Learning Disability 18 - 64,3rd Party Payments,Supported Accommodation Scheme,REDACTED PERSONAL DATA,SN6 ,21/06/2023,328.61
91501233,Learning Disabilities,Adults,Learning Disability 18 - 64,3rd Party Payments,Supported Accommodation Scheme,REDACTED PERSONAL DATA,SN6 ,21/06/2023,457.86
91501233,Learning Disabilities,Adults,Learning Disability 18 - 64,3rd Party Payments,Supported Accommodation Scheme,REDACTED PERSONAL DATA,SN6 ,21/06/2023,"1,850.00"
92076233,Mental Health,Adults,Mental Health 65 and over,3rd Party Payments,Personal Budget - Domiciliary care,CELTIC CARE SERVICES LTD,SN15,23/06/2023,653.08
92077233,Physical Support,Adults,Physical Support 65 and over,3rd Party Payments,Personal Budget - Domiciliary care,CELTIC CARE SERVICES LTD,SN15,23/06/2023,"1,632.70"
89518233,Mental Health,Adults,Mental Health 65 and over,3rd Party Payments,Personal Budget - Domiciliary care,CELTIC CARE SERVICES LTD,SN15,07/06/2023,661.04
92075233,Physical Support,Adults,Physical Support 65 and over,3rd Party Payments,Personal Budget - Domiciliary care,CELTIC CARE SERVICES LTD,SN15,23/06/2023,"2,938.86"
89519233,Physical Support,Adults,Physical Support 65 and over,3rd Party Payments,Personal Budget - Domiciliary care,CELTIC CARE SERVICES LTD,SN15,07/06/2023,"1,652.60"
89517233,Physical Support,Adults,Physical Support 65 and over,3rd Party Payments,Personal Budget - Domiciliary care,CELTIC CARE SERVICES LTD,SN15,07/06/2023,"2,974.68"
91306233,Streetsmart,Streetsmart,Waste - Processing,Supplies and Services,Repairs & Maintenance,CENTRAL CONVEYOR BELTING SERVICES LTD,RG19,16/06/2023,613.40
92992243,Streetsmart,Streetsmart,Waterside Fleet Hires,Transport Costs,Vehicle Fuel,CERTAS ENERGY UK LTD,WA3 ,30/06/2023,"9,072.33"
91514233,Town Centre,"Economy, Growth and Place",Carriage Works Phase 3,Capital,Professional Fees,CHAMBERLAINWALKER ECONOMICS LTD,SE19,19/06/2023,"8,800.00"
89751233,Public Health,Public Health,Child 0-19 Public Health Programmes,3rd Party Payments,Contract Payments,CHAMELEON PDE LTD,CA6 ,07/06/2023,"2,000.00"
91270233,Public Health,Public Health,DAAT,3rd Party Payments,Contract Payments,CHANGE GROW LIVE SERVICES LTD,BN1 ,16/06/2023,"458,961.32"
90535234,Lydiard Park,Culture & Heritage,Lydiard : Forest Caf�,Supplies and Services,Confectionary,CHAPPLE & JENKINS LTD,BS15,14/06/2023,59.51
93018234,Lydiard Park,Culture & Heritage,Lydiard : Forest Caf�,Supplies and Services,Food,CHAPPLE & JENKINS LTD,BS15,30/06/2023,41.39
90560233,Lydiard Park,Culture & Heritage,Lydiard : Coach House Caf�,Supplies and Services,Confectionary,CHAPPLE & JENKINS LTD,BS15,14/06/2023,78.78
90560233,Lydiard Park,Culture & Heritage,Lydiard : Coach House Caf�,Supplies and Services,Confectionary,CHAPPLE & JENKINS LTD,BS15,14/06/2023,577.03
90557233,Lydiard Park,Culture & Heritage,Lydiard : Forest Caf�,Supplies and Services,Confectionary,CHAPPLE & JENKINS LTD,BS15,14/06/2023,"1,032.94"
93018234,Lydiard Park,Culture & Heritage,Lydiard : Forest Caf�,Supplies and Services,Confectionary,CHAPPLE & JENKINS LTD,BS15,30/06/2023,107.56
90557233,Lydiard Park,Culture & Heritage,Lydiard : Forest Caf�,Supplies and Services,Confectionary,CHAPPLE & JENKINS LTD,BS15,14/06/2023,11.84
93018234,Lydiard Park,Culture & Heritage,Lydiard : Forest Caf�,Supplies and Services,Confectionary,CHAPPLE & JENKINS LTD,BS15,30/06/2023,344.41
90512233,Lydiard Park,Culture & Heritage,Lydiard : Coach House Caf�,Supplies and Services,Confectionary,CHAPPLE & JENKINS LTD,BS15,14/06/2023,457.08
90557237,Lydiard Park,Culture & Heritage,Lydiard : Forest Caf�,Supplies and Services,Confectionary,CHAPPLE & JENKINS LTD,BS15,14/06/2023,34.40
92888235,Lydiard Park,Culture & Heritage,Lydiard : Forest Caf�,Supplies and Services,Food,CHAPPLE & JENKINS LTD,BS15,28/06/2023,25.07
90557233,Lydiard Park,Culture & Heritage,Lydiard : Forest Caf�,Supplies and Services,Food,CHAPPLE & JENKINS LTD,BS15,14/06/2023,20.86
90557237,Lydiard Park,Culture & Heritage,Lydiard : Forest Caf�,Supplies and Services,Food,CHAPPLE & JENKINS LTD,BS15,14/06/2023,7.66
90535234,Lydiard Park,Culture & Heritage,Lydiard : Forest Caf�,Supplies and Services,Food,CHAPPLE & JENKINS LTD,BS15,14/06/2023,26.72
92888235,Lydiard Park,Culture & Heritage,Lydiard : Forest Caf�,Supplies and Services,Confectionary,CHAPPLE & JENKINS LTD,BS15,28/06/2023,581.94
90535234,Lydiard Park,Culture & Heritage,Lydiard : Forest Caf�,Supplies and Services,Confectionary,CHAPPLE & JENKINS LTD,BS15,14/06/2023,904.87
90557237,Lydiard Park,Culture & Heritage,Lydiard : Forest Caf�,Supplies and Services,Confectionary,CHAPPLE & JENKINS LTD,BS15,14/06/2023,417.85
93045238,Void Repairs,Supervision & Management,Void Property Repairs,3rd Party Payments,Contract Payments,CHARLES HARDING ESTATE AGENTS LIMITED,SN1 ,30/06/2023,35.00
90564236,Void Repairs,Supervision & Management,Void Property Repairs,3rd Party Payments,Contract Payments,CHARLES HARDING ESTATE AGENTS LIMITED,SN1 ,14/06/2023,35.00
92696235,Other Repairs,Repairs,Unallocated job costs from OPEN system,Premises Costs,Maintenance - Buildings,CHARLES HARDING ESTATE AGENTS LIMITED,SN1 ,28/06/2023,30.00
90826233,Homelessness and Travellers,Housing Services,Bed and Breakfast Accommodation,Transfer Payments,Payment of Costs,CHARLES HOPES HOLDINGS LIMITED,SO15,16/06/2023,"12,600.00"
92169233,Homelessness and Travellers,Housing Services,Bed and Breakfast Accommodation,Transfer Payments,Payment of Costs,CHARLES HOPES HOLDINGS LIMITED,SO15,23/06/2023,"11,250.00"
93204233,Homelessness and Travellers,Housing Services,Bed and Breakfast Accommodation,Transfer Payments,Payment of Costs,CHARLES HOPES HOLDINGS LIMITED,SO15,30/06/2023,"1,750.00"
90485233,Lydiard Park,Culture & Heritage,Lydiard : Forest Caf�,Supplies and Services,Confectionary,CHARLES SAUNDERS LTD,BS37,14/06/2023,723.03
90552233,Lydiard Park,Culture & Heritage,Lydiard : Forest Caf�,Supplies and Services,Confectionary,CHARLES SAUNDERS LTD,BS37,14/06/2023,"1,171.39"
90554233,Lydiard Park,Culture & Heritage,Lydiard : Forest Caf�,Supplies and Services,Food,CHARLES SAUNDERS LTD,BS37,14/06/2023,389.45
90554233,Lydiard Park,Culture & Heritage,Lydiard : Forest Caf�,Supplies and Services,Confectionary,CHARLES SAUNDERS LTD,BS37,14/06/2023,106.63
90552233,Lydiard Park,Culture & Heritage,Lydiard : Forest Caf�,Supplies and Services,Confectionary,CHARLES SAUNDERS LTD,BS37,14/06/2023,9.54
90551233,Lydiard Park,Culture & Heritage,Lydiard : Forest Caf�,Supplies and Services,Confectionary,CHARLES SAUNDERS LTD,BS37,14/06/2023,"1,659.63"
90548234,Lydiard Park,Culture & Heritage,Lydiard : Coach House Caf�,Supplies and Services,Food,CHARLES SAUNDERS LTD,BS37,14/06/2023,73.60
90480233,Lydiard Park,Culture & Heritage,Lydiard : Coach House Caf�,Supplies and Services,Food,CHARLES SAUNDERS LTD,BS37,14/06/2023,100.20
90480233,Lydiard Park,Culture & Heritage,Lydiard : Coach House Caf�,Supplies and Services,Confectionary,CHARLES SAUNDERS LTD,BS37,14/06/2023,397.12
90480233,Lydiard Park,Culture & Heritage,Lydiard : Coach House Caf�,Supplies and Services,Confectionary,CHARLES SAUNDERS LTD,BS37,14/06/2023,135.06
90485233,Lydiard Park,Culture & Heritage,Lydiard : Forest Caf�,Supplies and Services,Confectionary,CHARLES SAUNDERS LTD,BS37,14/06/2023,783.73
90503233,Lydiard Park,Culture & Heritage,Lydiard : Coach House Caf�,Supplies and Services,Confectionary,CHARLES SAUNDERS LTD,BS37,14/06/2023,845.92
90554233,Lydiard Park,Culture & Heritage,Lydiard : Forest Caf�,Supplies and Services,Materials,CHARLES SAUNDERS LTD,BS37,14/06/2023,9.91
90552233,Lydiard Park,Culture & Heritage,Lydiard : Forest Caf�,Supplies and Services,Materials,CHARLES SAUNDERS LTD,BS37,14/06/2023,9.72
90485233,Lydiard Park,Culture & Heritage,Lydiard : Forest Caf�,Supplies and Services,Materials,CHARLES SAUNDERS LTD,BS37,14/06/2023,60.86
90485233,Lydiard Park,Culture & Heritage,Lydiard : Forest Caf�,Supplies and Services,Materials,CHARLES SAUNDERS LTD,BS37,14/06/2023,13.12
90485233,Lydiard Park,Culture & Heritage,Lydiard : Forest Caf�,Supplies and Services,Food,CHARLES SAUNDERS LTD,BS37,14/06/2023,401.18
90503233,Lydiard Park,Culture & Heritage,Lydiard : Coach House Caf�,Supplies and Services,Food,CHARLES SAUNDERS LTD,BS37,14/06/2023,6.00
90548234,Lydiard Park,Culture & Heritage,Lydiard : Coach House Caf�,Supplies and Services,Confectionary,CHARLES SAUNDERS LTD,BS37,14/06/2023,860.36
90548234,Lydiard Park,Culture & Heritage,Lydiard : Coach House Caf�,Supplies and Services,Confectionary,CHARLES SAUNDERS LTD,BS37,14/06/2023,268.70
90552233,Lydiard Park,Culture & Heritage,Lydiard : Forest Caf�,Supplies and Services,Food,CHARLES SAUNDERS LTD,BS37,14/06/2023,582.61
90551233,Lydiard Park,Culture & Heritage,Lydiard : Forest Caf�,Supplies and Services,Confectionary,CHARLES SAUNDERS LTD,BS37,14/06/2023,477.60
90503233,Lydiard Park,Culture & Heritage,Lydiard : Coach House Caf�,Supplies and Services,Materials,CHARLES SAUNDERS LTD,BS37,14/06/2023,129.63
90554233,Lydiard Park,Culture & Heritage,Lydiard : Forest Caf�,Supplies and Services,Confectionary,CHARLES SAUNDERS LTD,BS37,14/06/2023,10.30
90676233,Customer Strategy & Operations,"People, Culture and Organisational Resilience",Cemeteries & Crematoria,Premises Costs,Maintenance - Grounds,CHARLTON ENVIRONMENTAL LTD,OX12,14/06/2023,"1,350.00"
91133233,Physical Support,Adults,Physical Support 65 and over,Income,Client Contribution - Nursing,CHERITON (SW CARE) LTD,GL52,16/06/2023,"-2,895.24"
91133233,Physical Support,Adults,Physical Support 65 and over,3rd Party Payments,Nursing Care,CHERITON (SW CARE) LTD,GL52,16/06/2023,"7,680.36"
90418233,Early Years Block,DSG Skills and Attainment,Free Nursery Education Commissioning - three & four  year olds,3rd Party Payments,Contracts - Child Care,CHILD BASE NURSERIES,MK16,14/06/2023,"15,871.47"
90564255,Responsive Repairs,Repairs,Responsive Repairs,3rd Party Payments,Contract Payments,CHILD SCAFFOLDING LTD,SN1 ,14/06/2023,880.00
90564251,Responsive Repairs,Repairs,Responsive Repairs,3rd Party Payments,Contract Payments,CHILD SCAFFOLDING LTD,SN1 ,14/06/2023,"1,150.00"
90564254,Responsive Repairs,Repairs,Responsive Repairs,3rd Party Payments,Contract Payments,CHILD SCAFFOLDING LTD,SN1 ,14/06/2023,480.00
90564257,Responsive Repairs,Repairs,Responsive Repairs,3rd Party Payments,Contract Payments,CHILD SCAFFOLDING LTD,SN1 ,14/06/2023,440.00
90564258,Responsive Repairs,Repairs,Responsive Repairs,3rd Party Payments,Contract Payments,CHILD SCAFFOLDING LTD,SN1 ,14/06/2023,65.00
92817238,Responsive Repairs,Repairs,Responsive Repairs,3rd Party Payments,Contract Payments,CHILD SCAFFOLDING LTD,SN1 ,28/06/2023,"1,080.00"
90564253,Responsive Repairs,Repairs,Responsive Repairs,3rd Party Payments,Contract Payments,CHILD SCAFFOLDING LTD,SN1 ,14/06/2023,480.00
90564256,Responsive Repairs,Repairs,Responsive Repairs,3rd Party Payments,Contract Payments,CHILD SCAFFOLDING LTD,SN1 ,14/06/2023,"1,100.00"
90564258,Responsive Repairs,Repairs,Responsive Repairs,3rd Party Payments,Contract Payments,CHILD SCAFFOLDING LTD,SN1 ,14/06/2023,130.00
89765237,Responsive Repairs,Repairs,Responsive Repairs,3rd Party Payments,Contract Payments,CHILD SCAFFOLDING LTD,SN1 ,07/06/2023,680.00
92881240,Responsive Repairs,Repairs,Responsive Repairs,3rd Party Payments,Contract Payments,CHILD SCAFFOLDING LTD,SN1 ,28/06/2023,440.00
89764233,Responsive Repairs,Repairs,Responsive Repairs,3rd Party Payments,Contract Payments,CHILD SCAFFOLDING LTD,SN1 ,07/06/2023,520.00
89765238,Responsive Repairs,Repairs,Responsive Repairs,3rd Party Payments,Contract Payments,CHILD SCAFFOLDING LTD,SN1 ,07/06/2023,540.00
90564258,Responsive Repairs,Repairs,Responsive Repairs,3rd Party Payments,Contract Payments,CHILD SCAFFOLDING LTD,SN1 ,14/06/2023,195.00
90564252,Responsive Repairs,Repairs,Responsive Repairs,3rd Party Payments,Contract Payments,CHILD SCAFFOLDING LTD,SN1 ,14/06/2023,580.00
91866239,Responsive Repairs,Repairs,Responsive Repairs,3rd Party Payments,Contract Payments,CHILD SCAFFOLDING LTD,SN1 ,21/06/2023,420.00
90564250,Responsive Repairs,Repairs,Responsive Repairs,3rd Party Payments,Contract Payments,CHILD SCAFFOLDING LTD,SN1 ,14/06/2023,720.00
91487234,Streetsmart,Streetsmart,Waste - Disposal,Supplies and Services,Materials,CHIPPENHAM PALLET COMPANY LTD (CPC PRODUCTS LTD),SN14,19/06/2023,"1,125.00"
90657233,Parking & Bus lanes,Highway Operations and Car Parking,Street Parking,Supplies and Services,Fees,CHIPSIDE LTD,SN15,14/06/2023,984.90
92741233,Parking & Bus lanes,Highway Operations and Car Parking,Bus Lane Enforcement,Supplies and Services,Materials,CHIPSIDE LTD,SN15,28/06/2023,"1,939.14"
90659233,Parking & Bus lanes,Highway Operations and Car Parking,Car Parking,Supplies and Services,Repairs & Maintenance,CHIPSIDE LTD,SN15,14/06/2023,"4,072.05"
92741233,Parking & Bus lanes,Highway Operations and Car Parking,Street Parking,Supplies and Services,Materials,CHIPSIDE LTD,SN15,28/06/2023,289.80
90658233,Parking & Bus lanes,Highway Operations and Car Parking,Car Parking,Supplies and Services,Repairs & Maintenance,CHIPSIDE LTD,SN15,14/06/2023,"3,550.00"
92741233,Parking & Bus lanes,Highway Operations and Car Parking,Street Parking,Supplies and Services,Materials,CHIPSIDE LTD,SN15,28/06/2023,623.58
92741233,Parking & Bus lanes,Highway Operations and Car Parking,Bus Lane Enforcement,Supplies and Services,Materials,CHIPSIDE LTD,SN15,28/06/2023,240.45
90317233,Early Years Block,DSG Skills and Attainment,Free Nursery Education Commissioning - two year olds,3rd Party Payments,Contracts - Child Care,CHISELDON PRIMARY SCHOOL,SN4 ,14/06/2023,862.23
91398233,DSG Other Funding,DSG Skills and Attainment,DFE Additional Grants,Supplies and Services,Payments to Educational Bodies,CHISELDON PRIMARY SCHOOL,SN4 ,16/06/2023,"2,025.00"
90318233,Early Years Block,DSG Skills and Attainment,Free Nursery Education Commissioning - three & four  year olds,3rd Party Payments,Contracts - Child Care,CHISELDON PRIMARY SCHOOL,SN4 ,14/06/2023,"4,028.39"
90497233,Schools - Primary,DSG Skills and Attainment,Primary School Budgets,3rd Party Payments,Mainstream Delegated Funding,CHISELDON PRIMARY SCHOOL,SN4 ,14/06/2023,"71,288.00"
90513241,DSG Other Funding,DSG Skills and Attainment,DFE Additional Grants,3rd Party Payments,Payment of Pupil Premium to school,CHISELDON PRIMARY SCHOOL,SN4 ,14/06/2023,"5,632.00"
91171233,Learning Disabilities,Adults,Learning Disability 18 - 64,3rd Party Payments,Residential Care,CHOSEN CARE LTD,GL3 ,16/06/2023,"19,098.80"
91171233,Learning Disabilities,Adults,Learning Disability 18 - 64,Income,Client Contribution - Residential,CHOSEN CARE LTD,GL3 ,16/06/2023,243.61
91171233,Learning Disabilities,Adults,Learning Disability 65 and over,Income,Client Contribution - Residential,CHOSEN CARE LTD,GL3 ,16/06/2023,-779.20
91171233,Learning Disabilities,Adults,Learning Disability 18 - 64,3rd Party Payments,Residential Care,CHOSEN CARE LTD,GL3 ,16/06/2023,"7,639.52"
91171233,Learning Disabilities,Adults,Learning Disability 18 - 64,3rd Party Payments,Residential Care,CHOSEN CARE LTD,GL3 ,16/06/2023,"-17,844.40"
91171233,Learning Disabilities,Adults,Learning Disability 18 - 64,3rd Party Payments,Residential Care,CHOSEN CARE LTD,GL3 ,16/06/2023,"19,079.20"
91171233,Learning Disabilities,Adults,Learning Disability 18 - 64,3rd Party Payments,Residential Care,CHOSEN CARE LTD,GL3 ,16/06/2023,"7,631.68"
91171233,Learning Disabilities,Adults,Learning Disability 18 - 64,Income,Client Contribution - Residential,CHOSEN CARE LTD,GL3 ,16/06/2023,-271.75
91171233,Learning Disabilities,Adults,Learning Disability 18 - 64,3rd Party Payments,Residential Care,CHOSEN CARE LTD,GL3 ,16/06/2023,"-17,862.70"
91171233,Learning Disabilities,Adults,Learning Disability 65 and over,3rd Party Payments,Residential Care,CHOSEN CARE LTD,GL3 ,16/06/2023,"19,505.40"
91171233,Learning Disabilities,Adults,Learning Disability 65 and over,3rd Party Payments,Residential Care,CHOSEN CARE LTD,GL3 ,16/06/2023,"7,802.16"
91171233,Learning Disabilities,Adults,Learning Disability 18 - 64,Income,Client Contribution - Residential,CHOSEN CARE LTD,GL3 ,16/06/2023,216.46
91171233,Learning Disabilities,Adults,Learning Disability 18 - 64,Income,Client Contribution - Residential,CHOSEN CARE LTD,GL3 ,16/06/2023,-400.48
91171233,Learning Disabilities,Adults,Learning Disability 65 and over,3rd Party Payments,Residential Care,CHOSEN CARE LTD,GL3 ,16/06/2023,"-18,243.00"
91085233,Care Management & Safeguarding,Adults,Mental Capacity & DOL,3rd Party Payments,Contracts - Social Care,CHRIS HORNE BIA/AMHP LIMITED,OX18,16/06/2023,528.80
93131442,Physical Support,Adults,Physical Support 18 - 64,Transfer Payments,Personal Budget - Direct Payments - Domiciliary Care,REDACTED PERSONAL DATA,SN25,30/06/2023,874.61
89465233,Social Care,"Children, Families and Community Health Services",Placement Adoption Service,3rd Party Payments,Adoption Allowances,REDACTED PERSONAL DATA,SN6 ,05/06/2023,"1,055.64"
89464233,Social Care,"Children, Families and Community Health Services",Placement Adoption Service,3rd Party Payments,Adoption Allowances,REDACTED PERSONAL DATA,SN6 ,05/06/2023,699.84
91546356,Social Care,"Children, Families and Community Health Services",Placement Adoption Service,3rd Party Payments,Adoption Allowances,REDACTED PERSONAL DATA,SN6 ,19/06/2023,"1,055.64"
91546355,Social Care,"Children, Families and Community Health Services",Placement Adoption Service,3rd Party Payments,Adoption Allowances,REDACTED PERSONAL DATA,SN6 ,19/06/2023,699.84
91459233,Social Care,"Children, Families and Community Health Services",Children's Resource and Home Finding Team,3rd Party Payments,Independent Fostering Agency Placements,CHRYSALISCARE LTD,DA7 ,19/06/2023,"6,762.60"
91458233,Social Care,"Children, Families and Community Health Services",Children's Resource and Home Finding Team,3rd Party Payments,Independent Fostering Agency Placements,CHRYSALISCARE LTD,DA7 ,19/06/2023,"5,881.01"
91457233,Social Care,"Children, Families and Community Health Services",Children's Resource and Home Finding Team,3rd Party Payments,Independent Fostering Agency Placements,CHRYSALISCARE LTD,DA7 ,19/06/2023,"-1,071.43"
91456233,Social Care,"Children, Families and Community Health Services",Children's Resource and Home Finding Team,3rd Party Payments,Independent Fostering Agency Placements,CHRYSALISCARE LTD,DA7 ,19/06/2023,"6,762.60"
91461233,Social Care,"Children, Families and Community Health Services",Children's Resource and Home Finding Team,3rd Party Payments,Independent Fostering Agency Placements,CHRYSALISCARE LTD,DA7 ,19/06/2023,"6,589.67"
91172268,Physical Support,Adults,Physical Support 65 and over,3rd Party Payments,Nursing Care,CHURCH VIEW,SN3 ,16/06/2023,"2,867.32"
91172268,Physical Support,Adults,Physical Support 65 and over,3rd Party Payments,Nursing Care,CHURCH VIEW,SN3 ,16/06/2023,"4,704.00"
91172268,Physical Support,Adults,Physical Support 65 and over,3rd Party Payments,Nursing Care,CHURCH VIEW,SN3 ,16/06/2023,"6,496.00"
91172268,Physical Support,Adults,Physical Support 65 and over,3rd Party Payments,Nursing Care,CHURCH VIEW,SN3 ,16/06/2023,"13,776.00"
91172268,Physical Support,Adults,Physical Support 65 and over,Income,Client Contribution - Nursing,CHURCH VIEW,SN3 ,16/06/2023,"-1,288.96"
91172268,Physical Support,Adults,Physical Support 65 and over,Income,Client Contribution - Nursing,CHURCH VIEW,SN3 ,16/06/2023,-999.64
91172268,Physical Support,Adults,Physical Support 18 - 64,3rd Party Payments,Nursing Care,CHURCH VIEW,SN3 ,16/06/2023,"4,777.43"
91172268,Physical Support,Adults,Physical Support 65 and over,3rd Party Payments,Nursing Care,CHURCH VIEW,SN3 ,16/06/2023,"6,694.84"
91172268,Physical Support,Adults,Physical Support 65 and over,3rd Party Payments,Nursing Care,CHURCH VIEW,SN3 ,16/06/2023,"8,846.75"
91172268,Physical Support,Adults,Physical Support 65 and over,3rd Party Payments,Nursing Care,CHURCH VIEW,SN3 ,16/06/2023,"-12,300.00"
91172268,Physical Support,Adults,Physical Support 65 and over,3rd Party Payments,Nursing Care,CHURCH VIEW,SN3 ,16/06/2023,"-8,724.00"
91172268,Physical Support,Adults,Physical Support 65 and over,Income,Client Contribution - Nursing,CHURCH VIEW,SN3 ,16/06/2023,-741.88
91172268,Physical Support,Adults,Physical Support 65 and over,3rd Party Payments,Nursing Care,CHURCH VIEW,SN3 ,16/06/2023,"8,753.38"
91172268,Physical Support,Adults,Physical Support 65 and over,3rd Party Payments,Nursing Care,CHURCH VIEW,SN3 ,16/06/2023,"-16,985.71"
91172268,Physical Support,Adults,Physical Support 65 and over,Income,Client Contribution - Nursing,CHURCH VIEW,SN3 ,16/06/2023,-930.44
91172268,Physical Support,Adults,Physical Support 65 and over,3rd Party Payments,Nursing Care,CHURCH VIEW,SN3 ,16/06/2023,"19,024.00"
91172268,Physical Support,Adults,Physical Support 65 and over,Income,Client Contribution - Nursing,CHURCH VIEW,SN3 ,16/06/2023,-979.88
91172268,Physical Support,Adults,Physical Support 65 and over,Income,Client Contribution - Nursing,CHURCH VIEW,SN3 ,16/06/2023,-610.00
91172268,Physical Support,Adults,Physical Support 65 and over,Income,Client Contribution - Nursing,CHURCH VIEW,SN3 ,16/06/2023,-535.88
91172268,Physical Support,Adults,Physical Support 65 and over,Income,Client Contribution - Nursing,CHURCH VIEW,SN3 ,16/06/2023,-491.76
91172268,Physical Support,Adults,Physical Support 65 and over,3rd Party Payments,Nursing Care,CHURCH VIEW,SN3 ,16/06/2023,"8,397.15"
91172268,Physical Support,Adults,Physical Support 65 and over,Income,Client Contribution - Nursing,CHURCH VIEW,SN3 ,16/06/2023,-763.24
91172268,Physical Support,Adults,Physical Support 65 and over,Income,Client Contribution - Nursing,CHURCH VIEW,SN3 ,16/06/2023,-709.76
91172268,Physical Support,Adults,Physical Support 18 - 64,3rd Party Payments,Nursing Care,CHURCH VIEW,SN3 ,16/06/2023,"5,816.00"
91172268,Physical Support,Adults,Physical Support 65 and over,Income,Client Contribution - Nursing,CHURCH VIEW,SN3 ,16/06/2023,-606.52
91172268,Physical Support,Adults,Physical Support 65 and over,3rd Party Payments,Nursing Care,CHURCH VIEW,SN3 ,16/06/2023,"5,863.96"
91172268,Physical Support,Adults,Physical Support 65 and over,Income,Client Contribution - Nursing,CHURCH VIEW,SN3 ,16/06/2023,-620.28
91172268,Physical Support,Adults,Physical Support 65 and over,Income,Client Contribution - Nursing,CHURCH VIEW,SN3 ,16/06/2023,-800.96
91172268,Physical Support,Adults,Physical Support 65 and over,3rd Party Payments,Nursing Care,CHURCH VIEW,SN3 ,16/06/2023,"-7,497.49"
91172268,Physical Support,Adults,Physical Support 65 and over,3rd Party Payments,Nursing Care,CHURCH VIEW,SN3 ,16/06/2023,"2,988.96"
91172268,Physical Support,Adults,Physical Support 65 and over,3rd Party Payments,Nursing Care,CHURCH VIEW,SN3 ,16/06/2023,"-7,815.54"
91172268,Physical Support,Adults,Physical Support 18 - 64,Income,Client Contribution - Nursing,CHURCH VIEW,SN3 ,16/06/2023,-552.52
91172268,Physical Support,Adults,Physical Support 18 - 64,3rd Party Payments,Nursing Care,CHURCH VIEW,SN3 ,16/06/2023,"-7,815.54"
91172268,Physical Support,Adults,Physical Support 18 - 64,3rd Party Payments,Nursing Care,CHURCH VIEW,SN3 ,16/06/2023,"-8,397.15"
91172268,Physical Support,Adults,Physical Support 65 and over,Income,Client Contribution - Nursing,CHURCH VIEW,SN3 ,16/06/2023,-984.92
91172268,Physical Support,Adults,Physical Support 18 - 64,3rd Party Payments,Nursing Care,CHURCH VIEW,SN3 ,16/06/2023,"-5,260.23"
91172295,Learning Disabilities,Adults,Learning Disability 18 - 64,3rd Party Payments,Residential Care,CIDERSTONE HOUSE,SN25,16/06/2023,"12,163.20"
91172295,Learning Disabilities,Adults,Learning Disability 18 - 64,3rd Party Payments,Residential Care,CIDERSTONE HOUSE,SN25,16/06/2023,"11,782.40"
91172295,Learning Disabilities,Adults,Learning Disability 18 - 64,Income,Client Contribution - Residential,CIDERSTONE HOUSE,SN25,16/06/2023,-677.60
91172295,Learning Disabilities,Adults,Learning Disability 18 - 64,Income,Client Contribution - Residential,CIDERSTONE HOUSE,SN25,16/06/2023,-425.60
91172295,Learning Disabilities,Adults,Learning Disability 18 - 64,Income,Client Contribution - Residential,CIDERSTONE HOUSE,SN25,16/06/2023,-423.00
91172295,Learning Disabilities,Adults,Learning Disability 18 - 64,Income,Client Contribution - Residential,CIDERSTONE HOUSE,SN25,16/06/2023,-414.20
91172295,Learning Disabilities,Adults,Learning Disability 18 - 64,Income,Client Contribution - Residential,CIDERSTONE HOUSE,SN25,16/06/2023,-438.80
90810360,High Needs Block,DSG Skills and Attainment,Post 16 - New Responsibilties,3rd Party Payments,FE Colleges,CIRENCESTER COLLEGE,GL7 ,14/06/2023,"3,255.08"
90810356,High Needs Block,DSG Skills and Attainment,Out of Borough School Fees,3rd Party Payments,Other Local Authority Mainstream Schools- Pre 16,CIRENCESTER KINGSHILL SCHOOL,GL7 ,14/06/2023,609.58
90810355,High Needs Block,DSG Skills and Attainment,Out of Borough School Fees,3rd Party Payments,Other Local Authority Mainstream Schools- Pre 16,CIRENCESTER KINGSHILL SCHOOL,GL7 ,14/06/2023,609.58
92251233,Homelessness and Travellers,Housing Services,Private Sector Landlords,Transfer Payments,Payment of Costs,REDACTED PERSONAL DATA,SN5 ,23/06/2023,575.00
91884234,Elections & Democracy,Elections and Democracy,Local Elections,Supplies and Services,Post,CIVICA ELECTION SERVICES LIMITED,N8 0,21/06/2023,"24,697.64"
91884234,Elections & Democracy,Elections and Democracy,Local Elections,Supplies and Services,Materials,CIVICA ELECTION SERVICES LIMITED,N8 0,21/06/2023,"12,103.00"
91976233,Elections & Democracy,Elections and Democracy,Local Elections,Supplies and Services,Materials,CIVICA ELECTION SERVICES LIMITED,N8 0,21/06/2023,"6,756.02"
91883233,Elections & Democracy,Elections and Democracy,Local Elections,Supplies and Services,Materials,CIVICA ELECTION SERVICES LIMITED,N8 0,21/06/2023,"6,631.19"
91883233,Elections & Democracy,Elections and Democracy,Local Elections,Supplies and Services,Post,CIVICA ELECTION SERVICES LIMITED,N8 0,21/06/2023,172.00
89944234,Elections & Democracy,Elections and Democracy,Register of Electors,Supplies and Services,Post,CIVICA ELECTION SERVICES LIMITED,N8 0,09/06/2023,953.03
91882233,Elections & Democracy,Elections and Democracy,Local Elections,Supplies and Services,Post,CIVICA ELECTION SERVICES LIMITED,N8 0,21/06/2023,"14,356.63"
91976233,Elections & Democracy,Elections and Democracy,Local Elections,Supplies and Services,Post,CIVICA ELECTION SERVICES LIMITED,N8 0,21/06/2023,286.00
91882233,Elections & Democracy,Elections and Democracy,Local Elections,Supplies and Services,Materials,CIVICA ELECTION SERVICES LIMITED,N8 0,21/06/2023,"9,342.59"
89944234,Elections & Democracy,Elections and Democracy,Register of Electors,Supplies and Services,Materials,CIVICA ELECTION SERVICES LIMITED,N8 0,09/06/2023,412.39
90629233,Human Resources and Organisational Development,"People, Culture and Organisational Resilience",HR System,Supplies and Services,Services,CIVICA UK LTD,SE1 ,14/06/2023,"18,503.10"
90629233,Human Resources and Organisational Development,"People, Culture and Organisational Resilience",HR Systems & Strategy,Supplies and Services,License Costs,CIVICA UK LTD,SE1 ,14/06/2023,"33,075.68"
89228233,Legal Services,Legal Services,Committees,Supplies and Services,Services,CIVICA UK LTD,SE1 ,02/06/2023,"9,536.85"
89236233,Planning & Regulatory,Strategic Planning,Economy & Development Management,Employees,Temporary / Agency - by Accounts Payable,REDACTED PERSONAL DATA,BS37,05/06/2023,"10,832.86"
92784233,Planning & Regulatory,Strategic Planning,Economy & Development Management,Employees,Temporary / Agency - by Accounts Payable,REDACTED PERSONAL DATA,BS37,28/06/2023,"8,186.40"
90319233,Early Years Block,DSG Skills and Attainment,Free Nursery Education Commissioning - three & four  year olds,3rd Party Payments,Contracts - Child Care,REDACTED PERSONAL DATA,SN2 ,14/06/2023,523.93
92988233,Care Management & Safeguarding,Adults,Swindon Safeguarding Partnershiph,Supplies and Services,Fees,CLARK WARD ASSOCIATES LTD,SN1 ,30/06/2023,"1,230.00"
93258233,Social Care,"Children, Families and Community Health Services",Placement Fostering Service,Supplies and Services,Service Charges,CLARK WARD ASSOCIATES LTD,SN1 ,30/06/2023,580.00
89643234,Care Management & Safeguarding,Adults,Swindon Safeguarding Partnershiph,Supplies and Services,Fees,CLARK WARD ASSOCIATES LTD,SN1 ,07/06/2023,615.00
89585233,Property Management,Property,Property Assets,Supplies and Services,Fees,CLARKE WILLMOTT LLP,BS1 ,07/06/2023,"1,785.50"
89584233,Property Management,Property,Property Assets,Supplies and Services,Fees,CLARKE WILLMOTT LLP,BS1 ,07/06/2023,"1,347.30"
89326233,Education,"Education, Inclusion and Skills",Education Standards and Quality,Supplies and Services,Fees,CLARKE WILLMOTT LLP,BS1 ,05/06/2023,"5,339.80"
89621234,NEV,"Economy, Growth and Place",Package 2 - Nythe Road Junction and Piccadilly Roundabout,Capital,Contractor Payments,CLEAR CHANNEL UK LTD,GU22,07/06/2023,"6,042.60"
89630233,NEV,"Economy, Growth and Place",Gablecross Junction,Capital,Contractor Payments,CLEAR CHANNEL UK LTD,GU22,07/06/2023,"7,730.10"
91033233,Care Management & Safeguarding,Adults,Mental Capacity & DOL,3rd Party Payments,Contracts - Social Care,CLOVERLEAF ADVOCACY 2000 LTD,WF12,16/06/2023,910.00
91172260,Physical Support,Adults,Physical Support 65 and over,Income,Client Contribution - Residential,COATE WATER CARE CO LTD,SN3 ,16/06/2023,"-2,398.93"
91172260,Physical Support,Adults,Physical Support 65 and over,3rd Party Payments,Residential Care,COATE WATER CARE CO LTD,SN3 ,16/06/2023,"-1,005.76"
91172260,Physical Support,Adults,Physical Support 65 and over,3rd Party Payments,Residential Care,COATE WATER CARE CO LTD,SN3 ,16/06/2023,"8,397.15"
91172260,Physical Support,Adults,Physical Support 65 and over,Income,Client Contribution - Residential,COATE WATER CARE CO LTD,SN3 ,16/06/2023,-727.20
91172260,Physical Support,Adults,Physical Support 65 and over,Income,Client Contribution - Residential,COATE WATER CARE CO LTD,SN3 ,16/06/2023,"1,681.61"
91172260,Physical Support,Adults,Physical Support 65 and over,3rd Party Payments,Residential Care,COATE WATER CARE CO LTD,SN3 ,16/06/2023,"-2,764.92"
91172260,Physical Support,Adults,Physical Support 65 and over,3rd Party Payments,Residential Care,COATE WATER CARE CO LTD,SN3 ,16/06/2023,-667.18
91172260,Physical Support,Adults,Physical Support 65 and over,3rd Party Payments,Residential Care,COATE WATER CARE CO LTD,SN3 ,16/06/2023,"1,126.45"
91172260,Physical Support,Adults,Physical Support 65 and over,3rd Party Payments,Residential Care,COATE WATER CARE CO LTD,SN3 ,16/06/2023,"-6,491.73"
91172260,Mental Health,Adults,Mental Health 65 and over,3rd Party Payments,Residential Care,COATE WATER CARE CO LTD,SN3 ,16/06/2023,"2,867.32"
91172260,Physical Support,Adults,Physical Support 65 and over,Income,Client Contribution - Residential,COATE WATER CARE CO LTD,SN3 ,16/06/2023,-917.88
91172260,Physical Support,Adults,Physical Support 65 and over,Income,Client Contribution - Residential,COATE WATER CARE CO LTD,SN3 ,16/06/2023,37.06
91172260,Physical Support,Adults,Physical Support 65 and over,Income,Client Contribution - Residential,COATE WATER CARE CO LTD,SN3 ,16/06/2023,-549.94
91172260,Physical Support,Adults,Physical Support 65 and over,3rd Party Payments,Residential Care,COATE WATER CARE CO LTD,SN3 ,16/06/2023,"-7,577.92"
91172260,Physical Support,Adults,Physical Support 65 and over,3rd Party Payments,Residential Care,COATE WATER CARE CO LTD,SN3 ,16/06/2023,"-2,969.72"
91172260,Physical Support,Adults,Physical Support 65 and over,3rd Party Payments,Residential Care,COATE WATER CARE CO LTD,SN3 ,16/06/2023,716.83
91172260,Physical Support,Adults,Physical Support 65 and over,3rd Party Payments,Residential Care,COATE WATER CARE CO LTD,SN3 ,16/06/2023,747.24
91172260,Physical Support,Adults,Physical Support 65 and over,3rd Party Payments,Residential Care,COATE WATER CARE CO LTD,SN3 ,16/06/2023,"8,006.14"
91172260,Mental Health,Adults,Mental Health 65 and over,3rd Party Payments,Residential Care,COATE WATER CARE CO LTD,SN3 ,16/06/2023,"3,136.00"
91172260,Physical Support,Adults,Physical Support 65 and over,Income,Client Contribution - Residential,COATE WATER CARE CO LTD,SN3 ,16/06/2023,"-1,328.68"
91172260,Physical Support,Adults,Physical Support 65 and over,Income,Client Contribution - Residential,COATE WATER CARE CO LTD,SN3 ,16/06/2023,-897.48
91172260,Physical Support,Adults,Physical Support 65 and over,Income,Client Contribution - Residential,COATE WATER CARE CO LTD,SN3 ,16/06/2023,5.95
91172260,Physical Support,Adults,Physical Support 65 and over,Income,Client Contribution - Residential,COATE WATER CARE CO LTD,SN3 ,16/06/2023,68.25
91172260,Physical Support,Adults,Physical Support 65 and over,Income,Client Contribution - Residential,COATE WATER CARE CO LTD,SN3 ,16/06/2023,896.86
91172260,Physical Support,Adults,Physical Support 65 and over,Income,Client Contribution - Residential,COATE WATER CARE CO LTD,SN3 ,16/06/2023,-446.14
91172260,Physical Support,Adults,Physical Support 65 and over,Income,Client Contribution - Residential,COATE WATER CARE CO LTD,SN3 ,16/06/2023,-732.00
91172260,Physical Support,Adults,Physical Support 65 and over,Income,Client Contribution - Residential,COATE WATER CARE CO LTD,SN3 ,16/06/2023,-506.20
91172260,Physical Support,Adults,Physical Support 65 and over,3rd Party Payments,Residential Care,COATE WATER CARE CO LTD,SN3 ,16/06/2023,-102.40
91172260,Physical Support,Adults,Physical Support 65 and over,3rd Party Payments,Residential Care,COATE WATER CARE CO LTD,SN3 ,16/06/2023,"7,270.70"
91172260,Physical Support,Adults,Physical Support 18 - 64,Income,Client Contribution - Residential,COATE WATER CARE CO LTD,SN3 ,16/06/2023,-359.00
91172260,Mental Health,Adults,Mental Health 18-64,3rd Party Payments,Residential Care,COATE WATER CARE CO LTD,SN3 ,16/06/2023,"4,000.00"
91172260,Physical Support,Adults,Physical Support 65 and over,Income,Client Contribution - Residential,COATE WATER CARE CO LTD,SN3 ,16/06/2023,440.19
91172260,Physical Support,Adults,Physical Support 65 and over,Income,Client Contribution - Residential,COATE WATER CARE CO LTD,SN3 ,16/06/2023,"-1,395.32"
91172260,Physical Support,Adults,Physical Support 65 and over,Income,Client Contribution - Residential,COATE WATER CARE CO LTD,SN3 ,16/06/2023,-510.92
91172260,Physical Support,Adults,Physical Support 65 and over,Income,Client Contribution - Residential,COATE WATER CARE CO LTD,SN3 ,16/06/2023,-539.40
91172260,Physical Support,Adults,Physical Support 65 and over,3rd Party Payments,Residential Care,COATE WATER CARE CO LTD,SN3 ,16/06/2023,"-7,148.36"
91172260,Physical Support,Adults,Physical Support 65 and over,3rd Party Payments,Residential Care,COATE WATER CARE CO LTD,SN3 ,16/06/2023,"1,737.22"
91172260,Physical Support,Adults,Physical Support 65 and over,3rd Party Payments,Residential Care,COATE WATER CARE CO LTD,SN3 ,16/06/2023,"4,800.00"
91172260,Physical Support,Adults,Physical Support 18 - 64,3rd Party Payments,Residential Care,COATE WATER CARE CO LTD,SN3 ,16/06/2023,"2,867.32"
90138233,Physical Support,Adults,Physical Support 65 and over,3rd Party Payments,Personal Budget - Respite Care,COATE WATER CARE CO LTD,SN3 ,12/06/2023,"1,283.38"
91172260,Physical Support,Adults,Physical Support 65 and over,Income,Client Contribution - Residential,COATE WATER CARE CO LTD,SN3 ,16/06/2023,"1,091.98"
91172260,Physical Support,Adults,Physical Support 65 and over,Income,Client Contribution - Residential,COATE WATER CARE CO LTD,SN3 ,16/06/2023,169.42
91172260,Physical Support,Adults,Physical Support 65 and over,Income,Client Contribution - Residential,COATE WATER CARE CO LTD,SN3 ,16/06/2023,-211.77
91172260,Physical Support,Adults,Physical Support 65 and over,3rd Party Payments,Residential Care,COATE WATER CARE CO LTD,SN3 ,16/06/2023,-640.03
91172260,Physical Support,Adults,Physical Support 65 and over,3rd Party Payments,Residential Care,COATE WATER CARE CO LTD,SN3 ,16/06/2023,"-6,857.46"
91172260,Physical Support,Adults,Physical Support 65 and over,Income,Client Contribution - Residential,COATE WATER CARE CO LTD,SN3 ,16/06/2023,-954.00
91172260,Physical Support,Adults,Physical Support 65 and over,Income,Client Contribution - Residential,COATE WATER CARE CO LTD,SN3 ,16/06/2023,-895.60
91172260,Physical Support,Adults,Physical Support 65 and over,3rd Party Payments,Residential Care,COATE WATER CARE CO LTD,SN3 ,16/06/2023,"2,988.96"
91172260,Physical Support,Adults,Physical Support 65 and over,3rd Party Payments,Residential Care,COATE WATER CARE CO LTD,SN3 ,16/06/2023,"2,867.32"
91172260,Physical Support,Adults,Physical Support 65 and over,3rd Party Payments,Residential Care,COATE WATER CARE CO LTD,SN3 ,16/06/2023,822.90
91172260,Mental Health,Adults,Mental Health 65 and over,3rd Party Payments,Residential Care,COATE WATER CARE CO LTD,SN3 ,16/06/2023,"9,184.00"
92193233,Mental Health,Adults,Mental Health 65 and over,3rd Party Payments,Personal Budget - Respite Care,COATE WATER CARE CO LTD,SN3 ,23/06/2023,"4,409.59"
91172260,Mental Health,Adults,Mental Health 65 and over,3rd Party Payments,Residential Care,COATE WATER CARE CO LTD,SN3 ,16/06/2023,"-8,200.00"
91172260,Mental Health,Adults,Mental Health 65 and over,3rd Party Payments,Residential Care,COATE WATER CARE CO LTD,SN3 ,16/06/2023,344.00
91172260,Mental Health,Adults,Mental Health 65 and over,3rd Party Payments,Residential Care,COATE WATER CARE CO LTD,SN3 ,16/06/2023,"6,451.47"
91172260,Physical Support,Adults,Physical Support 65 and over,Income,Client Contribution - Residential,COATE WATER CARE CO LTD,SN3 ,16/06/2023,-202.61
91172260,Physical Support,Adults,Physical Support 65 and over,Income,Client Contribution - Residential,COATE WATER CARE CO LTD,SN3 ,16/06/2023,-379.30
91172260,Physical Support,Adults,Physical Support 65 and over,Income,Client Contribution - Residential,COATE WATER CARE CO LTD,SN3 ,16/06/2023,-713.24
91172260,Physical Support,Adults,Physical Support 65 and over,3rd Party Payments,Residential Care,COATE WATER CARE CO LTD,SN3 ,16/06/2023,"-4,259.84"
91172260,Physical Support,Adults,Physical Support 65 and over,3rd Party Payments,Residential Care,COATE WATER CARE CO LTD,SN3 ,16/06/2023,"-2,925.85"
91172260,Physical Support,Adults,Physical Support 65 and over,3rd Party Payments,Residential Care,COATE WATER CARE CO LTD,SN3 ,16/06/2023,"7,680.32"
91172260,Physical Support,Adults,Physical Support 65 and over,3rd Party Payments,Residential Care,COATE WATER CARE CO LTD,SN3 ,16/06/2023,"-7,497.49"
91172260,Mental Health,Adults,Mental Health 18-64,3rd Party Payments,Residential Care,COATE WATER CARE CO LTD,SN3 ,16/06/2023,"4,571.43"
88866233,Physical Support,Adults,Physical Support 65 and over,3rd Party Payments,Personal Budget - Respite Care,COATE WATER CARE CO LTD,SN3 ,02/06/2023,"1,122.44"
91172260,Physical Support,Adults,Physical Support 65 and over,Income,Client Contribution - Residential,COATE WATER CARE CO LTD,SN3 ,16/06/2023,-691.20
91172260,Physical Support,Adults,Physical Support 65 and over,Income,Client Contribution - Residential,COATE WATER CARE CO LTD,SN3 ,16/06/2023,-760.96
91172260,Physical Support,Adults,Physical Support 65 and over,Income,Client Contribution - Residential,COATE WATER CARE CO LTD,SN3 ,16/06/2023,"-1,434.76"
91157233,Learning Disabilities,Adults,Learning Disability 18 - 64,3rd Party Payments,Residential Care,COCKLEBURY FARMHOUSE,SN15,16/06/2023,"10,364.00"
91157233,Learning Disabilities,Adults,Learning Disability 18 - 64,Income,Client Contribution - Residential,COCKLEBURY FARMHOUSE,SN15,16/06/2023,-425.60
90752233,Town Centre,"Economy, Growth and Place",Fleming Way Improvement Scheme,Capital,Consultants,COLAS LTD,B37 ,14/06/2023,"315,286.28"
92481233,Physical Support,Adults,Physical Support 18 - 64,3rd Party Payments,Personal Budget - Day services,COMMUNITY ACCESS NETWORK LTD,SN25,26/06/2023,647.68
91146233,Learning Disabilities,Adults,Learning Disability 18 - 64,Income,Client Contribution - Supported Living,COMMUNITY ACCESS NETWORK LTD,SN25,16/06/2023,-142.80
91146233,Learning Disabilities,Adults,Learning Disability 18 - 64,3rd Party Payments,Supported Lodgings (Childrens)/Supported Living (Adults),COMMUNITY ACCESS NETWORK LTD,SN25,16/06/2023,"4,120.00"
91146233,Learning Disabilities,Adults,Learning Disability 18 - 64,3rd Party Payments,Supported Lodgings (Childrens)/Supported Living (Adults),COMMUNITY ACCESS NETWORK LTD,SN25,16/06/2023,27.76
91146233,Learning Disabilities,Adults,Learning Disability 18 - 64,3rd Party Payments,Supported Lodgings (Childrens)/Supported Living (Adults),COMMUNITY ACCESS NETWORK LTD,SN25,16/06/2023,"1,360.00"
92482233,Physical Support,Adults,Physical Support 18 - 64,3rd Party Payments,Personal Budget - Day services,COMMUNITY ACCESS NETWORK LTD,SN25,26/06/2023,703.08
91146233,Learning Disabilities,Adults,Learning Disability 18 - 64,3rd Party Payments,Supported Lodgings (Childrens)/Supported Living (Adults),COMMUNITY ACCESS NETWORK LTD,SN25,16/06/2023,24.00
91146233,Learning Disabilities,Adults,Learning Disability 18 - 64,3rd Party Payments,Supported Lodgings (Childrens)/Supported Living (Adults),COMMUNITY ACCESS NETWORK LTD,SN25,16/06/2023,"1,503.88"
90059235,Physical Support,Adults,Physical Support 18 - 64,3rd Party Payments,Personal Budget - Day services,COMMUNITY ACCESS NETWORK LTD,SN25,14/06/2023,657.72
91145233,Learning Disabilities,Adults,Learning Disability 18 - 64,Income,Client Contribution - Residential,COMMUNITY ACCESS NETWORK LTD,SN25,16/06/2023,-293.60
91146233,Learning Disabilities,Adults,Learning Disability 18 - 64,3rd Party Payments,Supported Lodgings (Childrens)/Supported Living (Adults),COMMUNITY ACCESS NETWORK LTD,SN25,16/06/2023,560.00
91145233,Learning Disabilities,Adults,Learning Disability 18 - 64,3rd Party Payments,Residential Care,COMMUNITY ACCESS NETWORK LTD,SN25,16/06/2023,"7,036.52"
91145233,Learning Disabilities,Adults,Learning Disability 65 and over,3rd Party Payments,Supported Lodgings (Childrens)/Supported Living (Adults),COMMUNITY ACCESS NETWORK LTD,SN25,16/06/2023,907.60
90725237,Learning Disabilities,Adults,Firethorn Close,Premises Costs,Maintenance - Grounds,COMMUNITY EQUIPMENT SOLUTIONS,SN12,14/06/2023,579.00
91470233,Social Care,"Children, Families and Community Health Services",Children's Resource and Home Finding Team,3rd Party Payments,Independent Fostering Agency Placements,COMMUNITY FOSTER CARE,GL1 ,19/06/2023,"5,139.80"
91469233,Social Care,"Children, Families and Community Health Services",Children's Resource and Home Finding Team,3rd Party Payments,Independent Fostering Agency Placements,COMMUNITY FOSTER CARE,GL1 ,19/06/2023,"4,058.21"
91172261,Learning Disabilities,Adults,Learning Disability 18 - 64,3rd Party Payments,Residential Care,COMMUNITY THERAPEUTIC SERVICES LTD,BS22,16/06/2023,"12,423.92"
91172261,Learning Disabilities,Adults,Learning Disability 18 - 64,3rd Party Payments,Residential Care,COMMUNITY THERAPEUTIC SERVICES LTD,BS22,16/06/2023,"36,384.34"
91172261,Learning Disabilities,Adults,Learning Disability 18 - 64,3rd Party Payments,Residential Care,COMMUNITY THERAPEUTIC SERVICES LTD,BS22,16/06/2023,"-33,380.09"
93275272,Social Care,"Children, Families and Community Health Services",Children's Resource and Home Finding Team,3rd Party Payments,Residential Care,COMPASS CHILDREN'S HOMES LTD,LE7 ,30/06/2023,"20,475.00"
89719234,Social Care,"Children, Families and Community Health Services",Placement - Care Leaver Team,3rd Party Payments,Staying Put,COMPASS FOSTERING WEST LTD,LE7 ,07/06/2023,"2,137.50"
89719241,Social Care,"Children, Families and Community Health Services",Children's Resource and Home Finding Team,3rd Party Payments,Independent Fostering Agency Placements,COMPASS FOSTERING WEST LTD,LE7 ,07/06/2023,"3,618.01"
89719256,Social Care,"Children, Families and Community Health Services",Children's Resource and Home Finding Team,3rd Party Payments,Independent Fostering Agency Placements,COMPASS FOSTERING WEST LTD,LE7 ,07/06/2023,"3,618.01"
89719250,Social Care,"Children, Families and Community Health Services",Children's Resource and Home Finding Team,3rd Party Payments,Independent Fostering Agency Placements,COMPASS FOSTERING WEST LTD,LE7 ,07/06/2023,"3,452.47"
89719236,Social Care,"Children, Families and Community Health Services",Children's Resource and Home Finding Team,3rd Party Payments,Independent Fostering Agency Placements,COMPASS FOSTERING WEST LTD,LE7 ,07/06/2023,"-3,135.00"
89719239,Social Care,"Children, Families and Community Health Services",Children's Resource and Home Finding Team,3rd Party Payments,Independent Fostering Agency Placements,COMPASS FOSTERING WEST LTD,LE7 ,07/06/2023,"-3,334.50"
89719237,Social Care,"Children, Families and Community Health Services",Children's Resource and Home Finding Team,3rd Party Payments,Independent Fostering Agency Placements,COMPASS FOSTERING WEST LTD,LE7 ,07/06/2023,"3,291.90"
89719260,Social Care,"Children, Families and Community Health Services",Children's Resource and Home Finding Team,3rd Party Payments,Independent Fostering Agency Placements,COMPASS FOSTERING WEST LTD,LE7 ,07/06/2023,"-5,366.70"
89719246,Social Care,"Children, Families and Community Health Services",Children's Resource and Home Finding Team,3rd Party Payments,Independent Fostering Agency Placements,COMPASS FOSTERING WEST LTD,LE7 ,07/06/2023,"3,118.50"
89719267,Social Care,"Children, Families and Community Health Services",Children's Resource and Home Finding Team,3rd Party Payments,Independent Fostering Agency Placements,COMPASS FOSTERING WEST LTD,LE7 ,07/06/2023,"3,852.99"
89719265,Social Care,"Children, Families and Community Health Services",Children's Resource and Home Finding Team,3rd Party Payments,Independent Fostering Agency Placements,COMPASS FOSTERING WEST LTD,LE7 ,07/06/2023,"6,016.17"
89719243,Social Care,"Children, Families and Community Health Services",Children's Resource and Home Finding Team,3rd Party Payments,Independent Fostering Agency Placements,COMPASS FOSTERING WEST LTD,LE7 ,07/06/2023,"3,057.90"
89719242,Social Care,"Children, Families and Community Health Services",Children's Resource and Home Finding Team,3rd Party Payments,Independent Fostering Agency Placements,COMPASS FOSTERING WEST LTD,LE7 ,07/06/2023,"-2,912.10"
89719238,Social Care,"Children, Families and Community Health Services",Children's Resource and Home Finding Team,3rd Party Payments,Independent Fostering Agency Placements,COMPASS FOSTERING WEST LTD,LE7 ,07/06/2023,"3,401.63"
89719257,Social Care,"Children, Families and Community Health Services",Children's Resource and Home Finding Team,3rd Party Payments,Independent Fostering Agency Placements,COMPASS FOSTERING WEST LTD,LE7 ,07/06/2023,"-3,135.00"
89719240,Social Care,"Children, Families and Community Health Services",Children's Resource and Home Finding Team,3rd Party Payments,Independent Fostering Agency Placements,COMPASS FOSTERING WEST LTD,LE7 ,07/06/2023,"3,501.30"
89719247,Social Care,"Children, Families and Community Health Services",Children's Resource and Home Finding Team,3rd Party Payments,Independent Fostering Agency Placements,COMPASS FOSTERING WEST LTD,LE7 ,07/06/2023,"3,222.45"
89719251,Social Care,"Children, Families and Community Health Services",Children's Resource and Home Finding Team,3rd Party Payments,Independent Fostering Agency Placements,COMPASS FOSTERING WEST LTD,LE7 ,07/06/2023,"-3,317.40"
89719252,Social Care,"Children, Families and Community Health Services",Children's Resource and Home Finding Team,3rd Party Payments,Independent Fostering Agency Placements,COMPASS FOSTERING WEST LTD,LE7 ,07/06/2023,"3,483.30"
89719266,Social Care,"Children, Families and Community Health Services",Children's Resource and Home Finding Team,3rd Party Payments,Independent Fostering Agency Placements,COMPASS FOSTERING WEST LTD,LE7 ,07/06/2023,"3,231.54"
89719233,Social Care,"Children, Families and Community Health Services",Placement - Care Leaver Team,3rd Party Payments,Staying Put,COMPASS FOSTERING WEST LTD,LE7 ,07/06/2023,"-2,035.80"
89719235,Social Care,"Children, Families and Community Health Services",Placement - Care Leaver Team,3rd Party Payments,Staying Put,COMPASS FOSTERING WEST LTD,LE7 ,07/06/2023,"2,208.75"
89719264,Social Care,"Children, Families and Community Health Services",Children's Resource and Home Finding Team,3rd Party Payments,Independent Fostering Agency Placements,COMPASS FOSTERING WEST LTD,LE7 ,07/06/2023,"5,045.82"
89719244,Social Care,"Children, Families and Community Health Services",Children's Resource and Home Finding Team,3rd Party Payments,Independent Fostering Agency Placements,COMPASS FOSTERING WEST LTD,LE7 ,07/06/2023,"3,159.83"
89719245,Social Care,"Children, Families and Community Health Services",Children's Resource and Home Finding Team,3rd Party Payments,Independent Fostering Agency Placements,COMPASS FOSTERING WEST LTD,LE7 ,07/06/2023,"-2,970.00"
89719262,Social Care,"Children, Families and Community Health Services",Children's Resource and Home Finding Team,3rd Party Payments,Independent Fostering Agency Placements,COMPASS FOSTERING WEST LTD,LE7 ,07/06/2023,"5,822.73"
89719254,Social Care,"Children, Families and Community Health Services",Children's Resource and Home Finding Team,3rd Party Payments,Independent Fostering Agency Placements,COMPASS FOSTERING WEST LTD,LE7 ,07/06/2023,"-3,334.50"
89719263,Social Care,"Children, Families and Community Health Services",Children's Resource and Home Finding Team,3rd Party Payments,Parent & Child Placements,COMPASS FOSTERING WEST LTD,LE7 ,07/06/2023,"6,421.34"
89719249,Social Care,"Children, Families and Community Health Services",Children's Resource and Home Finding Team,3rd Party Payments,Independent Fostering Agency Placements,COMPASS FOSTERING WEST LTD,LE7 ,07/06/2023,"3,341.10"
89719255,Social Care,"Children, Families and Community Health Services",Children's Resource and Home Finding Team,3rd Party Payments,Independent Fostering Agency Placements,COMPASS FOSTERING WEST LTD,LE7 ,07/06/2023,"3,501.30"
89719259,Social Care,"Children, Families and Community Health Services",Children's Resource and Home Finding Team,3rd Party Payments,Independent Fostering Agency Placements,COMPASS FOSTERING WEST LTD,LE7 ,07/06/2023,"3,401.63"
89719248,Social Care,"Children, Families and Community Health Services",Children's Resource and Home Finding Team,3rd Party Payments,Independent Fostering Agency Placements,COMPASS FOSTERING WEST LTD,LE7 ,07/06/2023,"-3,182.10"
89719253,Social Care,"Children, Families and Community Health Services",Children's Resource and Home Finding Team,3rd Party Payments,Independent Fostering Agency Placements,COMPASS FOSTERING WEST LTD,LE7 ,07/06/2023,"3,599.41"
89719261,Social Care,"Children, Families and Community Health Services",Children's Resource and Home Finding Team,3rd Party Payments,Independent Fostering Agency Placements,COMPASS FOSTERING WEST LTD,LE7 ,07/06/2023,"5,634.90"
89719258,Social Care,"Children, Families and Community Health Services",Children's Resource and Home Finding Team,3rd Party Payments,Independent Fostering Agency Placements,COMPASS FOSTERING WEST LTD,LE7 ,07/06/2023,"3,291.90"
89507233,Human Resources and Organisational Development,"People, Culture and Organisational Resilience",Pay & Reward,Employees,Temporary / Agency - by Accounts Payable,COMPAWISE LIMITED,WA14,07/06/2023,"8,280.00"
90581239,Other Repairs,Repairs,Unallocated job costs from OPEN system,Supplies and Services,Materials,COMPLETE FLUE SOLUTIONS LIMITED,GL53,14/06/2023,450.00
89105233,Highways Schemes,Strategic Planning and Highways,Car Parks Major Maintenance,Capital,Contractor Payments,CONCRETE REPAIRS LTD,CR4 ,02/06/2023,"1,244.71"
93131332,Learning Disabilities,Adults,Learning Disability 18 - 64,Transfer Payments,Personal Budget - Direct Payments - Domiciliary Care,REDACTED PERSONAL DATA,GL2 ,30/06/2023,"4,433.38"
90746234,Environmental & Regulatory,Highways & Transport,Shaw Farm Landfill Site,Supplies and Services,Testing / Inspection,CONSOLIDATED DISTRIBUTION HOLDINGS LTD T/A HARRIER PNEUMATICS,BS2 ,14/06/2023,459.00
92148238,Facilities Management,"People, Culture and Organisational Resilience",Office Accommodation,Premises Costs,Maintenance - Buildings,COOLINK LTD,SN11,23/06/2023,853.00
92148238,Property Management,Property,Corporate Repairs & Maintenance Programme,Premises Costs,Maintenance - Buildings,COOLINK LTD,SN11,23/06/2023,144.00
92971237,Property Management,Property,Corporate Repairs & Maintenance Programme,Premises Costs,Maintenance - Buildings,COOLINK LTD,SN11,28/06/2023,191.45
92148238,Property Management,Property,Corporate Repairs & Maintenance Programme,Premises Costs,Maintenance - Buildings,COOLINK LTD,SN11,23/06/2023,630.20
91550234,Property Management,Property,Corporate Repairs & Maintenance Programme,Premises Costs,Maintenance - Buildings,COOLINK LTD,SN11,19/06/2023,"4,837.00"
92971237,Property Management,Property,Corporate Repairs & Maintenance Programme,Premises Costs,Maintenance - Buildings,COOLINK LTD,SN11,28/06/2023,"4,569.00"
93245245,Property Management,Property,Corporate Repairs & Maintenance Programme,Premises Costs,Maintenance - Buildings,COOLINK LTD,SN11,30/06/2023,987.00
92994233,Property Management,Property,Corporate Repairs & Maintenance Programme,Premises Costs,Maintenance - Buildings,COOLINK LTD,SN11,30/06/2023,654.29
92148238,Facilities Management,"People, Culture and Organisational Resilience",Office Accommodation,Premises Costs,Maintenance - Buildings,COOLINK LTD,SN11,23/06/2023,313.60
91744233,Business Support,"People, Culture and Organisational Resilience",Business Services,Supplies and Services,Subscriptions,COPYRIGHT LICENSING AGENCY LTD,E1W ,21/06/2023,"16,035.16"
93116233,DSG Other Funding,DSG Skills and Attainment,LAC pupil premium,3rd Party Payments,Education / Training,CORAM BEANSTALK,WC1N,30/06/2023,"1,980.00"
92782233,Early Years Block,DSG Skills and Attainment,Free Nursery Education Commissioning - two year olds,3rd Party Payments,Contracts - Child Care,CORAM FAMILY AND CHILDCARE,WC1N,28/06/2023,525.00
92881235,Responsive Repairs,Repairs,Responsive Repairs,3rd Party Payments,Contract Payments,REDACTED PERSONAL DATA,SN2 ,28/06/2023,260.00
90253235,Responsive Repairs,Repairs,Responsive Repairs,3rd Party Payments,Contract Payments,REDACTED PERSONAL DATA,SN2 ,12/06/2023,"1,800.00"
90253234,Responsive Repairs,Repairs,Responsive Repairs,3rd Party Payments,Contract Payments,REDACTED PERSONAL DATA,SN2 ,12/06/2023,400.00
90749233,Responsive Repairs,Repairs,Responsive Repairs,3rd Party Payments,Contract Payments,REDACTED PERSONAL DATA,SN2 ,14/06/2023,200.00
92881234,Responsive Repairs,Repairs,Responsive Repairs,3rd Party Payments,Contract Payments,REDACTED PERSONAL DATA,SN2 ,28/06/2023,"1,500.00"
92881234,Responsive Repairs,Repairs,Responsive Repairs,3rd Party Payments,Contract Payments,REDACTED PERSONAL DATA,SN2 ,28/06/2023,"1,900.00"
90253233,Responsive Repairs,Repairs,Responsive Repairs,3rd Party Payments,Contract Payments,REDACTED PERSONAL DATA,SN2 ,12/06/2023,750.00
92881235,Responsive Repairs,Repairs,Responsive Repairs,3rd Party Payments,Contract Payments,REDACTED PERSONAL DATA,SN2 ,28/06/2023,600.00
90564238,Responsive Repairs,Repairs,Responsive Repairs,3rd Party Payments,Contract Payments,REDACTED PERSONAL DATA,SN2 ,14/06/2023,500.00
90564238,Responsive Repairs,Repairs,Responsive Repairs,3rd Party Payments,Contract Payments,REDACTED PERSONAL DATA,SN2 ,14/06/2023,"2,000.00"
90014234,Responsive Repairs,Repairs,Responsive Repairs,3rd Party Payments,Contract Payments,REDACTED PERSONAL DATA,SN2 ,09/06/2023,"18,013.00"
90253235,Responsive Repairs,Repairs,Responsive Repairs,3rd Party Payments,Contract Payments,REDACTED PERSONAL DATA,SN2 ,12/06/2023,600.00
90253233,Responsive Repairs,Repairs,Responsive Repairs,3rd Party Payments,Contract Payments,REDACTED PERSONAL DATA,SN2 ,12/06/2023,200.00
90253234,Responsive Repairs,Repairs,Responsive Repairs,3rd Party Payments,Contract Payments,REDACTED PERSONAL DATA,SN2 ,12/06/2023,800.00
90749233,Responsive Repairs,Repairs,Responsive Repairs,3rd Party Payments,Contract Payments,REDACTED PERSONAL DATA,SN2 ,14/06/2023,450.00
91336233,Streetsmart,Streetsmart,Waste - Disposal,Supplies and Services,Materials,CORGIN LTD,ST16,16/06/2023,"5,368.00"
90723233,Streetsmart,Streetsmart,Waste - Disposal,Supplies and Services,Materials,CORGIN LTD,ST16,14/06/2023,494.00
91546272,Social Care,"Children, Families and Community Health Services",Placement Adoption Service,3rd Party Payments,Adoption Allowances,REDACTED PERSONAL DATA,BA15,19/06/2023,860.00
89381233,Social Care,"Children, Families and Community Health Services",Placement Adoption Service,3rd Party Payments,Adoption Allowances,REDACTED PERSONAL DATA,BA15,05/06/2023,860.00
91172235,Learning Disabilities,Adults,Learning Disability 18 - 64,Income,Client Contribution - Residential,CORNERSTONES UK LTD,SN9 ,16/06/2023,-423.00
91172235,Learning Disabilities,Adults,Learning Disability 18 - 64,3rd Party Payments,Residential Care,CORNERSTONES UK LTD,SN9 ,16/06/2023,"7,337.52"
91172235,Learning Disabilities,Adults,Learning Disability 18 - 64,3rd Party Payments,Residential Care,CORNERSTONES UK LTD,SN9 ,16/06/2023,"-24,482.28"
91172235,Learning Disabilities,Adults,Learning Disability 18 - 64,3rd Party Payments,Residential Care,CORNERSTONES UK LTD,SN9 ,16/06/2023,"-23,958.36"
91172235,Learning Disabilities,Adults,Learning Disability 18 - 64,3rd Party Payments,Residential Care,CORNERSTONES UK LTD,SN9 ,16/06/2023,"22,012.56"
91172235,Learning Disabilities,Adults,Learning Disability 18 - 64,3rd Party Payments,Residential Care,CORNERSTONES UK LTD,SN9 ,16/06/2023,"-20,766.60"
91172235,Learning Disabilities,Adults,Learning Disability 18 - 64,3rd Party Payments,Residential Care,CORNERSTONES UK LTD,SN9 ,16/06/2023,"5,322.56"
91172235,Learning Disabilities,Adults,Learning Disability 18 - 64,3rd Party Payments,Residential Care,CORNERSTONES UK LTD,SN9 ,16/06/2023,"-18,753.48"
91172235,Learning Disabilities,Adults,Learning Disability 18 - 64,3rd Party Payments,Residential Care,CORNERSTONES UK LTD,SN9 ,16/06/2023,"8,650.40"
91172235,Learning Disabilities,Adults,Learning Disability 18 - 64,3rd Party Payments,Residential Care,CORNERSTONES UK LTD,SN9 ,16/06/2023,"25,395.84"
91172235,Learning Disabilities,Adults,Learning Disability 18 - 64,3rd Party Payments,Residential Care,CORNERSTONES UK LTD,SN9 ,16/06/2023,"19,878.72"
91172235,Learning Disabilities,Adults,Learning Disability 18 - 64,3rd Party Payments,Residential Care,CORNERSTONES UK LTD,SN9 ,16/06/2023,"6,626.24"
91172235,Learning Disabilities,Adults,Learning Disability 18 - 64,Income,Client Contribution - Residential,CORNERSTONES UK LTD,SN9 ,16/06/2023,-487.80
91172235,Learning Disabilities,Adults,Learning Disability 18 - 64,Income,Client Contribution - Residential,CORNERSTONES UK LTD,SN9 ,16/06/2023,-414.20
91172235,Learning Disabilities,Adults,Learning Disability 18 - 64,Income,Client Contribution - Residential,CORNERSTONES UK LTD,SN9 ,16/06/2023,-438.80
91172235,Learning Disabilities,Adults,Learning Disability 18 - 64,3rd Party Payments,Residential Care,CORNERSTONES UK LTD,SN9 ,16/06/2023,"4,178.84"
91172235,Learning Disabilities,Adults,Learning Disability 18 - 64,Income,Client Contribution - Residential,CORNERSTONES UK LTD,SN9 ,16/06/2023,-381.00
91172235,Learning Disabilities,Adults,Learning Disability 18 - 64,3rd Party Payments,Residential Care,CORNERSTONES UK LTD,SN9 ,16/06/2023,"25,951.20"
91172235,Learning Disabilities,Adults,Learning Disability 18 - 64,3rd Party Payments,Residential Care,CORNERSTONES UK LTD,SN9 ,16/06/2023,"8,465.28"
91305233,Streetsmart,Streetsmart,Waste - Disposal,Supplies and Services,Materials,COTSWOLD PACKAGING GROUP LTD,SN5 ,16/06/2023,"1,070.66"
90078233,Streetsmart,Streetsmart,Waterside Fleet Hires,Transport Costs,Vehicle Hire / Contract,COTSWOLD RECYCLING COMPANY LTD,GL12,09/06/2023,"1,900.00"
90077233,Streetsmart,Streetsmart,Waterside Fleet Hires,Transport Costs,Vehicle Hire / Contract,COTSWOLD RECYCLING COMPANY LTD,GL12,09/06/2023,"2,375.00"
93131608,Learning Disabilities,Adults,Learning Disability 18 - 64,Transfer Payments,Personal Budget - Direct Payments - Domiciliary Care,REDACTED PERSONAL DATA,SP11,30/06/2023,"1,804.61"
91337233,Streetsmart,Streetsmart,Waste - Disposal,Supplies and Services,Materials,COVEYA LTD,BS30,16/06/2023,"1,255.80"
90513242,DSG Other Funding,DSG Skills and Attainment,DFE Additional Grants,3rd Party Payments,Payment of Pupil Premium to school,COVINGHAM PARK PRIMARY SCHOOL,SN3 ,14/06/2023,"8,057.00"
90810254,High Needs Block,DSG Skills and Attainment,SEN Resourcing Assessment Panel,3rd Party Payments,Top up funding - Maintained providers Pre 16,COVINGHAM PARK PRIMARY SCHOOL,SN3 ,14/06/2023,"3,723.34"
91399233,DSG Other Funding,DSG Skills and Attainment,DFE Additional Grants,Supplies and Services,Payments to Educational Bodies,COVINGHAM PARK PRIMARY SCHOOL,SN3 ,16/06/2023,"4,320.00"
90498233,Schools - Primary,DSG Skills and Attainment,Primary School Budgets,3rd Party Payments,Mainstream Delegated Funding,COVINGHAM PARK PRIMARY SCHOOL,SN3 ,14/06/2023,"133,968.00"
91172310,Mental Health,Adults,Mental Health 65 and over,3rd Party Payments,Nursing Care,COXWELL HALL AND MEWS NURSING HOME,TW20,16/06/2023,"6,160.00"
91172310,Mental Health,Adults,Mental Health 65 and over,3rd Party Payments,Nursing Care,COXWELL HALL AND MEWS NURSING HOME,TW20,16/06/2023,"6,452.80"
91172310,Mental Health,Adults,Mental Health 65 and over,3rd Party Payments,Nursing Care,COXWELL HALL AND MEWS NURSING HOME,TW20,16/06/2023,"18,897.49"
91172310,Mental Health,Adults,Mental Health 65 and over,3rd Party Payments,Residential Care,COXWELL HALL AND MEWS NURSING HOME,TW20,16/06/2023,"6,000.00"
91172310,Memory & Cognition,Adults,Support for Memory and Cognition 65 and over,3rd Party Payments,Residential Care,COXWELL HALL AND MEWS NURSING HOME,TW20,16/06/2023,"5,968.24"
91172310,Mental Health,Adults,Mental Health 65 and over,3rd Party Payments,Nursing Care,COXWELL HALL AND MEWS NURSING HOME,TW20,16/06/2023,"-17,337.14"
90999233,Property Management,Property,Corporate Repairs & Maintenance Programme,Premises Costs,Repairs - Buildings,CPS CONSTRUCTION LTD,BS15,16/06/2023,"1,795.00"
91151233,Learning Disabilities,Adults,Learning Disability 18 - 64,3rd Party Payments,Residential Care,CRAEGMOOR HEALTHCARE,BA14,16/06/2023,"19,297.80"
91151233,Learning Disabilities,Adults,Learning Disability 18 - 64,3rd Party Payments,Residential Care,CRAEGMOOR HEALTHCARE,BA14,16/06/2023,"-18,205.46"
91151233,Learning Disabilities,Adults,Learning Disability 18 - 64,Income,Client Contribution - Residential,CRAEGMOOR HEALTHCARE,BA14,16/06/2023,-483.20
91151233,Learning Disabilities,Adults,Learning Disability 18 - 64,3rd Party Payments,Residential Care,CRAEGMOOR HEALTHCARE,BA14,16/06/2023,"8,177.04"
91151233,Learning Disabilities,Adults,Learning Disability 18 - 64,3rd Party Payments,Residential Care,CRAEGMOOR HEALTHCARE,BA14,16/06/2023,"9,158.28"
91151233,Learning Disabilities,Adults,Learning Disability 18 - 64,3rd Party Payments,Residential Care,CRAEGMOOR HEALTHCARE,BA14,16/06/2023,"-7,714.18"
91151233,Learning Disabilities,Adults,Learning Disability 18 - 64,Income,Client Contribution - Residential,CRAEGMOOR HEALTHCARE,BA14,16/06/2023,"-1,018.17"
91151233,Learning Disabilities,Adults,Learning Disability 18 - 64,Income,Client Contribution - Residential,CRAEGMOOR HEALTHCARE,BA14,16/06/2023,872.78
91539233,Streetsmart,Streetsmart,Waste - Disposal,3rd Party Payments,Contract Payments,CRAPPER & SONS LANDFILL LTD,SN4 ,21/06/2023,779.22
91599233,Streetsmart,Streetsmart,Waste - Disposal,3rd Party Payments,Contract Payments,CRAPPER & SONS LANDFILL LTD,SN4 ,21/06/2023,"3,667.30"
91698234,Streetsmart,Streetsmart,Waste - Disposal,3rd Party Payments,Contract Payments,CRAPPER & SONS LANDFILL LTD,SN4 ,21/06/2023,"4,593.18"
91706233,Streetsmart,Streetsmart,Waste - Disposal,3rd Party Payments,Contract Payments,CRAPPER & SONS LANDFILL LTD,SN4 ,21/06/2023,"1,738.34"
91707233,Streetsmart,Streetsmart,Waste - Disposal,3rd Party Payments,Contract Payments,CRAPPER & SONS LANDFILL LTD,SN4 ,21/06/2023,"1,309.94"
91702233,Streetsmart,Streetsmart,Waste - Disposal,3rd Party Payments,Contract Payments,CRAPPER & SONS LANDFILL LTD,SN4 ,21/06/2023,"1,673.86"
91700233,Streetsmart,Streetsmart,Waste - Disposal,3rd Party Payments,Contract Payments,CRAPPER & SONS LANDFILL LTD,SN4 ,21/06/2023,"7,081.46"
91596233,Streetsmart,Streetsmart,Waste - Disposal,3rd Party Payments,Contract Payments,CRAPPER & SONS LANDFILL LTD,SN4 ,21/06/2023,"2,760.37"
91602233,Streetsmart,Streetsmart,Waste - Disposal,3rd Party Payments,Contract Payments,CRAPPER & SONS LANDFILL LTD,SN4 ,21/06/2023,"1,398.65"
93229233,Streetsmart,Streetsmart,Waste - Disposal,3rd Party Payments,Contract Payments,CRAPPER & SONS LANDFILL LTD,SN4 ,30/06/2023,"7,346.94"
91601233,Streetsmart,Streetsmart,Waste - Disposal,3rd Party Payments,Contract Payments,CRAPPER & SONS LANDFILL LTD,SN4 ,21/06/2023,"2,095.10"
91597233,Streetsmart,Streetsmart,Waste - Disposal,3rd Party Payments,Contract Payments,CRAPPER & SONS LANDFILL LTD,SN4 ,21/06/2023,553.23
91595233,Streetsmart,Streetsmart,Waste - Disposal,3rd Party Payments,Contract Payments,CRAPPER & SONS LANDFILL LTD,SN4 ,21/06/2023,"1,602.35"
91705233,Streetsmart,Streetsmart,Waste - Disposal,3rd Party Payments,Contract Payments,CRAPPER & SONS LANDFILL LTD,SN4 ,21/06/2023,"1,149.34"
85522233,Streetsmart,Streetsmart,Waste - Disposal,3rd Party Payments,Contract Payments,CRAPPER & SONS LANDFILL LTD,SN4 ,21/06/2023,"-3,047.20"
91704233,Streetsmart,Streetsmart,Waste - Disposal,3rd Party Payments,Contract Payments,CRAPPER & SONS LANDFILL LTD,SN4 ,21/06/2023,850.82
91681234,Streetsmart,Streetsmart,Waste - Disposal,3rd Party Payments,Contract Payments,CRAPPER & SONS LANDFILL LTD,SN4 ,21/06/2023,"8,059.21"
89338233,Physical Support,Adults,Fessey House,Supplies and Services,Food,CREED CATERING SUPPLIES LTD,GL51,05/06/2023,661.98
89336233,Physical Support,Adults,Fessey House,Supplies and Services,Food,CREED CATERING SUPPLIES LTD,GL51,05/06/2023,33.08
90277233,Physical Support,Adults,Fessey House,Supplies and Services,Food,CREED CATERING SUPPLIES LTD,GL51,12/06/2023,506.62
92540233,Physical Support,Adults,Fessey House,Supplies and Services,Food,CREED CATERING SUPPLIES LTD,GL51,26/06/2023,531.21
91676234,Physical Support,Adults,Fessey House,Supplies and Services,Food,CREED CATERING SUPPLIES LTD,GL51,21/06/2023,79.51
92541233,Physical Support,Adults,Fessey House,Supplies and Services,Food,CREED CATERING SUPPLIES LTD,GL51,26/06/2023,78.42
92541233,Physical Support,Adults,Fessey House,Supplies and Services,Food,CREED CATERING SUPPLIES LTD,GL51,26/06/2023,638.70
90278233,Physical Support,Adults,Fessey House,Supplies and Services,Food,CREED CATERING SUPPLIES LTD,GL51,12/06/2023,485.68
90277233,Physical Support,Adults,Fessey House,Supplies and Services,Food,CREED CATERING SUPPLIES LTD,GL51,12/06/2023,31.62
90278233,Physical Support,Adults,Fessey House,Supplies and Services,Food,CREED CATERING SUPPLIES LTD,GL51,12/06/2023,17.30
89338233,Physical Support,Adults,Fessey House,Supplies and Services,Food,CREED CATERING SUPPLIES LTD,GL51,05/06/2023,104.87
89337233,Physical Support,Adults,Fessey House,Supplies and Services,Food,CREED CATERING SUPPLIES LTD,GL51,05/06/2023,784.80
91693234,Physical Support,Adults,Fessey House,Supplies and Services,Food,CREED CATERING SUPPLIES LTD,GL51,21/06/2023,753.50
91693234,Physical Support,Adults,Fessey House,Supplies and Services,Food,CREED CATERING SUPPLIES LTD,GL51,21/06/2023,69.83
92540233,Physical Support,Adults,Fessey House,Supplies and Services,Food,CREED CATERING SUPPLIES LTD,GL51,26/06/2023,124.67
89336233,Physical Support,Adults,Fessey House,Supplies and Services,Food,CREED CATERING SUPPLIES LTD,GL51,05/06/2023,559.98
91676234,Physical Support,Adults,Fessey House,Supplies and Services,Food,CREED CATERING SUPPLIES LTD,GL51,21/06/2023,749.93
89337233,Physical Support,Adults,Fessey House,Supplies and Services,Food,CREED CATERING SUPPLIES LTD,GL51,05/06/2023,246.50
89938233,School Transport,"Education, Inclusion and Skills",Special Educational Needs Transport,Transport Costs,Home to School Transport,CROSS STREET RADIO CARS,SN1 ,09/06/2023,"1,160.00"
89934234,School Transport,"Education, Inclusion and Skills",Special Educational Needs Transport,Transport Costs,Home to School Transport,CROSS STREET RADIO CARS,SN1 ,09/06/2023,"3,420.00"
89914234,School Transport,"Education, Inclusion and Skills",Special Educational Needs Transport,Transport Costs,Home to School Transport,CROSS STREET RADIO CARS,SN1 ,09/06/2023,"3,300.00"
89915233,School Transport,"Education, Inclusion and Skills",Special Educational Needs Transport,Transport Costs,Home to School Transport,CROSS STREET RADIO CARS,SN1 ,09/06/2023,"1,620.00"
89942233,School Transport,"Education, Inclusion and Skills",Special Educational Needs Transport,Transport Costs,Home to School Transport,CROSS STREET RADIO CARS,SN1 ,09/06/2023,"2,700.00"
89913237,School Transport,"Education, Inclusion and Skills",Special Educational Needs Transport,Transport Costs,Home to School Transport,CROSS STREET RADIO CARS,SN1 ,09/06/2023,"1,980.00"
89941233,School Transport,"Education, Inclusion and Skills",Special Educational Needs Transport,Transport Costs,Home to School Transport,CROSS STREET RADIO CARS,SN1 ,09/06/2023,"2,560.00"
89940233,School Transport,"Education, Inclusion and Skills",Mainstream School Transport,Transport Costs,Home to School Transport,CROSS STREET RADIO CARS,SN1 ,09/06/2023,"2,080.00"
89918233,School Transport,"Education, Inclusion and Skills",Special Educational Needs Transport,Transport Costs,Home to School Transport,CROSS STREET RADIO CARS,SN1 ,09/06/2023,"3,040.00"
89939233,School Transport,"Education, Inclusion and Skills",Special Educational Needs Transport,Transport Costs,Home to School Transport,CROSS STREET RADIO CARS,SN1 ,09/06/2023,"5,220.00"
90513250,DSG Other Funding,DSG Skills and Attainment,DFE Additional Grants,3rd Party Payments,Payment of Pupil Premium to school,CROWDYS HILL SCHOOL,SN2 ,14/06/2023,"10,239.00"
90810276,High Needs Block,DSG Skills and Attainment,SEN Resourcing Assessment Panel,3rd Party Payments,Top up funding - Maintained providers Post 16,CROWDYS HILL SCHOOL,SN2 ,14/06/2023,"8,865.88"
91404237,DSG Other Funding,DSG Skills and Attainment,DFE Additional Grants,Supplies and Services,Payments to Educational Bodies,CROWDYS HILL SCHOOL,SN2 ,16/06/2023,"16,920.00"
90507233,High Needs Block,DSG Skills and Attainment,Special School Place,3rd Party Payments,HNB- Place Funding post 16,CROWDYS HILL SCHOOL,SN2 ,14/06/2023,"38,333.00"
90810272,High Needs Block,DSG Skills and Attainment,SEN Resourcing Assessment Panel,3rd Party Payments,Top up funding - Maintained providers Pre 16,CROWDYS HILL SCHOOL,SN2 ,14/06/2023,"137,485.03"
90508233,High Needs Block,DSG Skills and Attainment,Special School Place,3rd Party Payments,HNB- Place Funding pre 16,CROWDYS HILL SCHOOL,SN2 ,14/06/2023,"170,000.00"
90810271,High Needs Block,DSG Skills and Attainment,SEN Resourcing Assessment Panel,3rd Party Payments,Top up funding - Maintained providers Pre 16,CROWDYS HILL SCHOOL,SN2 ,14/06/2023,"48,670.50"
93063233,NEV,"Economy, Growth and Place",Southern Connector Road,Capital,Contractor Payments,CROWN ENERGY LTD,BL9 ,30/06/2023,"3,045.00"
89867237,Physical Support,Adults,Physical Support 65 and over,3rd Party Payments,Personal Budget - Domiciliary care,CRYSTAL CARING LIMITED,SN2 ,07/06/2023,"3,382.02"
89867238,Physical Support,Adults,Physical Support 65 and over,3rd Party Payments,Personal Budget - Domiciliary care,CRYSTAL CARING LIMITED,SN2 ,07/06/2023,773.01
89867236,Physical Support,Adults,Physical Support 65 and over,3rd Party Payments,Personal Budget - Domiciliary care,CRYSTAL CARING LIMITED,SN2 ,07/06/2023,"1,714.53"
89867238,Care Management & Safeguarding,Adults,Intermediate Care Team,3rd Party Payments,Personal Budget - Domiciliary care,CRYSTAL CARING LIMITED,SN2 ,07/06/2023,673.40
89867238,Physical Support,Adults,Physical Support 65 and over,3rd Party Payments,Personal Budget - Domiciliary care,CRYSTAL CARING LIMITED,SN2 ,07/06/2023,"2,194.33"
90999237,Other Repairs,Repairs,Asbestos Services,Premises Costs,Permanent Fixtures and Fittings,CRYSTAL ELECTRONICS LTD,NN6 ,16/06/2023,"1,667.17"
90999234,Other Repairs,Repairs,Asbestos Services,Premises Costs,Permanent Fixtures and Fittings,CRYSTAL ELECTRONICS LTD,NN6 ,16/06/2023,"1,667.17"
91732246,Other Repairs,Repairs,Asbestos Services,Premises Costs,Permanent Fixtures and Fittings,CRYSTAL ELECTRONICS LTD,NN6 ,21/06/2023,"1,667.17"
90999238,Other Repairs,Repairs,Asbestos Services,Premises Costs,Permanent Fixtures and Fittings,CRYSTAL ELECTRONICS LTD,NN6 ,16/06/2023,"1,667.17"
90999235,Other Repairs,Repairs,Asbestos Services,Premises Costs,Permanent Fixtures and Fittings,CRYSTAL ELECTRONICS LTD,NN6 ,16/06/2023,"1,667.17"
90999236,Other Repairs,Repairs,Asbestos Services,Premises Costs,Permanent Fixtures and Fittings,CRYSTAL ELECTRONICS LTD,NN6 ,16/06/2023,"1,667.17"
Corporate Card Transaction,Community Health & Wellbeing,Public Health,Community Health and Wellbeing Management,Supplies and Services,Food,Cs* Tesco Stores Gc,,21/06/2023,"1,000.00"
Corporate Card Transaction,Community Health & Wellbeing,Public Health,Community Health and Wellbeing Management,Supplies and Services,Food,Cs* Tesco Stores Gc,,07/06/2023,"1,800.00"
92843233,Highways & Transport,Highways & Transport,Bridge Inspection and Maintenance,Supplies and Services,Repairs & Maintenance,CTS BRIDGES LIMITED,HD8 ,28/06/2023,"7,720.00"
Corporate Card Transaction,Homelessness and Travellers,Housing Services,Warm Welcome Project,Supplies and Services,Equipment,Currys Online,,19/06/2023,602.50
92520233,Museums & Heritage,Culture & Heritage,Steam:Income Generation,Supplies and Services,Goods for resale,CUSTOMWORKS LTD,EH51,26/06/2023,754.16
89667233,Environmental & Regulatory,Highways & Transport,Shaw Farm Landfill Site,Supplies and Services,Testing / Inspection,CYGNET FABRICATIONS LIMITED,LL29,07/06/2023,"3,400.00"
93131370,Physical Support,Adults,Physical Support 18 - 64,Transfer Payments,Personal Budget - Direct Payments - Domiciliary Care,REDACTED PERSONAL DATA,SN25,30/06/2023,"3,356.42"
93131686,Physical Support,Adults,Physical Support 18 - 64,Transfer Payments,Personal Budget - Direct Payments - Domiciliary Care,REDACTED PERSONAL DATA,SP11,30/06/2023,"5,254.15"
93131324,Physical Support,Adults,Physical Support 18 - 64,Transfer Payments,Personal Budget - Direct Payments - Domiciliary Care,REDACTED PERSONAL DATA,SN3 ,30/06/2023,"3,025.69"
93131509,Learning Disabilities,Adults,Learning Disability 18 - 64,Transfer Payments,Personal Budget - Direct Payments - Domiciliary Care,REDACTED PERSONAL DATA,SN2 ,30/06/2023,"1,622.12"
93131548,Learning Disabilities,Adults,Learning Disability 18 - 64,Transfer Payments,Personal Budget - Direct Payments - Domiciliary Care,REDACTED PERSONAL DATA,SN2 ,30/06/2023,"11,079.23"
93131417,Physical Support,Adults,Physical Support 18 - 64,Transfer Payments,Personal Budget - Direct Payments - Domiciliary Care,REDACTED PERSONAL DATA,SN2 ,30/06/2023,684.38
89593233,Landscaping & Open Space,Culture & Heritage & Art,Moredon Recreation - Multi Sports Hub,Capital,Contractor Payments,DAVID JARVIS ASSOCIATES LTD,SN1 ,07/06/2023,"1,050.25"
93131492,Learning Disabilities,Adults,Learning Disability 18 - 64,Transfer Payments,Personal Budget - Direct Payments - Domiciliary Care,REDACTED PERSONAL DATA,SP11,30/06/2023,747.87
90083233,Streetsmart,Streetsmart,Waterside Fleet Hires,Transport Costs,Vehicle Hire / Contract,DAWSONRENTLES SWEEPERS,HD6 ,09/06/2023,"3,215.48"
90069258,Highways Inspections & Maintenance,Highway Operations and Car Parking,Highway Maintenance,Supplies and Services,Equipment,DAWSONRENTLES SWEEPERS,HD6 ,09/06/2023,504.93
90084233,Streetsmart,Streetsmart,Waterside Fleet Hires,Transport Costs,Vehicle Hire / Contract,DAWSONRENTLES SWEEPERS,HD6 ,09/06/2023,"2,259.53"
90085233,Streetsmart,Streetsmart,Waterside Fleet Hires,Transport Costs,Vehicle Hire / Contract,DAWSONRENTLES SWEEPERS,HD6 ,09/06/2023,"2,954.77"
90086233,Streetsmart,Streetsmart,Waterside Fleet Hires,Transport Costs,Vehicle Hire / Contract,DAWSONRENTLES SWEEPERS,HD6 ,09/06/2023,"2,954.77"
90082233,Streetsmart,Streetsmart,Waterside Fleet Hires,Transport Costs,Vehicle Hire / Contract,DAWSONRENTLES SWEEPERS,HD6 ,09/06/2023,"2,976.49"
91524253,Social Care,"Children, Families and Community Health Services",Placement Fostering Service,3rd Party Payments,Carers Skills Payments - Advanced,REDACTED PERSONAL DATA,SN5 ,19/06/2023,370.00
91524253,Social Care,"Children, Families and Community Health Services",Placement Fostering Service,3rd Party Payments,Foster Care Additional Allowance,REDACTED PERSONAL DATA,SN5 ,19/06/2023,100.00
89325250,Social Care,"Children, Families and Community Health Services",Placement Fostering Service,3rd Party Payments,Carers Skills Payments - Advanced,REDACTED PERSONAL DATA,SN5 ,05/06/2023,370.00
89325250,Social Care,"Children, Families and Community Health Services",Placement Fostering Service,3rd Party Payments,Foster Care Additional Allowance,REDACTED PERSONAL DATA,SN5 ,05/06/2023,100.00
89325250,Social Care,"Children, Families and Community Health Services",Placement Fostering Service,3rd Party Payments,Foster Care Basic Payments,REDACTED PERSONAL DATA,SN5 ,05/06/2023,536.00
91524253,Social Care,"Children, Families and Community Health Services",Placement Fostering Service,3rd Party Payments,Foster Care Basic Payments,REDACTED PERSONAL DATA,SN5 ,19/06/2023,536.00
92818237,Landscaping & Open Space,Culture & Heritage & Art,Great Western Community Forest,Capital,Contractor Payments,DEEPER GREEN SERVICES LTD,BS26,28/06/2023,"1,547.50"
92815233,Landscaping & Open Space,Culture & Heritage & Art,GWCF - Trees for Climate,Capital,Contractor Payments,DEEPER GREEN SERVICES LTD,BS26,28/06/2023,"2,720.00"
91507234,Learning Disabilities,Adults,Learning Disability 18 - 64,3rd Party Payments,Supported Accommodation Scheme,REDACTED PERSONAL DATA,SN2 ,21/06/2023,"1,850.00"
91507234,Learning Disabilities,Adults,Learning Disability 18 - 64,3rd Party Payments,Supported Accommodation Scheme,REDACTED PERSONAL DATA,SN2 ,21/06/2023,328.61
91507234,Learning Disabilities,Adults,Learning Disability 18 - 64,3rd Party Payments,Supported Accommodation Scheme,REDACTED PERSONAL DATA,SN2 ,21/06/2023,349.98
91507234,Learning Disabilities,Adults,Learning Disability 18 - 64,3rd Party Payments,Supported Accommodation Scheme,REDACTED PERSONAL DATA,SN2 ,21/06/2023,"2,690.95"
91507234,Learning Disabilities,Adults,Learning Disability 18 - 64,3rd Party Payments,Supported Accommodation Scheme,REDACTED PERSONAL DATA,SN2 ,21/06/2023,"2,094.20"
91059233,Town Centre,"Economy, Growth and Place",HAZ Streets and spaces,Capital,Contractor Payments,DESIGNPLAN LIGHTING,SM3 ,16/06/2023,"7,790.00"
88992233,Town Centre,"Economy, Growth and Place",HAZ Streets and spaces,Capital,Contractor Payments,DESIGNPLAN LIGHTING,SM3 ,02/06/2023,"36,373.00"
90623233,Town Centre,"Economy, Growth and Place",HAZ Streets and spaces,Capital,Contractor Payments,DESIGNPLAN LIGHTING,SM3 ,14/06/2023,"1,558.00"
90624233,Town Centre,"Economy, Growth and Place",HAZ Streets and spaces,Capital,Contractor Payments,DESIGNPLAN LIGHTING,SM3 ,14/06/2023,"9,348.00"
90501233,Highways Schemes,Strategic Planning and Highways,Concrete Column Replacement,Capital,Professional Fees,DESIGNS FOR LIGHTING LTD,SO23,14/06/2023,"3,639.00"
90197257,Highways Schemes,Strategic Planning and Highways,Concrete Column Replacement,Capital,Professional Fees,DESIGNS FOR LIGHTING LTD,SO23,12/06/2023,"5,464.00"
91491233,Local Transport Plan Funded,Strategic Planning and Highways,Street Lighting,Capital,Contractor Payments,DESIGNS FOR LIGHTING LTD,SO23,19/06/2023,"2,435.00"
92806233,Human Resources and Organisational Development,"People, Culture and Organisational Resilience",Organisational Development,Employees,Training,DEVELOP TRAINING LTD,DE24,28/06/2023,"2,958.00"
92820233,Disabled Children,"Children, Families and Community Health Services",DCT Daytime Short Breaks,3rd Party Payments,Respite Care,DGF PSYCHOLOGY LTD,GL4 ,28/06/2023,932.20
92044233,Town Centre,"Economy, Growth and Place",HAZ Streets and spaces,Capital,Professional Fees,REDACTED PERSONAL DATA,GL20,23/06/2023,750.00
89346233,Social Care,"Children, Families and Community Health Services",Placement Adoption Service,3rd Party Payments,Adoption Allowances,REDACTED PERSONAL DATA,CF44,05/06/2023,500.34
91546236,Social Care,"Children, Families and Community Health Services",Placement Adoption Service,3rd Party Payments,Adoption Allowances,REDACTED PERSONAL DATA,CF44,19/06/2023,500.34
90810242,High Needs Block,DSG Skills and Attainment,SEN Resourcing Assessment Panel,Supplies and Services,Services,REDACTED PERSONAL DATA,SN25,14/06/2023,"1,317.92"
91172299,Physical Support,Adults,Physical Support 65 and over,3rd Party Payments,Nursing Care,DIVA CARE LIMITED,GL7 ,16/06/2023,"8,521.90"
91172299,Physical Support,Adults,Physical Support 65 and over,3rd Party Payments,Nursing Care,DIVA CARE LIMITED,GL7 ,16/06/2023,"-8,116.10"
91172299,Physical Support,Adults,Physical Support 65 and over,3rd Party Payments,Nursing Care,DIVA CARE LIMITED,GL7 ,16/06/2023,"3,408.76"
91172299,Physical Support,Adults,Physical Support 65 and over,Income,Client Contribution - Nursing,DIVA CARE LIMITED,GL7 ,16/06/2023,-268.72
92849234,Social Care,"Children, Families and Community Health Services",Legal Fees,Supplies and Services,Fees,DNA WORLDWIDE GROUP,BA11,28/06/2023,665.00
93131336,Physical Support,Adults,Physical Support 18 - 64,Transfer Payments,Personal Budget - Direct Payments - Domiciliary Care,REDACTED PERSONAL DATA,SP11,30/06/2023,"4,899.42"
91524259,Social Care,"Children, Families and Community Health Services",Placement Fostering Service,3rd Party Payments,Foster Care Basic Payments,REDACTED PERSONAL DATA,SN2 ,19/06/2023,352.00
89325256,Social Care,"Children, Families and Community Health Services",Placement Fostering Service,3rd Party Payments,Carers Skills Payments - Core,REDACTED PERSONAL DATA,SN2 ,05/06/2023,216.00
91524259,Social Care,"Children, Families and Community Health Services",Placement Fostering Service,3rd Party Payments,Foster Care Additional Allowance,REDACTED PERSONAL DATA,SN2 ,19/06/2023,18.00
91524259,Social Care,"Children, Families and Community Health Services",Placement Fostering Service,3rd Party Payments,Carers Skills Payments - Core,REDACTED PERSONAL DATA,SN2 ,19/06/2023,216.00
89325256,Social Care,"Children, Families and Community Health Services",Placement Fostering Service,3rd Party Payments,Foster Care Basic Payments,REDACTED PERSONAL DATA,SN2 ,05/06/2023,352.00
89325256,Social Care,"Children, Families and Community Health Services",Placement Fostering Service,3rd Party Payments,Foster Care Additional Allowance,REDACTED PERSONAL DATA,SN2 ,05/06/2023,18.00
90810314,High Needs Block,DSG Skills and Attainment,SEN Resourcing Assessment Panel,3rd Party Payments,Top up funding - Academies and Free Schools Pre 16,DORCAN ACADEMY,SN3 ,14/06/2023,"5,796.25"
89016233,Mainstream Schools Extension,Skills & Attainment,Dorcan Academy PAN,Capital,Contractor Payments,DORCAN ACADEMY,SN3 ,02/06/2023,"84,579.20"
93131243,Physical Support,Adults,Physical Support 18 - 64,Transfer Payments,Personal Budget - Direct Payments - Domiciliary Care,REDACTED PERSONAL DATA,SP11,30/06/2023,"1,674.91"
